Workbook

Sheet 花园升级数值表
A1: 花园等级 | B1: 极限升级时间(天) | C1: 极限升级总时间(天) | D1: 基础升级时间(天) | E1: 基础升级总时间(天) | F1: 升级花费 | G1: 升级总花费 | H1: 该等级每分钟极限收入 | I1: 每分钟基础收入权重 | J1: 每分钟基础收入 | K1: 基础每分钟访问 | L1: 基础每秒访问 | M1: 基础每人收入 | O1: 剩余每分钟可分配收入 | P1: 能力分配 | Q1: 精灵分配 | R1: 技能分配 | S1: 礼包分配
A2: 1 | B2: =D2/2.5 -> 0.0003703703704 | C2: =B2 -> 0.0003703703704 | D2: =F2/J2/60/24 -> 0.0009259259259 | E2: =D2 -> 0.0009259259259 | F2: 800 | G2: =F2 -> 800 | H2: =F2/B2/60/24 -> 1500 | I2: =J2/F2 -> 0.75 | J2: =K2*M2 -> 600 | K2: =L2*60 -> 60 | L2: 1 | M2: 10 | O2: =H2-J2 -> 900 | P2: =O2*0.15 -> 135 | Q2: =O2*0.45 -> 405 | R2: =O2*0.15 -> 135 | S2: =O2*0.05 -> 45
A3: 2 | B3: =D3/2.5 -> 0.0003877332084 | C3: =B3+C2 -> 0.0007581035788 | D3: =F3/J3/60/24 -> 0.000969333021 | E3: =D3+E2 -> 0.001895258947 | F3: =F2*1.07 -> 856 | G3: =F3+G2 -> 1656 | H3: =F3/B3/60/24 -> 1533.1275 | I3: =J3/F3 -> 0.7164147196 | J3: =K3*M3 -> 613.251 | K3: =L3*60 -> 61.02 | L3: =L2*1.017 -> 1.017 | M3: =M2*1.005 -> 10.05 | O3: =H3-J3 -> 919.8765 | P3: =O3*0.15 -> 137.981475 | Q3: =O3*0.45 -> 413.944425 | R3: =O3*0.15 -> 137.981475 | S3: =O3*0.05 -> 45.993825
A4: 3 | B4: 0.0004059100104 | C4: =B4+C3 -> 0.001164013589 | D4: 0.001014775026 | E4: =D4+E3 -> 0.002910033973 | F4: =F3*1.07 -> 915.92 | G4: =F4+G3 -> 2571.92 | H4: =F4/B4/60/24 -> 1566.986621 | I4: 0.6843334007 | J4: 626.7946483 | K4: 62.05734 | L4: =L3*1.017 -> 1.034289 | M4: =M3*1.005 -> 10.10025 | O4: 940.1919725 | P4: 141.0287959 | Q4: 423.0863876 | R4: 141.0287959 | S4: 47.00959863
A5: 4 | B5: 0.0004249389348 | C5: 0.001588952524 | D5: 0.001062347337 | E5: =D5+E4 -> 0.00397238131 | F5: 980.0344 | G5: 3551.9544 | H5: 1601.59352 | I5: 0.6536886952 | J5: 640.6374081 | K5: 63.11231478 | L5: 1.051871913 | M5: 10.15075125 | O5: 960.9561122 | P5: 144.1434168 | Q5: 432.4302505 | R5: 144.1434168 | S5: 48.04780561
A6: 5 | B6: 0.0004448599287 | C6: 0.002033812453 | D6: 0.001112149822 | E6: 0.005084531131 | F6: 1048.636808 | G6: 4600.591208 | H6: 1636.964713 | I6: 0.624416271 | J6: 654.7858853 | K6: 64.18522413 | L6: 1.069753736 | M6: 10.20150501 | O6: 982.178828 | P6: 147.3268242 | Q6: 441.9804726 | R6: 147.3268242 | S6: 49.1089414
A7: 6 | B7: 0.000465714812 | C7: 0.002499527265 | D7: 0.00116428703 | E7: 0.006248818162 | F7: 1122.041385 | G7: 5722.632593 | H7: 1673.117079 | I7: 0.596454677 | J7: 669.2468316 | K7: 65.27637294 | L7: 1.087939549 | M7: 10.25251253 | O7: 1003.870247 | P7: 150.5805371 | Q7: 451.7416113 | R7: 150.5805371 | S7: 50.19351237
A8: 7 | B8: 0.0004875473653 | C8: 0.00298707463 | D8: 0.001218868413 | E8: 0.007467686575 | F8: 1200.584281 | G8: 6923.216874 | H8: 1710.06787 | I8: 0.5697452136 | J8: 684.0271479 | K8: 66.38607128 | L8: 1.106434521 | M8: 10.30377509 | O8: 1026.040722 | P8: 153.9061083 | Q8: 461.7183248 | R8: 153.9061083 | S8: 51.30203609
A9: 8 | B9: 0.0005104034213 | C9: 0.003497478051 | D9: 0.001276008553 | E9: 0.008743695128 | F9: 1284.625181 | G9: 8207.842055 | H9: 1747.834719 | I9: 0.5442318099 | J9: 699.1338874 | K9: 67.51463449 | L9: 1.125243908 | M9: 10.35529397 | O9: 1048.700831 | P9: 157.3051247 | Q9: 471.915374 | R9: 157.3051247 | S9: 52.43504156
A10: 9 | B10: 0.0005343309615 | C10: 0.004031809013 | D10: 0.001335827404 | E10: 0.01007952253 | F10: 1374.548944 | G10: 9582.390999 | H10: 1786.435648 | I10: 0.519860906 | J10: 714.5742593 | K10: 68.66238328 | L10: 1.144373055 | M10: 10.40707044 | O10: 1071.861389 | P10: 160.7792083 | Q10: 482.337625 | R10: 160.7792083 | S10: 53.59306945
A11: 10 | B11: 0.0005593802168 | C11: 0.00459118923 | D11: 0.001398450542 | E11: 0.01147797307 | F11: 1470.76737 | G11: 11053.15837 | H11: 1825.88908 | I11: 0.4965813403 | J11: 730.3556318 | K11: 69.8296438 | L11: 1.163827397 | M11: 10.45910579 | O11: 1095.533448 | P11: 164.3300172 | Q11: 492.9900515 | R11: 164.3300172 | S11: 54.77667239
A12: 11 | B12: 0.0005856037726 | C12: 0.005176793002 | D12: 0.001464009432 | E12: 0.01294198251 | F12: 1573.721086 | G12: 12626.87945 | H12: 1866.21384 | I12: 0.4743442422 | J12: 746.485536 | K12: 71.01674774 | L12: 1.183612462 | M12: 10.51140132 | O12: 1119.728304 | P12: 167.9592456 | Q12: 503.8777368 | R12: 167.9592456 | S12: 55.9864152
A13: 12 | B13: 0.0006130566799 | C13: 0.005789849682 | D13: 0.0015326417 | E13: 0.01447462421 | F13: 1683.881562 | G13: 14310.76102 | H13: 1907.429173 | I13: 0.4531029298 | J13: 762.971669 | K13: 72.22403245 | L13: 1.203733874 | M13: 10.56395833 | O13: 1144.457504 | P13: 171.6686255 | Q13: 515.0058766 | R13: 171.6686255 | S13: 57.22287518
A14: 13 | B14: 0.0006417965703 | C14: 0.006431646252 | D14: 0.001604491426 | E14: 0.01607911563 | F14: 1801.753271 | G14: 16112.51429 | H14: 1949.554746 | I14: 0.4328128112 | J14: 779.8218983 | K14: 73.451841 | L14: 1.22419735 | M14: 10.61677812 | O14: 1169.732848 | P14: 175.4599271 | Q14: 526.3797814 | R14: 175.4599271 | S14: 58.48664238
A15: 14 | B15: 0.000671883777 | C15: 0.007103530029 | D15: 0.001679709442 | E15: 0.01775882507 | F15: 1927.876 | G15: 18040.39029 | H15: 1992.610662 | I15: 0.4134312917 | J15: 797.044265 | K15: 74.7005223 | L15: 1.245008705 | M15: 10.66986201 | O15: 1195.566397 | P15: 179.3349596 | Q15: 538.0048788 | R15: 179.3349596 | S15: 59.77831987
A16: 15 | B16: 0.0007033814618 | C16: 0.007806911491 | D16: 0.001758453654 | E16: 0.01951727873 | F16: 2062.82732 | G16: 20103.21761 | H16: 2036.617469 | I16: 0.3949176839 | J16: 814.6469876 | K16: 75.97043118 | L16: 1.266173853 | M16: 10.72321132 | O16: 1221.970481 | P16: 183.2955722 | Q16: 549.8867166 | R16: 183.2955722 | S16: 61.09852407
A17: 16 | B17: 0.0007363557474 | C17: 0.008543267239 | D17: 0.001840889369 | E17: 0.0213581681 | F17: 2207.225233 | G17: 22310.44284 | H17: 2081.596166 | I17: 0.3772331224 | J17: 832.6384663 | K17: 77.26192851 | L17: 1.287698808 | M17: 10.77682738 | O17: 1248.957699 | P17: 187.3436549 | Q17: 562.0309647 | R17: 187.3436549 | S17: 62.44788497
A18: 17 | B18: 0.0007708758564 | C18: 0.009314143095 | D18: 0.001927189641 | E18: 0.02328535774 | F18: 2361.730999 | G18: 24672.17384 | H18: 2127.568217 | I18: 0.3603404821 | J18: 851.0272868 | K18: 78.57538129 | L18: 1.309589688 | M18: 10.83071151 | O18: 1276.54093 | P18: 191.4811395 | Q18: 574.4434186 | R18: 191.4811395 | S18: 63.82704651
A19: 18 | B19: 0.0008070142565 | C19: 0.01012115735 | D19: 0.002017535641 | E19: 0.02530289338 | F19: 2527.052169 | G19: 27199.22601 | H19: 2174.555561 | I19: 0.3442043006 | J19: 869.8222244 | K19: 79.91116278 | L19: 1.331852713 | M19: 10.88486507 | O19: 1304.733337 | P19: 195.7100005 | Q19: 587.1300015 | R19: 195.7100005 | S19: 65.23666683
A20: 19 | B20: 0.0008448468126 | C20: 0.01096600416 | D20: 0.002112117032 | E20: 0.02741501041 | F20: 2703.945821 | G20: 29903.17183 | H20: 2222.580621 | I20: 0.3287907034 | J20: 889.0322483 | K20: 81.26965254 | L20: 1.354494209 | M20: 10.9392894 | O20: 1333.548372 | P20: 200.0322559 | Q20: 600.0967676 | R20: 200.0322559 | S20: 66.67741862
A21: 20 | B21: 0.0008844529462 | C21: 0.01185045711 | D21: 0.002211132366 | E21: 0.02962614278 | F21: 2893.222028 | G21: 32796.39386 | H21: 2271.666314 | I21: 0.3140673328 | J21: 908.6665255 | K21: 82.65123664 | L21: 1.377520611 | M21: 10.99398584 | O21: 1362.999788 | P21: 204.4499682 | Q21: 613.3499047 | R21: 204.4499682 | S21: 68.14998941
A22: 21 | B22: 0.000925915802 | C22: 0.01277637291 | D22: 0.002314789505 | E22: 0.03194093228 | F22: 3095.74757 | G22: 35892.14143 | H22: 2321.836064 | I22: 0.3000032802 | J22: 928.7344257 | K22: 84.05630766 | L22: 1.400938461 | M22: 11.04895577 | O22: 1393.101639 | P22: 208.9652458 | Q22: 626.8957373 | R22: 208.9652458 | S22: 69.65508193
A23: 22 | B23: 0.0009693224224 | C23: 0.01374569533 | D23: 0.002423306056 | E23: 0.03436423834 | F23: 3312.4499 | G23: 39204.59133 | H23: 2373.113814 | I23: 0.2865690212 | J23: 949.2455255 | K23: 85.48526489 | L23: 1.424754415 | M23: 11.10420055 | O23: 1423.868288 | P23: 213.5802432 | Q23: 640.7407297 | R23: 213.5802432 | S23: 71.19341441
A24: 23 | B24: 0.001014763931 | C24: 0.01476045927 | D24: 0.002536909826 | E24: 0.03690114816 | F24: 3544.321393 | G24: 42748.91272 | H24: 2425.524032 | I24: 0.2737363533 | J24: 970.2096129 | K24: 86.93851439 | L24: 1.44897524 | M24: 11.15972155 | O24: 1455.314419 | P24: 218.2971629 | Q24: 654.8914887 | R24: 218.2971629 | S24: 72.76572097
A25: 24 | B25: 0.001062335721 | C25: 0.01582279499 | D25: 0.002655839303 | E25: 0.03955698747 | F25: 3792.42389 | G25: 46541.33661 | H25: 2479.09173 | I25: 0.261478337 | J25: 991.6366922 | K25: 88.41646914 | L25: 1.473607819 | M25: 11.21552016 | O25: 1487.455038 | P25: 223.1182557 | Q25: 669.3547672 | R25: 223.1182557 | S25: 74.37275191
A26: 25 | B26: 0.001112137662 | C26: 0.01693493265 | D26: 0.002780344154 | E26: 0.04233733162 | F26: 4057.893563 | G26: 50599.23017 | H26: 2533.842471 | I26: 0.2497692394 | J26: 1013.536989 | K26: 89.91954911 | L26: 1.498659152 | M26: 11.27159776 | O26: 1520.305483 | P26: 228.0458224 | Q26: 684.1374673 | R26: 228.0458224 | S26: 76.01527414
A27: 26 | B27: 0.0011642743 | C27: 0.01809920695 | D27: 0.00291068575 | E27: 0.04524801737 | F27: 4341.946112 | G27: 54941.17628 | H27: 2589.802382 | I27: 0.2385844794 | J27: 1035.920953 | K27: 91.44818145 | L27: 1.524136357 | M27: 11.32795575 | O27: 1553.881429 | P27: 233.0822144 | Q27: 699.2466432 | R27: 233.0822144 | S27: 77.69407147
A28: 27 | B28: 0.001218855086 | C28: 0.01931806203 | D28: 0.003047137716 | E28: 0.04829515509 | F28: 4645.88234 | G28: 59587.05862 | H28: 2646.998168 | I28: 0.2279005773 | J28: 1058.799267 | K28: 93.00280053 | L28: 1.550046676 | M28: 11.38459553 | O28: 1588.198901 | P28: 238.2298351 | Q28: 714.6895053 | R28: 238.2298351 | S28: 79.40994504
A29: 28 | B29: 0.001275994602 | C29: 0.02059405664 | D29: 0.003189986504 | E29: 0.05148514159 | F29: 4971.094104 | G29: 64558.15273 | H29: 2705.457122 | I29: 0.2176951042 | J29: 1082.182849 | K29: 94.58384814 | L29: 1.576397469 | M29: 11.44151851 | O29: 1623.274273 | P29: 243.491141 | Q29: 730.4734231 | R29: 243.491141 | S29: 81.16371367
A30: 29 | B30: 0.001335812798 | C30: 0.02192986943 | D30: 0.003339531995 | E30: 0.05482467358 | F30: 5319.070691 | G30: 69877.22342 | H30: 2765.207143 | I30: 0.2079466361 | J30: 1106.082857 | K30: 96.19177356 | L30: 1.603196226 | M30: 11.4987261 | O30: 1659.124286 | P30: 248.8686429 | Q30: 746.6059286 | R30: 248.8686429 | S30: 82.95621429
A31: 30 | B31: 0.001398435251 | C31: 0.02332830469 | D31: 0.003496088129 | E31: 0.05832076171 | F31: 5691.405639 | G31: 75568.62906 | H31: 2826.276743 | I31: 0.198634708 | J31: 1130.510697 | K31: 97.82703371 | L31: 1.630450562 | M31: 11.55621973 | O31: 1695.766046 | P31: 254.3649069 | Q31: 763.0947206 | R31: 254.3649069 | S31: 84.78830228
A32: 31 | B32: 0.001463993424 | C32: 0.02479229811 | D32: 0.003659983561 | E32: 0.06198074527 | F32: 6089.804034 | G32: 81658.43309 | H32: 2888.695065 | I32: 0.1897397715 | J32: 1155.478026 | K32: 99.49009328 | L32: 1.658168221 | M32: 11.61400083 | O32: 1733.217039 | P32: 259.9825558 | Q32: 779.9476675 | R32: 259.9825558 | S32: 86.66085194
A33: 32 | B33: 0.001532624942 | C33: 0.02632492305 | D33: 0.003831562355 | E33: 0.06581230763 | F33: 6516.090317 | G33: 88174.52341 | H33: 2952.491895 | I33: 0.1812431536 | J33: 1180.996758 | K33: 101.1814249 | L33: 1.686357081 | M33: 11.67207083 | O33: 1771.495137 | P33: 265.7242706 | Q33: 797.1728117 | R33: 265.7242706 | S33: 88.57475685
A34: 33 | B34: 0.001604473882 | C34: 0.02792939693 | D34: 0.004011184706 | E34: 0.06982349234 | F34: 6972.216639 | G34: 95146.74005 | H34: 3017.697679 | I34: 0.1731270174 | J34: 1207.079071 | K34: 102.9015091 | L34: 1.715025152 | M34: 11.73043119 | O34: 1810.618607 | P34: 271.5927911 | Q34: 814.7783732 | R34: 271.5927911 | S34: 90.53093036
A35: 34 | B35: 0.001679691077 | C35: 0.02960908801 | D35: 0.004199227692 | E35: 0.07402272003 | F35: 7460.271803 | G35: 102607.0119 | H35: 3084.343532 | I35: 0.1653743249 | J35: 1233.737413 | K35: 104.6508347 | L35: 1.744180579 | M35: 11.78908334 | O35: 1850.606119 | P35: 277.5909179 | Q35: 832.7727536 | R35: 277.5909179 | S35: 92.53030596
A36: 35 | B36: 0.001758434428 | C36: 0.03136752244 | D36: 0.004396086069 | E36: 0.0784188061 | F36: 7982.49083 | G36: 110589.5027 | H36: 3152.461259 | I36: 0.1579688008 | J36: 1260.984504 | K36: 106.4298989 | L36: 1.773831649 | M36: 11.84802876 | O36: 1891.476755 | P36: 283.7215133 | Q36: 851.1645399 | R36: 283.7215133 | S36: 94.57383776
A37: 36 | B37: 0.00184086924 | C37: 0.03320839168 | D37: 0.004602173101 | E37: 0.0830209792 | F37: 8541.265188 | G37: 119130.7679 | H37: 3222.083366 | I37: 0.1508948988 | J37: 1288.833346 | K37: 108.2392072 | L37: 1.803986787 | M37: 11.9072689 | O37: 1933.250019 | P37: 289.9875029 | Q37: 869.9625087 | R37: 289.9875029 | S37: 96.66250097
A38: 37 | B38: 0.001927168569 | C38: 0.03513556025 | D38: 0.004817921424 | E38: 0.08783890062 | F38: 9139.153751 | G38: 128269.9216 | H38: 3293.243077 | I38: 0.1441377688 | J38: 1317.297231 | K38: 110.0792737 | L38: 1.834654562 | M38: 11.96680525 | O38: 1975.945846 | P38: 296.3918769 | Q38: 889.1756307 | R38: 296.3918769 | S38: 98.79729231
A39: 38 | B39: 0.002017513582 | C39: 0.03715307383 | D39: 0.005043783955 | E39: 0.09288268458 | F39: 9778.894513 | G39: 138048.8161 | H39: 3365.97435 | I39: 0.1376832257 | J39: 1346.38974 | K39: 111.9506214 | L39: 1.86584369 | M39: 12.02663927 | O39: 2019.58461 | P39: 302.9376915 | Q39: 908.8130746 | R39: 302.9376915 | S39: 100.9792305
A40: 39 | B40: 0.002112093938 | C40: 0.03926516777 | D40: 0.005280234845 | E40: 0.09816291942 | F40: 10463.41713 | G40: 148512.2333 | H40: 3440.311894 | I40: 0.1315177194 | J40: 1376.124757 | K40: 113.853782 | L40: 1.897563033 | M40: 12.08677247 | O40: 2064.187136 | P40: 309.6280704 | Q40: 928.8842113 | R40: 309.6280704 | S40: 103.2093568
A41: 40 | B41: 0.002211108189 | C41: 0.04147627596 | D41: 0.005527770473 | E41: 0.1036906899 | F41: 11195.85633 | G41: 159708.0896 | H41: 3516.291182 | I41: 0.1256283067 | J41: 1406.516473 | K41: 115.7892963 | L41: 1.929821604 | M41: 12.14720633 | O41: 2109.774709 | P41: 316.4662064 | Q41: 949.3986191 | R41: 316.4662064 | S41: 105.4887355
A42: 41 | B42: 0.002314764195 | C42: 0.04379104015 | D42: 0.005786910488 | E42: 0.1094776004 | F42: 11979.56627 | G42: 171687.6559 | H42: 3593.948473 | I42: 0.1200026242 | J42: 1437.579389 | K42: 117.7577143 | L42: 1.962628571 | M42: 12.20794236 | O42: 2156.369084 | P42: 323.4553625 | Q42: 970.3660876 | R42: 323.4553625 | S42: 107.8184542
A43: 42 | B43: 0.00242327956 | C43: 0.04621431971 | D43: 0.0060581989 | E43: 0.1155357993 | F43: 12818.13591 | G43: 184505.7918 | H43: 3673.320825 | I43: 0.1146288618 | J43: 1469.32833 | K43: 119.7595954 | L43: 1.995993257 | M43: 12.26898208 | O43: 2203.992495 | P43: 330.5988742 | Q43: 991.7966227 | R43: 330.5988742 | S43: 110.1996247
A44: 43 | B44: 0.002536882088 | C44: 0.0487512018 | D44: 0.00634220522 | E44: 0.1218780045 | F44: 13715.40542 | G44: 198221.1972 | H44: 3754.446115 | I44: 0.1094957385 | J44: 1501.778446 | K44: 121.7955086 | L44: 2.029925143 | M44: 12.33032699 | O44: 2252.667669 | P44: 337.9001504 | Q44: 1013.700451 | R44: 337.9001504 | S44: 112.6333835
A45: 44 | B45: 0.002655810265 | C45: 0.05140701207 | D45: 0.006639525661 | E45: 0.1285175302 | F45: 14675.4838 | G45: 212896.681 | H45: 3837.363058 | I45: 0.1045924784 | J45: 1534.945223 | K45: 123.8660322 | L45: 2.06443387 | M45: 12.39197862 | O45: 2302.417835 | P45: 345.3626752 | Q45: 1036.088026 | R45: 345.3626752 | S45: 115.1208917
A46: 45 | B46: 0.002780313754 | C46: 0.05418732582 | D46: 0.006950784385 | E46: 0.1354683145 | F46: 15702.76767 | G46: 228599.4487 | H46: 3922.111221 | I46: 0.09990878813 | J46: 1568.844488 | K46: 125.9717547 | L46: 2.099529246 | M46: 12.45393852 | O46: 2353.266732 | P46: 352.9900099 | Q46: 1058.97003 | R46: 352.9900099 | S46: 117.6633366
A47: 46 | B47: 0.002910653925 | C47: 0.05709797974 | D47: 0.007276634812 | E47: 0.1427449494 | F47: 16801.96141 | G47: 245401.4101 | H47: 4008.731047 | I47: 0.09543483525 | J47: 1603.492419 | K47: 128.1132746 | L47: 2.135221243 | M47: 12.51620821 | O47: 2405.238628 | P47: 360.7857942 | Q47: 1082.357383 | R47: 360.7857942 | S47: 120.2619314
A48: 47 | B48: 0.003047104399 | C48: 0.06014508414 | D48: 0.007617760997 | E48: 0.1503627104 | F48: 17978.09871 | G48: 263379.5088 | H48: 4097.263872 | I48: 0.09116122765 | J48: 1638.905549 | K48: 130.2912002 | L48: 2.171520004 | M48: 12.57878925 | O48: 2458.358323 | P48: 368.7537485 | Q48: 1106.261245 | R48: 368.7537485 | S48: 122.9179162
A49: 48 | B49: 0.003189951625 | C49: 0.06333503577 | D49: 0.007974879063 | E49: 0.1583375894 | F49: 19236.56561 | G49: 282616.0744 | H49: 4187.751945 | I49: 0.0870789938 | J49: 1675.100778 | K49: 132.5061506 | L49: 2.208435844 | M49: 12.64168319 | O49: 2512.651167 | P49: 376.897675 | Q49: 1130.693025 | R49: 376.897675 | S49: 125.6325583
A50: 49 | B50: 0.003339495481 | C50: 0.06667453125 | D50: 0.008348738703 | E50: 0.1666863281 | F50: 20583.12521 | G50: 303199.1996 | H50: 4280.238446 | I50: 0.0831795639 | J50: 1712.095379 | K50: 134.7587552 | L50: 2.245979254 | M50: 12.70489161 | O50: 2568.143068 | P50: 385.2214602 | Q50: 1155.664381 | R50: 385.2214602 | S50: 128.4071534
A51: 50 | B51: 0.003496049903 | C51: 0.07017058115 | D51: 0.008740124757 | E51: 0.1754264529 | F51: 22023.94397 | G51: 325223.1436 | H51: 4374.767513 | I51: 0.07945475194 | J51: 1749.907005 | K51: 137.049654 | L51: 2.284160901 | M51: 12.76841607 | O51: 2624.860508 | P51: 393.7290761 | Q51: 1181.187228 | R51: 393.7290761 | S51: 131.2430254
A52: 51 | B52: 0.003659943543 | C52: 0.07383052469 | D52: 0.009149858857 | E52: 0.1845763117 | F52: 23565.62005 | G52: 348788.7636 | H52: 4471.384253 | I52: 0.07589673844 | J52: 1788.553701 | K52: 139.3794982 | L52: 2.322991636 | M52: 12.83225815 | O52: 2682.830552 | P52: 402.4245828 | Q52: 1207.273748 | R52: 402.4245828 | S52: 134.1415276
A53: 52 | B53: 0.003831520461 | C53: 0.07766204516 | D53: 0.009578801153 | E53: 0.1941551129 | F53: 25215.21345 | G53: 374003.9771 | H53: 4570.134774 | I53: 0.07249805412 | J53: 1828.05391 | K53: 141.7489496 | L53: 2.362482494 | M53: 12.89641944 | O53: 2742.080865 | P53: 411.3121297 | Q53: 1233.936389 | R53: 411.3121297 | S53: 137.1040432
A54: 53 | B54: 0.004011140848 | C54: 0.081673186 | D54: 0.01002785212 | E54: 0.204182965 | F54: 26980.2784 | G54: 400984.2555 | H54: 4671.066201 | I54: 0.06925156416 | J54: 1868.42648 | K54: 144.1586818 | L54: 2.402644696 | M54: 12.96090154 | O54: 2802.63972 | P54: 420.3959581 | Q54: 1261.187874 | R54: 420.3959581 | S54: 140.131986
A55: 54 | B55: 0.004199181778 | C55: 0.08587236778 | D55: 0.01049795444 | E55: 0.2146809195 | F55: 28868.89788 | G55: 429853.1534 | H55: 4774.226698 | I55: 0.06615045323 | J55: 1909.690679 | K55: 146.6093794 | L55: 2.443489656 | M55: 13.02570604 | O55: 2864.536019 | P55: 429.6804028 | Q55: 1289.041208 | R55: 429.6804028 | S55: 143.2268009
A56: 55 | B56: 0.004396038003 | C56: 0.09026840578 | D56: 0.01099009501 | E56: 0.2256710145 | F56: 30889.72074 | G56: 460742.8741 | H56: 4879.665494 | I56: 0.0631882112 | J56: 1951.866198 | K56: 149.1017388 | L56: 2.48502898 | M56: 13.09083458 | O56: 2927.799297 | P56: 439.1698945 | Q56: 1317.509683 | R56: 439.1698945 | S56: 146.3899648
A57: 56 | B57: 0.004602122782 | C57: 0.09487052857 | D57: 0.01150530695 | E57: 0.2371763214 | F57: 33052.00119 | G57: 493794.8753 | H57: 4987.432907 | I57: 0.06035861948 | J57: 1994.973163 | K57: 151.6364684 | L57: 2.527274473 | M57: 13.15628875 | O57: 2992.459744 | P57: 448.8689616 | Q57: 1346.606885 | R57: 448.8689616 | S57: 149.6229872
A58: 57 | B58: 0.004817868745 | C58: 0.09968839731 | D58: 0.01204467186 | E58: 0.2492209933 | F58: 35365.64127 | G58: 529160.5166 | H58: 5097.580363 | I58: 0.05765573794 | J58: 2039.032145 | K58: 154.2142883 | L58: 2.570238139 | M58: 13.22207019 | O58: 3058.548218 | P58: 458.7822326 | Q58: 1376.346698 | R58: 458.7822326 | S58: 152.9274109
A59: 58 | B59: 0.005043728806 | C59: 0.1047321261 | D59: 0.01260932202 | E59: 0.2618303153 | F59: 37841.23616 | G59: 567001.7527 | H59: 5210.160425 | I59: 0.05507389244 | J59: 2084.06417 | K59: 156.8359312 | L59: 2.613932187 | M59: 13.28818054 | O59: 3126.096255 | P59: 468.9144382 | Q59: 1406.743315 | R59: 468.9144382 | S59: 156.3048127
A60: 59 | B60: 0.005280177111 | C60: 0.1100123032 | D60: 0.01320044278 | E60: 0.2750307581 | F60: 40490.12269 | G60: 607491.8754 | H60: 5325.226818 | I60: 0.05260766295 | J60: 2130.090727 | K60: 159.5021421 | L60: 2.658369035 | M60: 13.35462145 | O60: 3195.136091 | P60: 479.2704136 | Q60: 1437.811241 | R60: 479.2704136 | S60: 159.7568045
A61: 60 | B61: 0.005527710033 | C61: 0.1155400133 | D61: 0.01381927508 | E61: 0.2888500332 | F61: 43324.43128 | G61: 650816.3067 | H61: 5442.834452 | I61: 0.05025187213 | J61: 2177.133781 | K61: 162.2136785 | L61: 2.703561308 | M61: 13.42139455 | O61: 3265.700671 | P61: 489.8551007 | Q61: 1469.565302 | R61: 489.8551007 | S61: 163.2850336
A62: 61 | B62: 0.005786847215 | C62: 0.1213268605 | D62: 0.01446711804 | E62: 0.3033171512 | F62: 46357.14147 | G62: 697173.4481 | H62: 5563.039451 | I62: 0.04800157451 | J62: 2225.21578 | K62: 164.971311 | L62: 2.74952185 | M62: 13.48850153 | O62: 3337.823671 | P62: 500.6735506 | Q62: 1502.020652 | R62: 500.6735506 | S62: 166.8911835
A63: 62 | B63: 0.00605813266 | C63: 0.1273849931 | D63: 0.01514533165 | E63: 0.3184624828 | F63: 49602.14137 | G63: 746775.5895 | H63: 5685.899177 | I63: 0.04585204606 | J63: 2274.359671 | K63: 167.7758233 | L63: 2.796263722 | M63: 13.55594403 | O63: 3411.539506 | P63: 511.730926 | Q63: 1535.192778 | R63: 511.730926 | S63: 170.5769753
A64: 63 | B64: 0.006342135875 | C64: 0.133727129 | D64: 0.01585533969 | E64: 0.3343178225 | F64: 53074.29127 | G64: 799849.8808 | H64: 5811.472261 | I64: 0.0437987743 | J64: 2324.588904 | K64: 170.6280123 | L64: 2.843800205 | M64: 13.62372375 | O64: 3486.883356 | P64: 523.0325035 | Q64: 1569.09751 | R64: 523.0325035 | S64: 174.3441678
A65: 64 | B65: 0.006639453066 | C65: 0.1403665821 | D65: 0.01659863266 | E65: 0.3509164552 | F65: 56789.49165 | G65: 856639.3724 | H65: 5939.818626 | I65: 0.04183744881 | J65: 2375.92745 | K65: 173.5286885 | L65: 2.892144809 | M65: 13.69184237 | O65: 3563.891175 | P65: 534.5836763 | Q65: 1603.751029 | R65: 534.5836763 | S65: 178.1945588
A66: 65 | B66: 0.006950708386 | C66: 0.1473172905 | D66: 0.01737677096 | E66: 0.3682932262 | F66: 60764.75607 | G66: 917404.1285 | H66: 6070.99952 | I66: 0.03996395221 | J66: 2428.399808 | K66: 176.4786762 | L66: 2.94131127 | M66: 13.76030158 | O66: 3642.599712 | P66: 546.3899568 | Q66: 1639.16987 | R66: 546.3899568 | S66: 182.1299856
A67: 66 | B67: =D67/2.5 -> 0.00727655525 | C67: 0.1545938457 | D67: =F67/J67/60/24 -> 0.01819138812 | E67: 0.3864846143 | F67: 65018.289 | G67: 982422.4175 | H67: 6205.077544 | I67: =J67/F67 -> 0.03817435149 | J67: =K67*M67 -> 2482.031018 | K67: =L67*60 -> 179.4788137 | L67: 2.991313562 | M67: 13.82910309 | O67: =H67-J67 -> 3723.046527 | P67: =O67*0.15 -> 558.456979 | Q67: =O67*0.45 -> 1675.370937 | R67: =O67*0.15 -> 558.456979 | S67: =O67*0.05 -> 186.1523263
A68: 67 | B68: 0.007617677705 | C68: =B68+C67 -> 0.1622115234 | D68: 0.01904419426 | E68: 0.4055288085 | F68: =F67*1.07 -> 69569.56923 | G68: =F68+G67 -> 1051991.987 | H68: =F68/B68/60/24 -> 6342.116682 | I68: 0.03646488976 | J68: 2536.846673 | K68: 182.5299536 | L68: =L67*1.017 -> 3.042165893 | M68: =M67*1.005 -> 13.89824861 | O68: 3805.270009 | P68: 570.7905014 | Q68: 1712.371504 | R68: 570.7905014 | S68: 190.2635005
A69: 68 | B69: 0.007974791866 | C69: 0.1701863153 | D69: 0.01993697967 | E69: =D69+E68 -> 0.4254657882 | F69: 74439.43907 | G69: 1126431.426 | H69: 6482.182329 | I69: 0.03483197837 | J69: 2592.872932 | K69: 185.6329628 | L69: 3.093882713 | M69: 13.96773985 | O69: 3889.309397 | P69: 583.3964096 | Q69: 1750.189229 | R69: 583.3964096 | S69: 194.4654699
A70: 69 | B70: 0.008348647419 | C70: 0.1785349627 | D70: 0.02087161855 | E70: 0.4463374068 | F70: 79650.19981 | G70: 1206081.626 | H70: 6625.341326 | I70: 0.03327218936 | J70: 2650.13653 | K70: 188.7887231 | L70: 3.146478719 | M70: 14.03757855 | O70: 3975.204795 | P70: 596.2807193 | Q70: 1788.842158 | R70: 596.2807193 | S70: 198.7602398
A71: 70 | B71: 0.008740029193 | C71: 0.1872749919 | D71: 0.02185007298 | E71: 0.4681874797 | F71: 85225.71379 | G71: 1291307.339 | H71: 6771.661989 | I71: 0.03178224828 | J71: 2708.664795 | K71: 191.9981314 | L71: 3.199968857 | M71: 14.10776644 | O71: 4062.997193 | P71: 609.449579 | Q71: 1828.348737 | R71: 609.449579 | S71: 203.1498597
A72: 71 | B72: 0.009149758813 | C72: 0.1964247507 | D72: 0.02287439703 | E72: 0.4910618768 | F72: 91191.51376 | G72: 1382498.853 | H72: 6921.214144 | I72: 0.03035902732 | J72: 2768.485657 | K72: 195.2620997 | L72: 3.254368328 | M72: 14.17830527 | O72: 4152.728486 | P72: 622.9092729 | Q72: 1868.727819 | R72: 622.9092729 | S72: 207.6364243
A73: 72 | B73: 0.00957869642 | C73: 0.2060034471 | D73: 0.02394674105 | E73: 0.5150086178 | F73: 97574.91972 | G73: 1480073.773 | H73: 7074.069158 | I73: 0.02899953873 | J73: 2829.627663 | K73: 198.5815554 | L73: 3.309692589 | M73: 14.2491968 | O73: 4244.441495 | P73: 636.6662242 | Q73: 1909.998673 | R73: 636.6662242 | S73: 212.2220747
A74: 73 | B74: 0.01002774248 | C74: 0.2160311896 | D74: 0.02506935619 | E74: 0.540077974 | F74: 104405.1641 | G74: 1584478.937 | H74: 7230.299975 | I74: 0.02770092854 | J74: 2892.11999 | K74: 201.9574418 | L74: 3.365957363 | M74: 14.32044278 | O74: 4338.179985 | P74: 650.7269978 | Q74: 1952.180993 | R74: 650.7269978 | S74: 216.9089993
A75: 74 | B75: 0.01049783966 | C75: 0.2265290293 | D75: 0.02624459915 | E75: 0.5663225732 | F75: 111713.5256 | G75: 1696192.463 | H75: 7389.98115 | I75: 0.02646047061 | J75: 2955.99246 | K75: 205.3907183 | L75: 3.423178638 | M75: 14.392045 | O75: 4433.98869 | P75: 665.0983035 | Q75: 1995.294911 | R75: 665.0983035 | S75: 221.6994345
A76: 75 | B76: 0.01098997484 | C76: 0.2375190041 | D76: 0.02747493711 | E76: 0.5937975103 | F76: 119533.4724 | G76: 1815725.935 | H76: 7553.188884 | I76: 0.02527556084 | J76: 3021.275554 | K76: 208.8823605 | L76: 3.481372675 | M76: 14.46400522 | O76: 4531.91333 | P76: 679.7869996 | Q76: 2039.360999 | R76: 679.7869996 | S76: 226.5956665
A77: 76 | B77: 0.01150518116 | C77: 0.2490241853 | D77: 0.02876295289 | E77: 0.6225604632 | F77: 127900.8154 | G77: 1943626.75 | H77: 7720.001061 | I77: 0.02414371178 | J77: 3088.000424 | K77: 212.4333606 | L77: 3.540556011 | M77: 14.53632525 | O77: 4632.000636 | P77: 694.8000955 | Q77: 2084.400286 | R77: 694.8000955 | S77: 231.6000318
A78: 77 | B78: 0.01204454017 | C78: 0.2610687254 | D78: 0.03011135042 | E78: 0.6526718136 | F78: 136853.8725 | G78: 2080480.623 | H78: 7890.497284 | I78: 0.02306254734 | J78: 3156.198914 | K78: 216.0447278 | L78: 3.600745463 | M78: 14.60900688 | O78: 4734.29837 | P78: 710.1447556 | Q78: 2130.434267 | R78: 710.1447556 | S78: 236.7149185
A79: 78 | B79: 0.01260918415 | C79: 0.2736779096 | D79: 0.03152296037 | E79: 0.6841947739 | F79: 146433.6436 | G79: 2226914.267 | H79: 8064.758917 | I79: 0.02202979785 | J79: 3225.903567 | K79: 219.7174881 | L79: 3.661958136 | M79: 14.68205191 | O79: 4838.85535 | P79: 725.8283025 | Q79: 2177.484907 | R79: 725.8283025 | S79: 241.9427675
A80: 79 | B80: 0.01320029845 | C80: 0.286878208 | D80: 0.03300074612 | E80: 0.7171955201 | F80: 156683.9987 | G80: 2383598.265 | H80: 8242.869117 | I80: 0.02104329526 | J80: 3297.147647 | K80: 223.4526854 | L80: 3.724211424 | M80: 14.75546217 | O80: 4945.72147 | P80: 741.8582205 | Q80: 2225.574662 | R80: 741.8582205 | S80: 247.2860735
A81: 80 | B81: 0.01381912398 | C81: 0.300697332 | D81: 0.03454780996 | E81: 0.75174333 | F81: 167651.8786 | G81: 2551250.144 | H81: 8424.912882 | I81: 0.02010096864 | J81: 3369.965153 | K81: 227.2513811 | L81: 3.787523018 | M81: 14.82923948 | O81: 5054.947729 | P81: 758.2421593 | Q81: 2274.726478 | R81: 758.2421593 | S81: 252.7473864
A82: 81 | B82: 0.01446695985 | C82: 0.3151642919 | D82: 0.03616739964 | E82: 0.7879107297 | F82: 179387.5101 | G82: 2730637.654 | H82: 8610.977083 | I82: 0.01920083975 | J82: 3444.390833 | K82: 231.1146546 | L82: 3.85191091 | M82: 14.90338568 | O82: 5166.58625 | P82: 774.9879374 | Q82: 2324.963812 | R82: 774.9879374 | S82: 258.3293125
A83: 82 | B83: 0.01514516605 | C83: 0.3303094579 | D83: 0.03786291513 | E83: 0.8257736448 | F83: 191944.6358 | G83: 2922582.29 | H83: 8801.150512 | I83: 0.01834101896 | J83: 3520.460205 | K83: 235.0436037 | L83: 3.917393395 | M83: 14.97790261 | O83: 5280.690307 | P83: 792.103546 | Q83: 2376.310638 | R83: 792.103546 | S83: 264.0345153
A84: 83 | B84: 0.01585516633 | C84: 0.3461646242 | D84: 0.03963791582 | E84: 0.8654115606 | F84: 205380.7603 | G84: 3127963.05 | H84: 8995.523921 | I84: 0.01751970128 | J84: 3598.209568 | K84: 239.039345 | L84: 3.983989083 | M84: 15.05279212 | O84: 5397.314352 | P84: 809.5971528 | Q84: 2428.791459 | R84: 809.5971528 | S84: 269.8657176
A85: 84 | B85: 0.01659845118 | C85: 0.3627630754 | D85: 0.04149612794 | E85: 0.9069076886 | F85: 219757.4135 | G85: 3347720.463 | H85: 9194.190066 | I85: 0.01673516251 | J85: 3677.676027 | K85: 243.1030138 | L85: 4.051716897 | M85: 15.12805608 | O85: 5516.51404 | P85: 827.477106 | Q85: 2482.431318 | R85: 827.477106 | S85: 275.825702
A86: 85 | B86: 0.01737658097 | C86: 0.3801396564 | D86: 0.04344145242 | E86: 0.950349141 | F86: 235140.4324 | G86: 3582860.896 | H86: 9397.243754 | I86: 0.01598575567 | J86: 3758.897502 | K86: 247.2357651 | L86: 4.120596084 | M86: 15.20369636 | O86: 5638.346252 | P86: 845.7519379 | Q86: 2537.255814 | R86: 845.7519379 | S86: 281.9173126
A87: 86 | B87: 0.01819118922 | C87: 0.3983308456 | D87: 0.04547797305 | E87: 0.995827114 | F87: 251600.2627 | G87: 3834461.158 | H87: 9604.781882 | I87: 0.01526990756 | J87: 3841.912753 | K87: 251.4387731 | L87: 4.190646218 | M87: 15.27971484 | O87: 5762.869129 | P87: 864.4303694 | Q87: 2593.291108 | R87: 864.4303694 | S87: 288.1434565
A88: 87 | B88: 0.01904398604 | C88: 0.4173748316 | D88: 0.04760996509 | E88: 1.043437079 | F88: 269212.2811 | G88: 4103673.44 | H88: 9816.90349 | I88: 0.01458611539 | J88: 3926.761396 | K88: 255.7132322 | L88: 4.261887204 | M88: 15.35611342 | O88: 5890.142094 | P88: 883.5213141 | Q88: 2650.563942 | R88: 883.5213141 | S88: 294.5071047
A89: 88 | B89: 0.01993676168 | C89: 0.4373115933 | D89: 0.04984190419 | E89: 1.093278983 | F89: 288057.1408 | G89: 4391730.58 | H89: 10033.7098 | I89: 0.01393294369 | J89: 4013.483921 | K89: 260.0603572 | L89: 4.334339286 | M89: 15.43289398 | O89: 6020.225882 | P89: 903.0338823 | Q89: 2709.101647 | R89: 903.0338823 | S89: 301.0112941
A90: 89 | B90: 0.02087139034 | C90: 0.4581829837 | D90: 0.05217847585 | E90: 1.145457459 | F90: 308221.1406 | G90: 4699951.721 | H90: 10255.30428 | I90: 0.01330902126 | J90: 4102.121714 | K90: 264.4813832 | L90: 4.408023054 | M90: 15.51005845 | O90: 6153.182571 | P90: 922.9773856 | Q90: 2768.932157 | R90: 922.9773856 | S90: 307.6591285
A91: 90 | B91: 0.02184983408 | C91: 0.4800328177 | D91: 0.05462458519 | E91: 1.200082044 | F91: 329796.6205 | G91: 5029748.341 | H91: 10481.79268 | I91: 0.01271303831 | J91: 4192.717072 | K91: 268.9775667 | L91: 4.482959446 | M91: 15.58760875 | O91: 6289.075608 | P91: 943.3613412 | Q91: 2830.084024 | R91: 943.3613412 | S91: 314.4537804
A92: 91 | B92: 0.02287414693 | C92: 0.5029069647 | D92: 0.05718536732 | E92: 1.257267412 | F92: 352882.3839 | G92: 5382630.725 | H92: 10713.28307 | I92: 0.01214374371 | J92: 4285.313228 | K92: 273.5501854 | L92: 4.559169756 | M92: 15.66554679 | O92: 6427.969843 | P92: 964.1954764 | Q92: 2892.586429 | R92: 964.1954764 | S92: 321.3984921
A93: 92 | B93: 0.02394647922 | C93: 0.5268534439 | D93: 0.05986619805 | E93: 1.31713361 | F93: 377584.1508 | G93: 5760214.876 | H93: 10949.88593 | I93: 0.01159994232 | J93: 4379.954371 | K93: 278.2005385 | L93: 4.636675642 | M93: 15.74387452 | O93: 6569.931557 | P93: 985.4897335 | Q93: 2956.469201 | R93: 985.4897335 | S93: 328.4965778
A94: 93 | B94: 0.02506908209 | C94: 0.551922526 | D94: 0.06267270521 | E94: 1.379806315 | F94: 404015.0413 | G94: 6164229.917 | H94: 11191.71416 | I94: 0.01108049257 | J94: 4476.685663 | K94: 282.9299477 | L94: 4.715499128 | M94: 15.8225939 | O94: 6715.028495 | P94: 1007.254274 | Q94: 3021.762823 | R94: 1007.254274 | S94: 335.7514248
A95: 94 | B95: 0.0262443122 | C95: 0.5781668382 | D95: 0.06561078049 | E95: 1.445417095 | F95: 432296.0942 | G95: 6596526.012 | H95: 11438.88317 | I95: 0.01058430397 | J95: 4575.553266 | K95: 287.7397568 | L95: 4.795662613 | M95: 15.90170687 | O95: 6863.329899 | P95: 1029.499485 | Q95: 3088.498455 | R95: 1029.499485 | S95: 343.166495
A96: 95 | B96: 0.0274746367 | C96: 0.6056414749 | D96: 0.06868659175 | E96: 1.514103687 | F96: 462556.8208 | G96: 7059082.832 | H96: 11691.5109 | I96: 0.01011033488 | J96: 4676.60436 | K96: 292.6313327 | L96: 4.877188878 | M96: 15.9812154 | O96: 7014.90654 | P96: 1052.235981 | Q96: 3156.707943 | R96: 1052.235981 | S96: 350.745327
A97: 96 | B97: 0.0287626384 | C97: 0.6344041133 | D97: 0.071906596 | E97: 1.586010283 | F97: 494935.7983 | G97: 7554018.631 | H97: 11949.71792 | I97: 0.009657590306 | J97: 4779.887167 | K97: 297.6060653 | L97: 4.960101089 | M97: 16.06112148 | O97: 7169.830751 | P97: 1075.474613 | Q97: 3226.423838 | R97: 1075.474613 | S97: 358.4915376
A98: 97 | B98: 0.03011102118 | C98: 0.6645151345 | D98: 0.07527755296 | E98: 1.661287836 | F98: 529581.3042 | G98: 8083599.935 | H98: 12213.62744 | I98: 0.009225119802 | J98: 4885.450976 | K98: 302.6653684 | L98: 5.044422807 | M98: 16.14142708 | O98: 7328.176463 | P98: 1099.22647 | Q98: 3297.679409 | R98: 1099.22647 | S98: 366.4088232
A99: 98 | B99: 0.0315226157 | C99: 0.6960377501 | D99: 0.07880653925 | E99: 1.740094375 | F99: 566651.9954 | G99: 8650251.93 | H99: 12483.3654 | I99: 0.008812015488 | J99: 4993.34616 | K99: 307.8106797 | L99: 5.130177995 | M99: 16.22213422 | O99: 7490.019241 | P99: 1123.502886 | Q99: 3370.508658 | R99: 1123.502886 | S99: 374.500962
A100: 99 | B100: 0.03300038529 | C100: 0.7290381354 | D100: 0.08250096322 | E100: 1.822595339 | F100: 606317.6351 | G100: 9256569.565 | H100: 12759.06053 | I100: 0.008417410141 | J100: 5103.62421 | K100: 313.0434612 | L100: 5.217391021 | M100: 16.30324489 | O100: 7655.436315 | P100: 1148.315447 | Q100: 3444.946342 | R100: 1148.315447 | S100: 382.7718158
A101: 100 | B101: 0.03454743222 | C101: 0.7635855677 | D101: 0.08636858055 | E101: 1.908963919 | F101: 648759.8696 | G101: 9905329.435 | H101: 13040.84438 | I101: 0.008040475368 | J101: 5216.337751 | K101: 318.3652001 | L101: 5.306086668 | M101: 16.38476112 | O101: 7824.506626 | P101: 1173.675994 | Q101: 3521.027982 | R101: 1173.675994 | S101: 391.2253313
A102: 101 | B102: 0.03616700419 | C102: 0.7997525718 | D102: 0.09041751047 | E102: 1.99938143 | F102: 694173.0605 | G102: 10599502.5 | H102: 13328.85143 | I102: 0.007680419875 | J102: 5331.54057 | K102: 323.7774085 | L102: 5.396290142 | M102: 16.46668492 | O102: 7997.310855 | P102: 1199.596628 | Q102: 3598.789885 | R102: 1199.596628 | S102: 399.8655428
A103: 102 | B103: 0.03786250114 | C103: 0.837615073 | D103: 0.09465625286 | E103: 2.094037682 | F103: 742765.1747 | G103: 11342267.67 | H103: 13623.21911 | I103: 0.007336487802 | J103: 5449.287644 | K103: 329.2816244 | L103: 5.488027074 | M103: 16.54901835 | O103: 8173.931466 | P103: 1226.08972 | Q103: 3678.26916 | R103: 1226.08972 | S103: 408.6965733
A104: 103 | B104: 0.03963748242 | C104: 0.8772525554 | D104: 0.09909370606 | E104: 2.193131389 | F104: 794758.7369 | G104: 12137026.41 | H104: 13924.0879 | I104: 0.007007957135 | J104: 5569.635161 | K104: 334.8794121 | L104: 5.581323534 | M104: 16.63176344 | O104: 8354.452742 | P104: 1253.167911 | Q104: 3759.503734 | R104: 1253.167911 | S104: 417.7226371
A105: 104 | B105: 0.04149567423 | C105: 0.9187482296 | D105: 0.1037391856 | E105: 2.296870574 | F105: 850391.8485 | G105: 12987418.26 | H105: 14231.60138 | I105: 0.006694138195 | J105: 5692.640554 | K105: 340.5723621 | L105: 5.676206034 | M105: 16.71492225 | O105: 8538.960831 | P105: 1280.844125 | Q105: 3842.532374 | R105: 1280.844125 | S105: 426.9480415
A106: 105 | B106: 0.04344097744 | C106: 0.9621892071 | D106: 0.1086024436 | E106: 2.405473018 | F106: 909919.2779 | G106: 13897337.53 | H106: 14545.9063 | I106: 0.006394372184 | J106: 5818.362521 | K106: 346.3620922 | L106: 5.772701537 | M106: 16.79849687 | O106: 8727.543781 | P106: 1309.131567 | Q106: 3927.394701 | R106: 1309.131567 | S106: 436.377189
A107: 106 | B107: 0.0454774758 | C107: 1.007666683 | D107: 0.1136936895 | E107: 2.519166707 | F107: 973613.6273 | G107: 14870951.16 | H107: 14867.15264 | I107: 0.006108029807 | J107: 5946.861057 | K107: 352.2502478 | L107: 5.870837463 | M107: 16.88248935 | O107: 8920.291585 | P107: 1338.043738 | Q107: 4014.131213 | R107: 1338.043738 | S107: 446.0145793
A108: 107 | B108: 0.04760944453 | C108: 1.055276127 | D108: 0.1190236113 | E108: 2.638190319 | F108: 1041766.581 | G108: 15912717.74 | H108: 15195.49371 | I108: 0.005834509949 | J108: 6078.197483 | K108: 358.238502 | L108: 5.9706417 | M108: 16.9669018 | O108: 9117.296225 | P108: 1367.594434 | Q108: 4102.783301 | R108: 1367.594434 | S108: 455.8648112
A109: 108 | B109: 0.04984135923 | C109: 1.105117487 | D109: 0.1246033981 | E109: 2.762793717 | F109: 1114690.242 | G109: 17027407.98 | H109: 15531.08619 | I109: 0.005573238413 | J109: 6212.434475 | K109: 364.3285565 | L109: 6.072142609 | M109: 17.05173631 | O109: 9318.651712 | P109: 1397.797757 | Q109: 4193.39327 | R109: 1397.797757 | S109: 465.9325856
A110: 109 | B110: 0.05217790533 | C110: 1.157295392 | D110: 0.1304447633 | E110: 2.89323848 | F110: 1192718.559 | G110: 18220126.54 | H110: 15874.09022 | I110: 0.005323666713 | J110: 6349.63609 | K110: 370.522142 | L110: 6.175369033 | M110: 17.13699499 | O110: 9524.454135 | P110: 1428.66812 | Q110: 4286.004361 | R110: 1428.66812 | S110: 476.2227067
A111: 110 | B111: 0.05462398793 | C111: 1.21191938 | D111: 0.1365599698 | E111: 3.02979845 | F111: 1276208.858 | G111: 19496335.4 | H111: 16224.66951 | I111: 0.005085270928 | J111: 6489.867803 | K111: 376.8210184 | L111: 6.280350307 | M111: 17.22267996 | O111: 9734.801705 | P111: 1460.220256 | Q111: 4380.660767 | R111: 1460.220256 | S111: 486.7400852
A112: 111 | B112: 0.05718474206 | C112: 1.269104122 | D112: 0.1429618551 | E112: 3.172760305 | F112: 1365543.478 | G112: 20861878.88 | H112: 16582.99133 | I112: 0.004857550594 | J112: 6633.196533 | K112: 383.2269757 | L112: 6.387116262 | M112: 17.30879336 | O112: 9949.7948 | P112: 1492.46922 | Q112: 4477.40766 | R112: 1492.46922 | S112: 497.48974
A113: 112 | B113: 0.05986554348 | C113: 1.328969665 | D113: 0.1496638587 | E113: 3.322424164 | F113: 1461131.522 | G113: 22323010.4 | H113: 16949.2267 | I113: 0.004640027663 | J113: 6779.690679 | K113: 389.7418343 | L113: 6.495697238 | M113: 17.39533733 | O113: 10169.53602 | P113: 1525.430403 | Q113: 4576.291208 | R113: 1525.430403 | S113: 508.4768009
A114: 113 | B114: 0.06267201996 | C114: 1.391641685 | D114: 0.1566800499 | E114: 3.479104213 | F114: 1563410.728 | G114: 23886421.13 | H114: 17323.55037 | I114: 0.004432245489 | J114: 6929.420148 | K114: 396.3674455 | L114: 6.606124091 | M114: 17.48231402 | O114: 10394.13022 | P114: 1559.119533 | Q114: 4677.3586 | R114: 1559.119533 | S114: 519.7065111
A115: 114 | B115: 0.06561006311 | C115: 1.457251749 | D115: 0.1640251578 | E115: 3.643129371 | F115: 1672849.479 | G115: 25559270.61 | H115: 17706.14098 | I115: 0.00423376788 | J115: 7082.456392 | K115: 403.1056921 | L115: 6.718428201 | M115: 17.56972559 | O115: 10623.68459 | P115: 1593.552688 | Q115: 4780.658064 | R115: 1593.552688 | S115: 531.1842294
A116: 115 | B116: 0.06868584074 | C116: 1.525937589 | D116: 0.1717146018 | E116: 3.814843973 | F116: 1789948.943 | G116: 27349219.55 | H116: 18097.1811 | I116: 0.004044178171 | J116: 7238.872441 | K116: 409.9584888 | L116: 6.83264148 | M116: 17.65757421 | O116: 10858.30866 | P116: 1628.746299 | Q116: 4886.238898 | R116: 1628.746299 | S116: 542.9154331
A117: 116 | B117: 0.07190580978 | C117: 1.597843399 | D117: 0.1797645244 | E117: 3.994608498 | F117: 1915245.369 | G117: 29264464.92 | H117: 18496.85735 | I117: 0.003863078361 | J117: 7398.742939 | K117: 416.9277831 | L117: 6.948796386 | M117: 17.74586208 | O117: 11098.11441 | P117: 1664.717161 | Q117: 4994.151484 | R117: 1664.717161 | S117: 554.9057204
A118: 117 | B118: 0.07527672988 | C118: 1.673120129 | D118: 0.1881918247 | E118: 4.182800322 | F118: 2049312.544 | G118: 31313777.46 | H118: 18905.36044 | I118: 0.003690088268 | J118: 7562.144177 | K118: 424.0155554 | L118: 7.066925924 | M118: 17.8345914 | O118: 11343.21626 | P118: 1701.48244 | Q118: 5104.447319 | R118: 1701.48244 | S118: 567.1608132
A119: 118 | B119: 0.07880567759 | C119: 1.751925806 | D119: 0.197014194 | E119: 4.379814516 | F119: 2192764.422 | G119: 33506541.89 | H119: 19322.88533 | I119: 0.003524844736 | J119: 7729.154131 | K119: 431.2238199 | L119: 7.187063665 | M119: 17.92376435 | O119: 11593.7312 | P119: 1739.059679 | Q119: 5217.179038 | R119: 1739.059679 | S119: 579.6865598
A120: 119 | B120: 0.08250006117 | C120: 1.834425868 | D120: 0.2062501529 | E120: 4.586064669 | F120: 2346257.932 | G120: 35852799.82 | H120: 19749.63125 | I120: 0.003367000871 | J120: 7899.8525 | K120: 438.5546248 | L120: 7.309243747 | M120: 18.01338317 | O120: 11849.77875 | P120: 1777.466812 | Q120: 5332.400437 | R120: 1777.466812 | S120: 592.4889375
A121: 120 | B121: 0.0863676362 | C121: 1.920793504 | D121: 0.2159190905 | E121: 4.80198376 | F121: 2510495.987 | G121: 38363295.8 | H121: 20185.80186 | I121: 0.003216225313 | J121: 8074.320742 | K121: 446.0100534 | L121: 7.433500891 | M121: 18.10345009 | O121: 12111.48111 | P121: 1816.722167 | Q121: 5450.166501 | R121: 1816.722167 | S121: 605.5740557
A122: 121 | B122: 0.09041652185 | C122: 2.011210026 | D122: 0.2260413046 | E122: 5.028025064 | F122: 2686230.706 | G122: 41049526.51 | H122: 20631.60529 | I122: 0.003072201541 | J122: 8252.642116 | K122: 453.5922244 | L122: 7.559870406 | M122: 18.19396734 | O122: 12378.96317 | P122: 1856.844476 | Q122: 5570.533428 | R122: 1856.844476 | S122: 618.9481587
A123: 122 | B123: 0.09465521789 | C123: 2.105865244 | D123: 0.2366380447 | E123: 5.264663109 | F123: 2874266.856 | G123: 43923793.37 | H123: 21087.25429 | I123: 0.002934627208 | J123: 8434.901717 | K123: 461.3032922 | L123: 7.688388203 | M123: 18.28493718 | O123: 12652.35258 | P123: 1897.852886 | Q123: 5693.558659 | R123: 1897.852886 | S123: 632.6176288
A124: 123 | B124: 0.09909262258 | C124: 2.204957866 | D124: 0.2477315564 | E124: 5.512394665 | F124: 3075465.536 | G124: 46999258.9 | H124: 21552.9663 | I124: 0.002803213504 | J124: 8621.186521 | K124: 469.1454481 | L124: 7.819090802 | M124: 18.37636186 | O124: 12931.77978 | P124: 1939.766967 | Q124: 5819.300902 | R124: 1939.766967 | S124: 646.5889891
A125: 124 | B125: 0.1037380513 | C125: 2.308695917 | D125: 0.2593451282 | E125: 5.771739794 | F125: 3290748.123 | G125: 50290007.03 | H125: 22028.96356 | I125: 0.002677684556 | J125: 8811.585426 | K125: 477.1209208 | L125: 7.952015346 | M125: 18.46824367 | O125: 13217.37814 | P125: 1982.606721 | Q125: 5947.820162 | R125: 1982.606721 | S125: 660.8689069
A126: 125 | B126: 0.1086012561 | C126: 2.417297174 | D126: 0.2715031404 | E126: 6.043242934 | F126: 3521100.492 | G126: 53811107.52 | H126: 22515.47322 | I126: 0.00255777684 | J126: 9006.18929 | K126: 485.2319764 | L126: 8.087199607 | M126: 18.56058489 | O126: 13509.28393 | P126: 2026.39259 | Q126: 6079.177771 | R126: 2026.39259 | S126: 675.4641967
A127: 126 | B127: 0.1136924464 | C127: 2.53098962 | D127: 0.284231116 | E127: 6.32747405 | F127: 3767577.526 | G127: 57578685.04 | H127: 23012.72745 | I127: 0.002443238637 | J127: 9205.09098 | K127: 493.48092 | L127: 8.224682 | M127: 18.65338782 | O127: 13807.63647 | P127: 2071.145471 | Q127: 6213.436412 | R127: 2071.145471 | S127: 690.3818235
A128: 127 | B128: 0.1190223099 | C128: 2.65001193 | D128: 0.2975557748 | E128: 6.625029825 | F128: 4031307.953 | G128: 61609993 | H128: 23520.96354 | I128: 0.002333829498 | J128: 9408.385414 | K128: 501.8700956 | L128: 8.364501594 | M128: 18.74665475 | O128: 14112.57812 | P128: 2116.886718 | Q128: 6350.660155 | R128: 2116.886718 | S128: 705.6289061
A129: 128 | B129: 0.1246020357 | C129: 2.774613966 | D129: 0.3115050892 | E129: 6.936534914 | F129: 4313499.51 | G129: 65923492.51 | H129: 24040.42402 | I129: 0.00222931974 | J129: 9616.169606 | K129: 510.4018873 | L129: 8.506698121 | M129: 18.84038803 | O129: 14424.25441 | P129: 2163.638161 | Q129: 6490.914484 | R129: 2163.638161 | S129: 721.2127205
A130: 129 | B130: 0.1304433371 | C130: 2.905057303 | D130: 0.3261083427 | E130: 7.262643257 | F130: 4615444.475 | G130: 70538936.98 | H130: 24571.35678 | I130: 0.002129489969 | J130: 9828.542712 | K130: 519.0787194 | L130: 8.651311989 | M130: 18.93458997 | O130: 14742.81407 | P130: 2211.42211 | Q130: 6634.266331 | R130: 2211.42211 | S130: 737.1407034
A131: 130 | B131: =D131/2.5 -> 0.1365584767 | C131: 3.041615779 | D131: =F131/J131/60/24 -> 0.3413961917 | E131: 7.604039448 | F131: 4938525.589 | G131: 75477462.57 | H131: 25114.01519 | I131: =J131/F131 -> 0.002034130612 | J131: =K131*M131 -> 10045.60608 | K131: =L131*60 -> 527.9030576 | L131: 8.798384293 | M131: 19.02926292 | O131: =H131-J131 -> 15068.40912 | P131: =O131*0.15 -> 2260.261368 | Q131: =O131*0.45 -> 6780.784103 | R131: =O131*0.15 -> 2260.261368 | S131: =O131*0.05 -> 753.4204558
A132: 131 | B132: 0.142960292 | C132: =B132+C131 -> 3.184576071 | D132: 0.35740073 | E132: 7.961440178 | F132: =F131*1.07 -> 5284222.38 | G132: =F132+G131 -> 80761684.95 | H132: =F132/B132/60/24 -> 25668.65822 | I132: 0.001943041483 | J132: 10267.46329 | K132: 536.8774096 | L132: =L131*1.017 -> 8.947956826 | M132: =M131*1.005 -> 19.12440923 | O132: 15401.19493 | P132: 2310.17924 | Q132: 6930.53772 | R132: 2310.17924 | S132: 770.0597466
A133: 132 | B133: 0.1496622223 | C133: 3.334238294 | D133: 0.3741555557 | E133: =D133+E132 -> 8.335595734 | F133: 5654117.947 | G133: 86415802.9 | H133: 26235.55054 | I133: 0.001856031359 | J133: 10494.22021 | K133: 546.0043255 | L133: 9.100072092 | M133: 19.22003128 | O133: 15741.33032 | P133: 2361.199548 | Q133: 7083.598645 | R133: 2361.199548 | S133: 787.0665161
A134: 133 | B134: 0.1566783368 | C134: 3.49091663 | D134: 0.3916958419 | E134: 8.727291576 | F134: 6049906.203 | G134: 92465709.1 | H134: 26814.96267 | I134: 0.001772917581 | J134: 10725.98507 | K134: 555.2863991 | L134: 9.254773318 | M134: 19.31613144 | O134: 16088.9776 | P134: 2413.34664 | Q134: 7240.039921 | R134: 2413.34664 | S134: 804.4488801
A135: 134 | B135: 0.1640233643 | C135: 3.654939995 | D135: 0.4100584109 | E135: 9.137349987 | F135: 6473399.637 | G135: 98939108.74 | H135: 27407.17112 | I135: 0.001693525669 | J135: 10962.86845 | K135: 564.7262678 | L135: 9.412104464 | M135: 19.41271209 | O135: 16444.30267 | P135: 2466.645401 | Q135: 7399.936203 | R135: 2466.645401 | S135: 822.2151336
A136: 135 | B136: 0.1717127243 | C136: 3.826652719 | D136: 0.4292818108 | E136: 9.566631798 | F136: 6926537.612 | G136: 105865646.3 | H136: 28012.4585 | I136: 0.001617688956 | J136: 11204.9834 | K136: 574.3266144 | L136: 9.57211024 | M136: 19.50977565 | O136: 16807.4751 | P136: 2521.121265 | Q136: 7563.363794 | R136: 2521.121265 | S136: 840.3737549
A137: 136 | B137: 0.1797625589 | C137: 4.006415278 | D137: 0.4494063973 | E137: 10.0160382 | F137: 7411395.244 | G137: 113277041.6 | H137: 28631.11364 | I137: 0.00154524824 | J137: 11452.44546 | K137: 584.0901668 | L137: 9.734836114 | M137: 19.60732453 | O137: 17178.66818 | P137: 2576.800228 | Q137: 7730.400683 | R137: 2576.800228 | S137: 858.9334092
A138: 137 | B138: 0.188189767 | C138: 4.194605045 | D138: 0.4704744176 | E138: 10.48651261 | F138: 7930192.911 | G138: 121207234.5 | H138: 29263.43179 | I138: 0.001476051446 | J138: 11705.37271 | K138: 594.0196997 | L138: 9.900328328 | M138: 19.70536115 | O138: 17558.05907 | P138: 2633.708861 | Q138: 7901.126582 | R138: 2633.708861 | S138: 877.9029536
A139: 138 | B139: 0.1970120398 | C139: 4.391617085 | D139: 0.4925300996 | E139: 10.97904271 | F139: 8485306.415 | G139: 129692540.9 | H139: 29909.71468 | I139: 0.001409953311 | J139: 11963.88587 | K139: 604.1180346 | L139: 10.06863391 | M139: 19.80388796 | O139: 17945.82881 | P139: 2691.874321 | Q139: 8075.622963 | R139: 2691.874321 | S139: 897.2914403
A140: 139 | B140: 0.2062478978 | C140: 4.597864983 | D140: 0.5156197445 | E140: 11.49466246 | F140: 9079277.864 | G140: 138771818.8 | H140: 30570.27073 | I140: 0.001346815074 | J140: 12228.10829 | K140: 614.3880412 | L140: 10.23980069 | M140: 19.9029074 | O140: 18342.16244 | P140: 2751.324365 | Q140: 8253.973096 | R140: 2751.324365 | S140: 917.1081218
A141: 140 | B141: 0.2159167297 | C141: 4.813781712 | D141: 0.5397918242 | E141: 12.03445428 | F141: 9714827.315 | G141: 148486646.1 | H141: 31245.41515 | I141: 0.001286504192 | J141: 12498.16606 | K141: 624.8326379 | L141: 10.4138773 | M141: 20.00242194 | O141: 18747.24909 | P141: 2812.087364 | Q141: 8436.262092 | R141: 2812.087364 | S141: 937.3624546
A142: 141 | B142: 0.2260388331 | C142: 5.039820546 | D142: 0.5650970828 | E142: 12.59955136 | F142: 10394865.23 | G142: 158881511.3 | H142: 31935.47015 | I142: 0.001228894053 | J142: 12774.18806 | K142: 635.4547927 | L142: 10.59091321 | M142: 20.10243405 | O142: 19161.28209 | P142: 2874.192313 | Q142: 8622.57694 | R142: 2874.192313 | S142: 958.0641045
A143: 142 | B143: 0.2366354574 | C143: 5.276456003 | D143: 0.5915886434 | E143: 13.19114001 | F143: 11122505.79 | G143: 170004017.1 | H143: 32640.76501 | I143: 0.001173863718 | J143: 13056.306 | K143: 646.2575242 | L143: 10.77095874 | M143: 20.20294622 | O143: 19584.459 | P143: 2937.668851 | Q143: 8813.006552 | R143: 2937.668851 | S143: 979.2229502
A144: 143 | B144: 0.2477288478 | C144: 5.524184851 | D144: 0.6193221194 | E144: 13.81046213 | F144: 11901081.2 | G144: 181905098.3 | H144: 33361.6363 | I144: 0.001121297662 | J144: 13344.65452 | K144: 657.2439021 | L144: 10.95406503 | M144: 20.30396095 | O144: 20016.98178 | P144: 3002.547267 | Q144: 9007.641802 | R144: 3002.547267 | S144: 1000.849089
A145: 144 | B145: 0.2593422926 | C145: 5.783527143 | D145: 0.6483557315 | E145: 14.45881786 | F145: 12734156.88 | G145: 194639255.2 | H145: 34098.42804 | I145: 0.001071085533 | J145: 13639.37122 | K145: 668.4170484 | L145: 11.14028414 | M145: 20.40548075 | O145: 20459.05682 | P145: 3068.858524 | Q145: 9206.575571 | R145: 3068.858524 | S145: 1022.952841
A146: 145 | B146: 0.2715001718 | C146: 6.055027315 | D146: 0.6787504294 | E146: 15.13756829 | F146: 13625547.86 | G146: 208264803.1 | H146: 34851.49182 | I146: 0.001023121923 | J146: 13940.59673 | K146: 679.7801383 | L146: 11.32966897 | M146: 20.50750816 | O146: 20910.89509 | P146: 3136.634264 | Q146: 9409.902792 | R146: 3136.634264 | S146: 1045.544755
A147: 146 | B147: 0.2842280082 | C147: 6.339255323 | D147: 0.7105700206 | E147: 15.84813831 | F147: 14579336.21 | G147: 222844139.3 | H147: 35621.18702 | I147: 0.0009773061406 | J147: 14248.47481 | K147: 691.3364006 | L147: 11.52227334 | M147: 20.6100457 | O147: 21372.71221 | P147: 3205.906832 | Q147: 9617.720495 | R147: 3205.906832 | S147: 1068.635611
A148: 147 | B148: 0.2975525214 | C148: 6.636807845 | D148: 0.7438813034 | E148: 16.59201961 | F148: 15599889.75 | G148: 238444029 | H148: 36407.88094 | I148: 0.0009335420063 | J148: 14563.15237 | K148: 703.0891194 | L148: 11.71815199 | M148: 20.71309592 | O148: 21844.72856 | P148: 3276.709284 | Q148: 9830.127853 | R148: 3276.709284 | S148: 1092.236428
A149: 148 | B149: 0.3115016832 | C149: 6.948309528 | D149: 0.778754208 | E149: 17.37077382 | F149: 16691882.03 | G149: 255135911.1 | H149: 37211.94899 | I149: 0.0008917376462 | J149: 14884.77959 | K149: 715.0416344 | L149: 11.91736057 | M149: 20.8166614 | O149: 22327.16939 | P149: 3349.075409 | Q149: 10047.22623 | R149: 3349.075409 | S149: 1116.35847
A150: 149 | B150: 0.326104777 | C150: 7.274414305 | D150: 0.8152619426 | E150: 18.18603576 | F150: 17860313.77 | G150: 272996224.8 | H150: 38033.77488 | I150: 0.0008518053011 | J150: 15213.50995 | K150: 727.1973422 | L150: 12.1199557 | M150: 20.92074471 | O150: 22820.26493 | P150: 3423.039739 | Q150: 10269.11922 | R150: 3423.039739 | S150: 1141.013246
A151: 150 | B151: 0.341392459 | C151: 7.615806764 | D151: 0.8534811474 | E151: 19.03951691 | F151: 19110535.74 | G151: 292106760.6 | H151: 38873.7508 | I151: 0.0008136611413 | J151: 15549.50032 | K151: 739.559697 | L151: 12.32599495 | M151: 21.02534844 | O151: 23324.25048 | P151: 3498.637572 | Q151: 10495.91272 | R151: 3498.637572 | S151: 1166.212524
A152: 151 | B152: 0.3573968223 | C152: 7.973203586 | D152: 0.8934920557 | E152: 19.93300897 | F152: 20448273.24 | G152: 312555033.8 | H152: 39732.27758 | I152: 0.0007772250912 | J152: 15892.91103 | K152: 752.1322119 | L152: 12.53553686 | M152: 21.13047518 | O152: 23839.36655 | P152: 3575.904983 | Q152: 10727.71495 | R152: 3575.904983 | S152: 1191.968328
A153: 152 | B153: 0.3741514647 | C153: 8.347355051 | D153: 0.9353786618 | E153: 20.86838763 | F153: 21879652.37 | G153: 334434686.2 | H153: 40609.76493 | I153: 0.0007424206611 | J153: 16243.90597 | K153: 764.9184595 | L153: 12.74864099 | M153: 21.23612755 | O153: 24365.85896 | P153: 3654.878844 | Q153: 10964.63653 | R153: 3654.878844 | S153: 1218.292948
A154: 153 | B154: 0.3916915592 | C154: 8.73904661 | D154: 0.9792288979 | E154: 21.84761653 | F154: 23411228.03 | G154: 357845914.2 | H154: 41506.63159 | I154: 0.0007091747863 | J154: 16602.65264 | K154: 777.9220733 | L154: 12.96536789 | M154: 21.34230819 | O154: 24903.97896 | P154: 3735.596843 | Q154: 11206.79053 | R154: 3735.596843 | S154: 1245.198948
A155: 154 | B155: 0.4100539273 | C155: 9.149100537 | D155: 1.025134818 | E155: 22.87275134 | F155: 25050013.99 | G155: 382895928.2 | H155: 42423.30555 | I155: 0.0006774176743 | J155: 16969.32222 | K155: 791.1467486 | L155: 13.18577914 | M155: 21.44901973 | O155: 25453.98333 | P155: 3818.0975 | Q155: 11454.2925 | R155: 3818.0975 | S155: 1272.699167
A156: 155 | B156: 0.4292771171 | C156: 9.578377654 | D156: 1.073192793 | E156: 23.94594414 | F156: 26803514.97 | G156: 409699443.2 | H156: 43360.22425 | I156: 0.0006470826576 | J156: 17344.0897 | K156: 804.5962433 | L156: 13.40993739 | M156: 21.55626483 | O156: 26016.13455 | P156: 3902.420183 | Q156: 11707.26055 | R156: 3902.420183 | S156: 1300.806728
A157: 156 | B157: 0.4494014835 | C157: 10.02777914 | D157: 1.123503709 | E157: 25.06944785 | F157: 28679761.02 | G157: 438379204.2 | H157: 44317.83481 | I157: 0.0006181060543 | J157: 17727.13392 | K157: 818.2743794 | L157: 13.63790632 | M157: 21.66404615 | O157: 26590.70088 | P157: 3988.605133 | Q157: 11965.8154 | R157: 3988.605133 | S157: 1329.535044
A158: 157 | B158: 0.4704692735 | C158: 10.49824841 | D158: 1.176173184 | E158: 26.24562103 | F158: 30687344.29 | G158: 469066548.5 | H158: 45296.59419 | I158: 0.0005904270341 | J158: 18118.63768 | K158: 832.1850439 | L158: 13.86975073 | M158: 21.77236639 | O158: 27177.95651 | P158: 4076.693477 | Q158: 12230.08043 | R158: 4076.693477 | S158: 1358.897826
A159: 158 | B159: 0.4925247143 | C159: 10.99077313 | D159: 1.231311786 | E159: 27.47693281 | F159: 32835458.39 | G159: 501902006.9 | H159: 46296.96947 | I159: 0.0005639874908 | J159: 18518.78779 | K159: 846.3321896 | L159: 14.10553649 | M159: 21.88122822 | O159: 27778.18168 | P159: 4166.727252 | Q159: 12500.18176 | R159: 4166.727252 | S159: 1388.909084
A160: 159 | B160: 0.5156141068 | C160: 11.50638723 | D160: 1.289035267 | E160: 28.76596808 | F160: 35133940.48 | G160: 537035947.4 | H160: 47319.43804 | I160: 0.0005387319201 | J160: 18927.77522 | K160: 860.7198368 | L160: 14.34533061 | M160: 21.99063436 | O160: 28391.66283 | P160: 4258.749424 | Q160: 12776.24827 | R160: 4258.749424 | S160: 1419.583141
A161: 160 | B161: 0.5397859222 | C161: 12.04617315 | D161: 1.349464805 | E161: 30.11543289 | F161: 37593316.32 | G161: 574629263.7 | H161: 48364.48783 | I161: 0.0005146073033 | J161: 19345.79513 | K161: 875.3520741 | L161: 14.58920123 | M161: 22.10058753 | O161: 29018.6927 | P161: 4352.803905 | Q161: 13058.41171 | R161: 4352.803905 | S161: 1450.934635
A162: 161 | B162: 0.5650909041 | C162: 12.61126406 | D162: 1.41272726 | E162: 31.52816015 | F162: 40224848.46 | G162: 614854112.1 | H162: 49432.61755 | I162: 0.0004915629959 | J162: 19773.04702 | K162: 890.2330593 | L162: 14.83721766 | M162: 22.21109047 | O162: 29659.57053 | P162: 4448.935579 | Q162: 13346.80674 | R162: 4448.935579 | S162: 1482.978526
A163: 162 | B163: 0.591582175 | C163: 13.20284623 | D163: 1.478955438 | E163: 33.00711558 | F163: 43040587.85 | G163: 657894700 | H163: 50524.3369 | I163: 0.0004695506212 | J163: 20209.73476 | K163: 905.3670213 | L163: 15.08945036 | M163: 22.32214592 | O163: 30314.60214 | P163: 4547.190321 | Q163: 13641.57096 | R163: 4547.190321 | S163: 1515.730107
A164: 163 | B164: 0.6193153478 | C164: 13.82216158 | D164: 1.54828837 | E164: 34.55540395 | F164: 46053429 | G164: 703948129 | H164: 51640.16688 | I164: 0.0004485239688 | J164: 20656.06675 | K164: 920.7582607 | L164: 15.34597101 | M164: 22.43375665 | O164: 30984.10013 | P164: 4647.61502 | Q164: 13942.84506 | R164: 4647.61502 | S164: 1549.205007
A165: 164 | B165: 0.6483486424 | C165: 14.47051022 | D165: 1.620871606 | E165: 36.17627556 | F165: 49277169.03 | G165: 753225298 | H165: 52780.63997 | I165: 0.0004284388978 | J165: 21112.25599 | K165: 936.4111511 | L165: 15.60685252 | M165: 22.54592543 | O165: 31668.38398 | P165: 4750.257597 | Q165: 14250.77279 | R165: 4750.257597 | S165: 1583.419199
A166: 165 | B166: 0.6787430081 | C166: 15.14925323 | D166: 1.69685752 | E166: 37.87313308 | F166: 52726570.86 | G166: 805951868.9 | H166: 53946.3004 | I166: 0.0004092532438 | J166: 21578.52016 | K166: 952.3301407 | L166: 15.87216901 | M166: 22.65865506 | O166: 32367.78024 | P166: 4855.167036 | Q166: 14565.50111 | R166: 4855.167036 | S166: 1618.389012
A167: 166 | B167: 0.7105622513 | C167: 15.85981548 | D167: 1.776405628 | E167: 39.64953871 | F167: 56417430.82 | G167: 862369299.7 | H167: 55137.70445 | I167: 0.0003909267306 | J167: 22055.08178 | K167: 968.5197531 | L167: 16.14199588 | M167: 22.77194834 | O167: 33082.62267 | P167: 4962.3934 | Q167: 14887.1802 | R167: 4962.3934 | S167: 1654.131133
A168: 167 | B168: 0.7438731699 | C168: 16.60368865 | D168: 1.859682925 | E168: 41.50922163 | F168: 60366650.98 | G168: 922735950.7 | H168: 56355.42065 | I168: 0.0003734208854 | J168: 22542.16826 | K168: 984.9845889 | L168: 16.41640981 | M168: 22.88580808 | O168: 33813.25239 | P168: 5071.987859 | Q168: 15215.96358 | R168: 5071.987859 | S168: 1690.66262
A169: 168 | B169: 0.7787456932 | C169: 17.38243435 | D169: 1.946864233 | E169: 43.45608587 | F169: 64592316.55 | G169: 987328267.2 | H169: 57600.03012 | I169: 0.0003566989586 | J169: 23040.01205 | K169: 1001.729327 | L169: 16.69548878 | M169: 23.00023712 | O169: 34560.01807 | P169: 5184.00271 | Q169: 15552.00813 | R169: 5184.00271 | S169: 1728.000903
A170: 169 | B170: 0.8152530286 | C170: 18.19768738 | D170: 2.038132571 | E170: 45.49421844 | F170: 69113778.71 | G170: 1056442046 | H170: 58872.12678 | I170: 0.0003407258459 | J170: 23548.85071 | K170: 1018.758725 | L170: 16.97931209 | M170: 23.1152383 | O170: 35323.27607 | P170: 5298.49141 | Q170: 15895.47423 | R170: 5298.49141 | S170: 1766.163803
A171: 170 | B171: 0.8534718155 | C171: 19.05115919 | D171: 2.133679539 | E171: 47.62789798 | F171: 73951743.22 | G171: 1130393789 | H171: 60172.3177 | I171: 0.0003254680151 | J171: 24068.92708 | K171: 1036.077624 | L171: 17.2679604 | M171: 23.23081449 | O171: 36103.39062 | P171: 5415.508593 | Q171: 16246.52578 | R171: 5415.508593 | S171: 1805.169531
A172: 171 | B172: 0.8890591067 | C172: 19.9402183 | D172: 2.222647767 | E172: 49.85054574 | F172: 79128365.24 | G172: 1209522154 | H172: 61807.19957 | I172: 0.0003124401693 | J172: 24722.87983 | K172: 1053.690943 | L172: 17.56151572 | M172: =M171*1.01 -> 23.46312264 | O172: 37084.31974 | P172: 5562.647962 | Q172: 16687.94388 | R172: 5562.647962 | S172: 1854.215987
A173: 172 | B173: 0.9261302843 | C173: 20.86634858 | D173: 2.315325711 | E173: 52.16587145 | F173: 84667350.81 | G173: 1294189505 | H173: 63486.50119 | I173: 0.0002999338025 | J173: 25394.60047 | K173: 1071.603689 | L173: 17.86006149 | M173: =M172*1.01 -> 23.69775387 | O173: 38091.90071 | P173: 5713.785107 | Q173: 17141.35532 | R173: 5713.785107 | S173: 1904.595036
A174: 173 | B174: 0.9647472222 | C174: 21.8310958 | D174: 2.411868056 | E174: 54.57773951 | F174: 90594065.36 | G174: 1384783571 | H174: 65211.42942 | I174: 0.000287928041 | J174: 26084.57177 | K174: 1089.820952 | L174: 18.16368254 | M174: 23.9347314 | O174: 39126.85765 | P174: 5869.028648 | Q174: 17607.08594 | R174: 5869.028648 | S174: 1956.342883
A175: 174 | B175: 1.004974374 | C175: 22.83607018 | D175: 2.512435935 | E175: 57.09017545 | F175: 96935649.94 | G175: 1481719221 | H175: 66983.22396 | I175: 0.0002764028466 | J175: 26793.28958 | K175: 1108.347908 | L175: 18.47246514 | M175: 24.17407872 | O175: 40189.93438 | P175: 6028.490156 | Q175: 18085.47047 | R175: 6028.490156 | S175: 2009.496719
A176: 175 | B176: 1.046878881 | C176: 23.88294906 | D176: 2.617197203 | E176: 59.70737265 | F176: 103721145.4 | G176: 1585440366 | H176: 68803.15815 | I176: 0.0002653389832 | J176: 27521.26326 | K176: 1127.189823 | L176: 18.78649705 | M176: 24.41581951 | O176: 41281.89489 | P176: 6192.284234 | Q176: 18576.8527 | R176: 6192.284234 | S176: 2064.094745
A177: 176 | B177: 1.090530684 | C177: 24.97347974 | D177: 2.72632671 | E177: 62.43369936 | F177: 110981625.6 | G177: 1696421992 | H177: 70672.53996 | I177: 0.0002547179844 | J177: 28269.01598 | K177: 1146.35205 | L177: 19.1058675 | M177: 24.6599777 | O177: 42403.52398 | P177: 6360.528597 | Q177: 19081.58579 | R177: 6360.528597 | S177: 2120.176199
A178: 177 | B178: 1.13600264 | C178: 26.10948238 | D178: 2.8400066 | E178: 65.27370596 | F178: 118750339.4 | G178: 1815172331 | H178: 72592.71287 | I178: 0.0002445221234 | J178: 29037.08515 | K178: 1165.840035 | L178: 19.43066724 | M178: 24.90657748 | O178: 43555.62772 | P178: 6533.344159 | Q178: 19600.03248 | R178: 6533.344159 | S178: 2177.781386
A179: 178 | B179: 1.183370645 | C179: 27.29285303 | D179: 2.958426611 | E179: 68.23213257 | F179: 127062863.2 | G179: 1942235194 | H179: 74565.05688 | I179: 0.0002347343827 | J179: 29826.02275 | K179: 1185.659315 | L179: 19.76098859 | M179: 25.15564325 | O179: 44739.03413 | P179: 6710.855119 | Q179: 20132.56536 | R179: 6710.855119 | S179: 2236.951706
A180: 179 | B180: 1.232713757 | C180: 28.52556678 | D180: 3.081784392 | E180: 71.31391696 | F180: 135957263.6 | G180: 2078192458 | H180: 76590.98948 | I180: 0.0002253384261 | J180: 30636.39579 | K180: 1205.815524 | L180: 20.09692539 | M180: 25.40719969 | O180: 45954.59369 | P180: 6893.189053 | Q180: 20679.56716 | R180: 6893.189053 | S180: 2297.729684
A181: 180 | B181: 1.284114333 | C181: 29.80968112 | D181: 3.210285834 | E181: 74.5242028 | F181: 145474272 | G181: 2223666730 | H181: 78671.96666 | I181: 0.0002163185711 | J181: 31468.78666 | K181: 1226.314387 | L181: 20.43857312 | M181: 25.66127168 | O181: 47203.18 | P181: 7080.476999 | Q181: 21241.431 | R181: 7080.476999 | S181: 2360.159
A182: 181 | B182: 1.337658164 | C182: 31.14733928 | D182: 3.344145411 | E182: 77.86834821 | F182: 155657471.1 | G182: 2379324201 | H182: 80809.48399 | I182: 0.0002076597633 | J182: 32323.7936 | K182: 1247.161732 | L182: 20.78602887 | M182: 25.9178844 | O182: 48485.6904 | P182: 7272.85356 | Q182: 21818.56068 | R182: 7272.85356 | S182: 2424.28452
A183: 182 | B183: 1.393434617 | C183: 32.5407739 | D183: 3.483586544 | E183: 81.35193475 | F183: 166553494.1 | G183: 2545877695 | H183: 83005.07768 | I183: 0.0001993475505 | J183: 33202.03107 | K183: 1268.363481 | L183: 21.13939136 | M183: 26.17706324 | O183: 49803.04661 | P183: 7470.456991 | Q183: 22411.37097 | R183: 7470.456991 | S183: 2490.15233
A184: 183 | B184: 1.451536786 | C184: 33.99231069 | D184: 3.628841965 | E184: 84.98077672 | F184: 178212238.6 | G184: 2724089934 | H184: 85260.32564 | I184: 0.0001913680593 | J184: 34104.13025 | K184: 1289.925661 | L184: 21.49876101 | M184: 26.43883388 | O184: 51156.19538 | P184: 7673.429307 | Q184: 23020.28792 | R184: 7673.429307 | S184: 2557.809769
A185: 184 | B185: 1.512061646 | C185: 35.50437233 | D185: 3.780154116 | E185: 88.76093083 | F185: 190687095.3 | G185: 2914777029 | H185: 87576.84868 | I185: 0.0001837079715 | J185: 35030.73947 | K185: 1311.854397 | L185: 21.86423995 | M185: 26.70322221 | O185: 52546.10921 | P185: 7881.916381 | Q185: 23645.74914 | R185: 7881.916381 | S185: 2627.30546
A186: 185 | B186: 1.575110217 | C186: 37.07948255 | D186: 3.937775542 | E186: 92.69870637 | F186: 204035192 | G186: 3118812221 | H186: 89956.31166 | I186: 0.0001763545019 | J186: 35982.52466 | K186: 1334.155922 | L186: 22.23593203 | M186: 26.97025444 | O186: 53973.787 | P186: 8096.06805 | Q186: 24288.20415 | R186: 8096.06805 | S186: 2698.68935
A187: 186 | B187: 1.640787729 | C187: 38.72027028 | D187: 4.101969324 | E187: 96.8006757 | F187: 218317655.5 | G187: 3337129876 | H187: 92400.42465 | I187: 0.0001692953773 | J187: 36960.16986 | K187: 1356.836572 | L187: 22.61394287 | M187: 27.23995698 | O187: 55440.25479 | P187: 8316.038218 | Q187: 24948.11466 | R187: 8316.038218 | S187: 2772.012739
A188: 187 | B188: 1.709203803 | C188: 40.42947408 | D188: 4.273009508 | E188: 101.0736852 | F188: 233599891.3 | G188: 3570729768 | H188: 94910.94419 | I188: 0.0001625188156 | J188: 37964.37767 | K188: 1379.902794 | L188: 22.9983799 | M188: 27.51235655 | O188: 56946.56651 | P188: 8541.984977 | Q188: 25625.95493 | R188: 8541.984977 | S188: 2847.328326
A189: 188 | B189: 1.780472628 | C189: 42.20994671 | D189: 4.45118157 | E189: 105.5248668 | F189: 249951883.7 | G189: 3820681651 | H189: 97489.67454 | I189: 0.0001560135064 | J189: 38995.86982 | K189: 1403.361142 | L189: 23.38935236 | M189: 27.78748012 | O189: 58493.80472 | P189: 8774.070709 | Q189: 26322.21213 | R189: 8774.070709 | S189: 2924.690236
A190: 189 | B190: 1.854713156 | C190: 44.06465987 | D190: 4.636782889 | E190: 110.1616497 | F190: 267448515.6 | G190: 4088130167 | H190: 100138.469 | I190: 0.0001497685919 | J190: 40055.3876 | K190: 1427.218281 | L190: 23.78697135 | M190: 28.06535492 | O190: 60083.0814 | P190: 9012.46221 | Q190: 27037.38663 | R190: 9012.46221 | S190: 3004.15407
A191: 190 | B191: 1.932049297 | C191: 45.99670916 | D191: 4.830123243 | E191: 114.9917729 | F191: 286169911.7 | G191: 4374300079 | H191: 102859.2312 | I191: 0.0001437736491 | J191: 41143.69248 | K191: 1451.480992 | L191: 24.19134986 | M191: 28.34600847 | O191: 61715.53872 | P191: 9257.330808 | Q191: 27771.99242 | R191: 9257.330808 | S191: 3085.776936
A192: 191 | B192: 2.012610131 | C192: 48.00931929 | D192: 5.031525327 | E192: 120.0232982 | F192: 306201805.5 | G192: 4680501884 | H192: 105653.9165 | I192: 0.0001380186721 | J192: 42261.56661 | K192: 1476.156169 | L192: 24.60260281 | M192: 28.62946855 | O192: 63392.34991 | P192: 9508.852486 | Q192: 28526.55746 | R192: 9508.852486 | S192: 3169.617495
A193: 192 | B193: 2.096530117 | C193: 50.10584941 | D193: 5.241325291 | E193: 125.2646235 | F193: 327635931.9 | G193: 5008137816 | H193: 108524.5334 | I193: 0.0001324940556 | J193: 43409.81337 | K193: 1501.250823 | L193: 25.02084706 | M193: 28.91576324 | O193: 65114.72005 | P193: 9767.208008 | Q193: 29301.62402 | R193: 9767.208008 | S193: 3255.736003
A194: 193 | B194: 2.183949322 | C194: 52.28979873 | D194: 5.459873304 | E194: 130.7244968 | F194: 350570447.1 | G194: 5358708263 | H194: 111473.145 | I194: 0.0001271905786 | J194: 44589.258 | K194: 1526.772087 | L194: 25.44620146 | M194: 29.20492087 | O194: 66883.887 | P194: 10032.58305 | Q194: 30097.74915 | R194: 10032.58305 | S194: 3344.19435
A195: 194 | B195: =D195/2.5 -> 2.275013653 | C195: 54.56481238 | D195: =F195/J195/60/24 -> 5.687534133 | E195: 136.412031 | F195: 375110378.4 | G195: 5733818642 | H195: 114501.8703 | I195: =J195/F195 -> 0.0001220993893 | J195: =K195*M195 -> 45800.74814 | K195: =L195*60 -> 1552.727213 | L195: 25.87878688 | M195: 29.49697008 | O195: =H195-J195 -> 68701.12221 | P195: =O195*0.15 -> 10305.16833 | Q195: =O195*0.45 -> 30915.50499 | R195: =O195*0.15 -> 10305.16833 | S195: =O195*0.05 -> 3435.05611
A196: 195 | B196: 2.369875102 | C196: =B196+C195 -> 56.93468749 | D196: 5.924687756 | E196: 142.3367187 | F196: =F195*1.07 -> 401368104.9 | G196: =F196+G195 -> 6135186747 | H196: =F196/B196/60/24 -> 117612.8862 | I196: 0.0001172119904 | J196: 47045.15447 | K196: 1579.123576 | L196: =L195*1.017 -> 26.31872626 | M196: 29.79193978 | O196: 70567.7317 | P196: 10585.15975 | Q196: 31755.47926 | R196: 10585.15975 | S196: 3528.386585
A197: 196 | B197: 2.468691998 | C197: 59.40337949 | D197: 6.171729995 | E197: =D197+E196 -> 148.5084487 | F197: 429463872.3 | G197: 6564650619 | H197: 120808.4283 | I197: 0.0001125202245 | J197: 48323.37131 | K197: 1605.968676 | L197: 26.76614461 | M197: 30.08985918 | O197: 72485.05697 | P197: 10872.75855 | Q197: 32618.27564 | R197: 10872.75855 | S197: 3624.252848
A198: 197 | B198: 2.571629271 | C198: 61.97500876 | D198: 6.429073176 | E198: 154.9375219 | F198: 459526343.3 | G198: 7024176962 | H198: 124090.7933 | I198: 0.0001080162607 | J198: 49636.31731 | K198: 1633.270144 | L198: 27.22116906 | M198: 30.39075777 | O198: 74454.47597 | P198: 11168.1714 | Q198: 33504.51419 | R198: 11168.1714 | S198: 3722.723798
A199: 198 | B199: 2.678858728 | C199: 64.65386748 | D199: 6.69714682 | E199: 161.6346687 | F199: 491693187.4 | G199: 7515870150 | H199: 127462.3401 | I199: 0.0001036925818 | J199: 50984.93605 | K199: 1661.035736 | L199: 27.68392894 | M199: 30.69466535 | O199: 76477.40408 | P199: 11471.61061 | Q199: 34414.83184 | R199: 11471.61061 | S199: 3823.870204
A200: 199 | B200: 2.790559341 | C200: 67.44442683 | D200: 6.976398354 | E200: 168.6110671 | F200: 526111710.5 | G200: 8041981860 | H200: 130925.4919 | I200: 9.954197126e-05 | J200: 52370.19677 | K200: 1689.273344 | L200: 28.15455573 | M200: 31.001612 | O200: 78555.29515 | P200: 11783.29427 | Q200: 35349.88282 | R200: 11783.29427 | S200: 3927.764757
... 401 more rows

Sheet 能力数值表
A1: 花园等级 | B1: 每分钟可分配总数值 | C1: 缤纷彩虹 | D1: 基础收益权重 | E1: 玉树樱花 | F1: 小黄鹂
A2: 1 | B2: =花园升级数值表!P2 -> 135 | C2: =B2*0.1 -> 13.5 | D2: =C2/花园升级数值表!J2 -> 0.0225 | E2: =B2*0.15 -> 20.25 | F2: =B2*0.2 -> 27
A3: 2 | B3: =花园升级数值表!P3 -> 137.981475 | C3: =B3*0.1 -> 13.7981475 | D3: =C3/花园升级数值表!J3 -> 0.0225 | E3: =B3*0.15 -> 20.69722125 | F3: =B3*0.2 -> 27.596295
A4: 3 | B4: =花园升级数值表!P4 -> 141.0287959 | C4: 14.10287959 | D4: =C4/花园升级数值表!J4 -> 0.0225 | E4: 21.15431938 | F4: 28.20575918
A5: 4 | B5: =花园升级数值表!P5 -> 144.1434168 | C5: 14.41434168 | D5: =C5/花园升级数值表!J5 -> 0.0225 | E5: 21.62151252 | F5: 28.82868337
A6: 5 | B6: =花园升级数值表!P6 -> 147.3268242 | C6: 14.73268242 | D6: =C6/花园升级数值表!J6 -> 0.0225 | E6: 22.09902363 | F6: 29.46536484
A7: 6 | B7: =花园升级数值表!P7 -> 150.5805371 | C7: 15.05805371 | D7: =C7/花园升级数值表!J7 -> 0.0225 | E7: 22.58708057 | F7: 30.11610742
A8: 7 | B8: =花园升级数值表!P8 -> 153.9061083 | C8: 15.39061083 | D8: =C8/花园升级数值表!J8 -> 0.0225 | E8: 23.08591624 | F8: 30.78122165
A9: 8 | B9: =花园升级数值表!P9 -> 157.3051247 | C9: 15.73051247 | D9: =C9/花园升级数值表!J9 -> 0.0225 | E9: 23.5957687 | F9: 31.46102493
A10: 9 | B10: =花园升级数值表!P10 -> 160.7792083 | C10: 16.07792083 | D10: =C10/花园升级数值表!J10 -> 0.0225 | E10: 24.11688125 | F10: 32.15584167
A11: 10 | B11: =花园升级数值表!P11 -> 164.3300172 | C11: 16.43300172 | D11: =C11/花园升级数值表!J11 -> 0.0225 | E11: 24.64950257 | F11: 32.86600343
A12: 11 | B12: =花园升级数值表!P12 -> 167.9592456 | C12: 16.79592456 | D12: =C12/花园升级数值表!J12 -> 0.0225 | E12: 25.19388684 | F12: 33.59184912
A13: 12 | B13: =花园升级数值表!P13 -> 171.6686255 | C13: 17.16686255 | D13: =C13/花园升级数值表!J13 -> 0.0225 | E13: 25.75029383 | F13: 34.33372511
A14: 13 | B14: =花园升级数值表!P14 -> 175.4599271 | C14: 17.54599271 | D14: =C14/花园升级数值表!J14 -> 0.0225 | E14: 26.31898907 | F14: 35.09198543
A15: 14 | B15: =花园升级数值表!P15 -> 179.3349596 | C15: 17.93349596 | D15: =C15/花园升级数值表!J15 -> 0.0225 | E15: 26.90024394 | F15: 35.86699192
A16: 15 | B16: =花园升级数值表!P16 -> 183.2955722 | C16: 18.32955722 | D16: =C16/花园升级数值表!J16 -> 0.0225 | E16: 27.49433583 | F16: 36.65911444
A17: 16 | B17: =花园升级数值表!P17 -> 187.3436549 | C17: 18.73436549 | D17: =C17/花园升级数值表!J17 -> 0.0225 | E17: 28.10154824 | F17: 37.46873098
A18: 17 | B18: =花园升级数值表!P18 -> 191.4811395 | C18: 19.14811395 | D18: =C18/花园升级数值表!J18 -> 0.0225 | E18: 28.72217093 | F18: 38.29622791
A19: 18 | B19: =花园升级数值表!P19 -> 195.7100005 | C19: 19.57100005 | D19: =C19/花园升级数值表!J19 -> 0.0225 | E19: 29.35650007 | F19: 39.1420001
A20: 19 | B20: =花园升级数值表!P20 -> 200.0322559 | C20: 20.00322559 | D20: =C20/花园升级数值表!J20 -> 0.0225 | E20: 30.00483838 | F20: 40.00645117
A21: 20 | B21: =花园升级数值表!P21 -> 204.4499682 | C21: 20.44499682 | D21: =C21/花园升级数值表!J21 -> 0.0225 | E21: 30.66749523 | F21: 40.88999365
A22: 21 | B22: =花园升级数值表!P22 -> 208.9652458 | C22: 20.89652458 | D22: =C22/花园升级数值表!J22 -> 0.0225 | E22: 31.34478687 | F22: 41.79304916
A23: 22 | B23: =花园升级数值表!P23 -> 213.5802432 | C23: 21.35802432 | D23: =C23/花园升级数值表!J23 -> 0.0225 | E23: 32.03703648 | F23: 42.71604865
A24: 23 | B24: =花园升级数值表!P24 -> 218.2971629 | C24: 21.82971629 | D24: =C24/花园升级数值表!J24 -> 0.0225 | E24: 32.74457444 | F24: 43.65943258
A25: 24 | B25: =花园升级数值表!P25 -> 223.1182557 | C25: 22.31182557 | D25: =C25/花园升级数值表!J25 -> 0.0225 | E25: 33.46773836 | F25: 44.62365115
A26: 25 | B26: =花园升级数值表!P26 -> 228.0458224 | C26: 22.80458224 | D26: =C26/花园升级数值表!J26 -> 0.0225 | E26: 34.20687336 | F26: 45.60916448
A27: 26 | B27: =花园升级数值表!P27 -> 233.0822144 | C27: 23.30822144 | D27: =C27/花园升级数值表!J27 -> 0.0225 | E27: 34.96233216 | F27: 46.61644288
A28: 27 | B28: =花园升级数值表!P28 -> 238.2298351 | C28: 23.82298351 | D28: =C28/花园升级数值表!J28 -> 0.0225 | E28: 35.73447527 | F28: 47.64596702
A29: 28 | B29: =花园升级数值表!P29 -> 243.491141 | C29: 24.3491141 | D29: =C29/花园升级数值表!J29 -> 0.0225 | E29: 36.52367115 | F29: 48.6982282
A30: 29 | B30: =花园升级数值表!P30 -> 248.8686429 | C30: 24.88686429 | D30: =C30/花园升级数值表!J30 -> 0.0225 | E30: 37.33029643 | F30: 49.77372857
A31: 30 | B31: =花园升级数值表!P31 -> 254.3649069 | C31: 25.43649069 | D31: =C31/花园升级数值表!J31 -> 0.0225 | E31: 38.15473603 | F31: 50.87298137
A32: 31 | B32: =花园升级数值表!P32 -> 259.9825558 | C32: 25.99825558 | D32: =C32/花园升级数值表!J32 -> 0.0225 | E32: 38.99738337 | F32: 51.99651116
A33: 32 | B33: =花园升级数值表!P33 -> 265.7242706 | C33: 26.57242706 | D33: =C33/花园升级数值表!J33 -> 0.0225 | E33: 39.85864058 | F33: 53.14485411
A34: 33 | B34: =花园升级数值表!P34 -> 271.5927911 | C34: 27.15927911 | D34: =C34/花园升级数值表!J34 -> 0.0225 | E34: 40.73891866 | F34: 54.31855822
A35: 34 | B35: =花园升级数值表!P35 -> 277.5909179 | C35: 27.75909179 | D35: =C35/花园升级数值表!J35 -> 0.0225 | E35: 41.63863768 | F35: 55.51818357
A36: 35 | B36: =花园升级数值表!P36 -> 283.7215133 | C36: 28.37215133 | D36: =C36/花园升级数值表!J36 -> 0.0225 | E36: 42.55822699 | F36: 56.74430266
A37: 36 | B37: =花园升级数值表!P37 -> 289.9875029 | C37: 28.99875029 | D37: =C37/花园升级数值表!J37 -> 0.0225 | E37: 43.49812544 | F37: 57.99750058
A38: 37 | B38: =花园升级数值表!P38 -> 296.3918769 | C38: 29.63918769 | D38: =C38/花园升级数值表!J38 -> 0.0225 | E38: 44.45878154 | F38: 59.27837538
A39: 38 | B39: =花园升级数值表!P39 -> 302.9376915 | C39: 30.29376915 | D39: =C39/花园升级数值表!J39 -> 0.0225 | E39: 45.44065373 | F39: 60.5875383
A40: 39 | B40: =花园升级数值表!P40 -> 309.6280704 | C40: 30.96280704 | D40: =C40/花园升级数值表!J40 -> 0.0225 | E40: 46.44421057 | F40: 61.92561409
A41: 40 | B41: =花园升级数值表!P41 -> 316.4662064 | C41: 31.64662064 | D41: =C41/花园升级数值表!J41 -> 0.0225 | E41: 47.46993096 | F41: 63.29324127
A42: 41 | B42: =花园升级数值表!P42 -> 323.4553625 | C42: 32.34553625 | D42: =C42/花园升级数值表!J42 -> 0.0225 | E42: 48.51830438 | F42: 64.69107251
A43: 42 | B43: =花园升级数值表!P43 -> 330.5988742 | C43: 33.05988742 | D43: =C43/花园升级数值表!J43 -> 0.0225 | E43: 49.58983113 | F43: 66.11977484
A44: 43 | B44: =花园升级数值表!P44 -> 337.9001504 | C44: 33.79001504 | D44: =C44/花园升级数值表!J44 -> 0.0225 | E44: 50.68502255 | F44: 67.58003007
A45: 44 | B45: =花园升级数值表!P45 -> 345.3626752 | C45: 34.53626752 | D45: =C45/花园升级数值表!J45 -> 0.0225 | E45: 51.80440128 | F45: 69.07253504
A46: 45 | B46: =花园升级数值表!P46 -> 352.9900099 | C46: 35.29900099 | D46: =C46/花园升级数值表!J46 -> 0.0225 | E46: 52.94850148 | F46: 70.59800197
A47: 46 | B47: =花园升级数值表!P47 -> 360.7857942 | C47: 36.07857942 | D47: =C47/花园升级数值表!J47 -> 0.0225 | E47: 54.11786913 | F47: 72.15715885
A48: 47 | B48: =花园升级数值表!P48 -> 368.7537485 | C48: 36.87537485 | D48: =C48/花园升级数值表!J48 -> 0.0225 | E48: 55.31306227 | F48: 73.7507497
A49: 48 | B49: =花园升级数值表!P49 -> 376.897675 | C49: 37.6897675 | D49: =C49/花园升级数值表!J49 -> 0.0225 | E49: 56.53465125 | F49: 75.37953501
A50: 49 | B50: =花园升级数值表!P50 -> 385.2214602 | C50: 38.52214602 | D50: =C50/花园升级数值表!J50 -> 0.0225 | E50: 57.78321903 | F50: 77.04429204
A51: 50 | B51: =花园升级数值表!P51 -> 393.7290761 | C51: 39.37290761 | D51: =C51/花园升级数值表!J51 -> 0.0225 | E51: 59.05936142 | F51: 78.74581523
A52: 51 | B52: =花园升级数值表!P52 -> 402.4245828 | C52: 40.24245828 | D52: =C52/花园升级数值表!J52 -> 0.0225 | E52: 60.36368742 | F52: 80.48491655
A53: 52 | B53: =花园升级数值表!P53 -> 411.3121297 | C53: 41.13121297 | D53: =C53/花园升级数值表!J53 -> 0.0225 | E53: 61.69681945 | F53: 82.26242594
A54: 53 | B54: =花园升级数值表!P54 -> 420.3959581 | C54: 42.03959581 | D54: =C54/花园升级数值表!J54 -> 0.0225 | E54: 63.05939371 | F54: 84.07919161
A55: 54 | B55: =花园升级数值表!P55 -> 429.6804028 | C55: 42.96804028 | D55: =C55/花园升级数值表!J55 -> 0.0225 | E55: 64.45206042 | F55: 85.93608056
A56: 55 | B56: =花园升级数值表!P56 -> 439.1698945 | C56: 43.91698945 | D56: =C56/花园升级数值表!J56 -> 0.0225 | E56: 65.87548417 | F56: 87.8339789
A57: 56 | B57: =花园升级数值表!P57 -> 448.8689616 | C57: 44.88689616 | D57: =C57/花园升级数值表!J57 -> 0.0225 | E57: 67.33034424 | F57: 89.77379232
A58: 57 | B58: =花园升级数值表!P58 -> 458.7822326 | C58: 45.87822326 | D58: =C58/花园升级数值表!J58 -> 0.0225 | E58: 68.8173349 | F58: 91.75644653
A59: 58 | B59: =花园升级数值表!P59 -> 468.9144382 | C59: 46.89144382 | D59: =C59/花园升级数值表!J59 -> 0.0225 | E59: 70.33716574 | F59: 93.78288765
A60: 59 | B60: =花园升级数值表!P60 -> 479.2704136 | C60: 47.92704136 | D60: =C60/花园升级数值表!J60 -> 0.0225 | E60: 71.89056204 | F60: 95.85408272
A61: 60 | B61: =花园升级数值表!P61 -> 489.8551007 | C61: 48.98551007 | D61: =C61/花园升级数值表!J61 -> 0.0225 | E61: 73.4782651 | F61: 97.97102014
A62: 61 | B62: =花园升级数值表!P62 -> 500.6735506 | C62: 50.06735506 | D62: =C62/花园升级数值表!J62 -> 0.0225 | E62: 75.10103259 | F62: 100.1347101
A63: 62 | B63: =花园升级数值表!P63 -> 511.730926 | C63: 51.1730926 | D63: =C63/花园升级数值表!J63 -> 0.0225 | E63: 76.75963889 | F63: 102.3461852
A64: 63 | B64: =花园升级数值表!P64 -> 523.0325035 | C64: 52.30325035 | D64: =C64/花园升级数值表!J64 -> 0.0225 | E64: 78.45487552 | F64: 104.6065007
A65: 64 | B65: =花园升级数值表!P65 -> 534.5836763 | C65: 53.45836763 | D65: =C65/花园升级数值表!J65 -> 0.0225 | E65: 80.18755144 | F65: 106.9167353
A66: 65 | B66: =花园升级数值表!P66 -> 546.3899568 | C66: 54.63899568 | D66: =C66/花园升级数值表!J66 -> 0.0225 | E66: 81.95849352 | F66: 109.2779914
A67: 66 | B67: =花园升级数值表!P67 -> 558.456979 | C67: =B67*0.1 -> 55.8456979 | D67: =C67/花园升级数值表!J67 -> 0.0225 | E67: =B67*0.15 -> 83.76854685 | F67: =B67*0.2 -> 111.6913958
A68: 67 | B68: =花园升级数值表!P68 -> 570.7905014 | C68: 57.07905014 | D68: =C68/花园升级数值表!J68 -> 0.0225 | E68: 85.61857521 | F68: 114.1581003
A69: 68 | B69: =花园升级数值表!P69 -> 583.3964096 | C69: 58.33964096 | D69: =C69/花园升级数值表!J69 -> 0.0225 | E69: 87.50946144 | F69: 116.6792819
A70: 69 | B70: =花园升级数值表!P70 -> 596.2807193 | C70: 59.62807193 | D70: =C70/花园升级数值表!J70 -> 0.0225 | E70: 89.44210789 | F70: 119.2561439
A71: 70 | B71: =花园升级数值表!P71 -> 609.449579 | C71: 60.9449579 | D71: =C71/花园升级数值表!J71 -> 0.0225 | E71: 91.41743685 | F71: 121.8899158
A72: 71 | B72: =花园升级数值表!P72 -> 622.9092729 | C72: 62.29092729 | D72: =C72/花园升级数值表!J72 -> 0.0225 | E72: 93.43639094 | F72: 124.5818546
A73: 72 | B73: =花园升级数值表!P73 -> 636.6662242 | C73: 63.66662242 | D73: =C73/花园升级数值表!J73 -> 0.0225 | E73: 95.49993363 | F73: 127.3332448
A74: 73 | B74: =花园升级数值表!P74 -> 650.7269978 | C74: 65.07269978 | D74: =C74/花园升级数值表!J74 -> 0.0225 | E74: 97.60904967 | F74: 130.1453996
A75: 74 | B75: =花园升级数值表!P75 -> 665.0983035 | C75: 66.50983035 | D75: =C75/花园升级数值表!J75 -> 0.0225 | E75: 99.76474553 | F75: 133.0196607
A76: 75 | B76: =花园升级数值表!P76 -> 679.7869996 | C76: 67.97869996 | D76: =C76/花园升级数值表!J76 -> 0.0225 | E76: 101.9680499 | F76: 135.9573999
A77: 76 | B77: =花园升级数值表!P77 -> 694.8000955 | C77: 69.48000955 | D77: =C77/花园升级数值表!J77 -> 0.0225 | E77: 104.2200143 | F77: 138.9600191
A78: 77 | B78: =花园升级数值表!P78 -> 710.1447556 | C78: 71.01447556 | D78: =C78/花园升级数值表!J78 -> 0.0225 | E78: 106.5217133 | F78: 142.0289511
A79: 78 | B79: =花园升级数值表!P79 -> 725.8283025 | C79: 72.58283025 | D79: =C79/花园升级数值表!J79 -> 0.0225 | E79: 108.8742454 | F79: 145.1656605
A80: 79 | B80: =花园升级数值表!P80 -> 741.8582205 | C80: 74.18582205 | D80: =C80/花园升级数值表!J80 -> 0.0225 | E80: 111.2787331 | F80: 148.3716441
A81: 80 | B81: =花园升级数值表!P81 -> 758.2421593 | C81: 75.82421593 | D81: =C81/花园升级数值表!J81 -> 0.0225 | E81: 113.7363239 | F81: 151.6484319
A82: 81 | B82: =花园升级数值表!P82 -> 774.9879374 | C82: 77.49879374 | D82: =C82/花园升级数值表!J82 -> 0.0225 | E82: 116.2481906 | F82: 154.9975875
A83: 82 | B83: =花园升级数值表!P83 -> 792.103546 | C83: 79.2103546 | D83: =C83/花园升级数值表!J83 -> 0.0225 | E83: 118.8155319 | F83: 158.4207092
A84: 83 | B84: =花园升级数值表!P84 -> 809.5971528 | C84: 80.95971528 | D84: =C84/花园升级数值表!J84 -> 0.0225 | E84: 121.4395729 | F84: 161.9194306
A85: 84 | B85: =花园升级数值表!P85 -> 827.477106 | C85: 82.7477106 | D85: =C85/花园升级数值表!J85 -> 0.0225 | E85: 124.1215659 | F85: 165.4954212
A86: 85 | B86: =花园升级数值表!P86 -> 845.7519379 | C86: 84.57519379 | D86: =C86/花园升级数值表!J86 -> 0.0225 | E86: 126.8627907 | F86: 169.1503876
A87: 86 | B87: =花园升级数值表!P87 -> 864.4303694 | C87: 86.44303694 | D87: =C87/花园升级数值表!J87 -> 0.0225 | E87: 129.6645554 | F87: 172.8860739
A88: 87 | B88: =花园升级数值表!P88 -> 883.5213141 | C88: 88.35213141 | D88: =C88/花园升级数值表!J88 -> 0.0225 | E88: 132.5281971 | F88: 176.7042628
A89: 88 | B89: =花园升级数值表!P89 -> 903.0338823 | C89: 90.30338823 | D89: =C89/花园升级数值表!J89 -> 0.0225 | E89: 135.4550824 | F89: 180.6067765
A90: 89 | B90: =花园升级数值表!P90 -> 922.9773856 | C90: 92.29773856 | D90: =C90/花园升级数值表!J90 -> 0.0225 | E90: 138.4466078 | F90: 184.5954771
A91: 90 | B91: =花园升级数值表!P91 -> 943.3613412 | C91: 94.33613412 | D91: =C91/花园升级数值表!J91 -> 0.0225 | E91: 141.5042012 | F91: 188.6722682
A92: 91 | B92: =花园升级数值表!P92 -> 964.1954764 | C92: 96.41954764 | D92: =C92/花园升级数值表!J92 -> 0.0225 | E92: 144.6293215 | F92: 192.8390953
A93: 92 | B93: =花园升级数值表!P93 -> 985.4897335 | C93: 98.54897335 | D93: =C93/花园升级数值表!J93 -> 0.0225 | E93: 147.82346 | F93: 197.0979467
A94: 93 | B94: =花园升级数值表!P94 -> 1007.254274 | C94: 100.7254274 | D94: =C94/花园升级数值表!J94 -> 0.0225 | E94: 151.0881411 | F94: 201.4508549
A95: 94 | B95: =花园升级数值表!P95 -> 1029.499485 | C95: 102.9499485 | D95: =C95/花园升级数值表!J95 -> 0.0225 | E95: 154.4249227 | F95: 205.899897
A96: 95 | B96: =花园升级数值表!P96 -> 1052.235981 | C96: 105.2235981 | D96: =C96/花园升级数值表!J96 -> 0.0225 | E96: 157.8353972 | F96: 210.4471962
A97: 96 | B97: =花园升级数值表!P97 -> 1075.474613 | C97: 107.5474613 | D97: =C97/花园升级数值表!J97 -> 0.0225 | E97: 161.3211919 | F97: 215.0949225
A98: 97 | B98: =花园升级数值表!P98 -> 1099.22647 | C98: 109.922647 | D98: =C98/花园升级数值表!J98 -> 0.0225 | E98: 164.8839704 | F98: 219.8452939
A99: 98 | B99: =花园升级数值表!P99 -> 1123.502886 | C99: 112.3502886 | D99: =C99/花园升级数值表!J99 -> 0.0225 | E99: 168.5254329 | F99: 224.7005772
A100: 99 | B100: =花园升级数值表!P100 -> 1148.315447 | C100: 114.8315447 | D100: =C100/花园升级数值表!J100 -> 0.0225 | E100: 172.2473171 | F100: 229.6630895
A101: 100 | B101: =花园升级数值表!P101 -> 1173.675994 | C101: 117.3675994 | D101: =C101/花园升级数值表!J101 -> 0.0225 | E101: 176.0513991 | F101: 234.7351988
A102: 101 | B102: =花园升级数值表!P102 -> 1199.596628 | C102: 119.9596628 | D102: =C102/花园升级数值表!J102 -> 0.0225 | E102: 179.9394942 | F102: 239.9193257
A103: 102 | B103: =花园升级数值表!P103 -> 1226.08972 | C103: 122.608972 | D103: =C103/花园升级数值表!J103 -> 0.0225 | E103: 183.913458 | F103: 245.217944
A104: 103 | B104: =花园升级数值表!P104 -> 1253.167911 | C104: 125.3167911 | D104: =C104/花园升级数值表!J104 -> 0.0225 | E104: 187.9751867 | F104: 250.6335823
A105: 104 | B105: =花园升级数值表!P105 -> 1280.844125 | C105: 128.0844125 | D105: =C105/花园升级数值表!J105 -> 0.0225 | E105: 192.1266187 | F105: 256.1688249
A106: 105 | B106: =花园升级数值表!P106 -> 1309.131567 | C106: 130.9131567 | D106: =C106/花园升级数值表!J106 -> 0.0225 | E106: 196.3697351 | F106: 261.8263134
A107: 106 | B107: =花园升级数值表!P107 -> 1338.043738 | C107: 133.8043738 | D107: =C107/花园升级数值表!J107 -> 0.0225 | E107: 200.7065607 | F107: 267.6087476
A108: 107 | B108: =花园升级数值表!P108 -> 1367.594434 | C108: 136.7594434 | D108: =C108/花园升级数值表!J108 -> 0.0225 | E108: 205.1391651 | F108: 273.5188867
A109: 108 | B109: =花园升级数值表!P109 -> 1397.797757 | C109: 139.7797757 | D109: =C109/花园升级数值表!J109 -> 0.0225 | E109: 209.6696635 | F109: 279.5595514
A110: 109 | B110: =花园升级数值表!P110 -> 1428.66812 | C110: 142.866812 | D110: =C110/花园升级数值表!J110 -> 0.0225 | E110: 214.300218 | F110: 285.733624
A111: 110 | B111: =花园升级数值表!P111 -> 1460.220256 | C111: 146.0220256 | D111: =C111/花园升级数值表!J111 -> 0.0225 | E111: 219.0330384 | F111: 292.0440511
A112: 111 | B112: =花园升级数值表!P112 -> 1492.46922 | C112: 149.246922 | D112: =C112/花园升级数值表!J112 -> 0.0225 | E112: 223.870383 | F112: 298.493844
A113: 112 | B113: =花园升级数值表!P113 -> 1525.430403 | C113: 152.5430403 | D113: =C113/花园升级数值表!J113 -> 0.0225 | E113: 228.8145604 | F113: 305.0860806
A114: 113 | B114: =花园升级数值表!P114 -> 1559.119533 | C114: 155.9119533 | D114: =C114/花园升级数值表!J114 -> 0.0225 | E114: 233.86793 | F114: 311.8239066
A115: 114 | B115: =花园升级数值表!P115 -> 1593.552688 | C115: 159.3552688 | D115: =C115/花园升级数值表!J115 -> 0.0225 | E115: 239.0329032 | F115: 318.7105376
A116: 115 | B116: =花园升级数值表!P116 -> 1628.746299 | C116: 162.8746299 | D116: =C116/花园升级数值表!J116 -> 0.0225 | E116: 244.3119449 | F116: 325.7492598
A117: 116 | B117: =花园升级数值表!P117 -> 1664.717161 | C117: 166.4717161 | D117: =C117/花园升级数值表!J117 -> 0.0225 | E117: 249.7075742 | F117: 332.9434322
A118: 117 | B118: =花园升级数值表!P118 -> 1701.48244 | C118: 170.148244 | D118: =C118/花园升级数值表!J118 -> 0.0225 | E118: 255.222366 | F118: 340.2964879
A119: 118 | B119: =花园升级数值表!P119 -> 1739.059679 | C119: 173.9059679 | D119: =C119/花园升级数值表!J119 -> 0.0225 | E119: 260.8589519 | F119: 347.8119359
A120: 119 | B120: =花园升级数值表!P120 -> 1777.466812 | C120: 177.7466812 | D120: =C120/花园升级数值表!J120 -> 0.0225 | E120: 266.6200219 | F120: 355.4933625
A121: 120 | B121: =花园升级数值表!P121 -> 1816.722167 | C121: 181.6722167 | D121: =C121/花园升级数值表!J121 -> 0.0225 | E121: 272.508325 | F121: 363.3444334
A122: 121 | B122: =花园升级数值表!P122 -> 1856.844476 | C122: 185.6844476 | D122: =C122/花园升级数值表!J122 -> 0.0225 | E122: 278.5266714 | F122: 371.3688952
A123: 122 | B123: =花园升级数值表!P123 -> 1897.852886 | C123: 189.7852886 | D123: =C123/花园升级数值表!J123 -> 0.0225 | E123: 284.6779329 | F123: 379.5705773
A124: 123 | B124: =花园升级数值表!P124 -> 1939.766967 | C124: 193.9766967 | D124: =C124/花园升级数值表!J124 -> 0.0225 | E124: 290.9650451 | F124: 387.9533935
A125: 124 | B125: =花园升级数值表!P125 -> 1982.606721 | C125: 198.2606721 | D125: =C125/花园升级数值表!J125 -> 0.0225 | E125: 297.3910081 | F125: 396.5213442
A126: 125 | B126: =花园升级数值表!P126 -> 2026.39259 | C126: 202.639259 | D126: =C126/花园升级数值表!J126 -> 0.0225 | E126: 303.9588885 | F126: 405.278518
A127: 126 | B127: =花园升级数值表!P127 -> 2071.145471 | C127: 207.1145471 | D127: =C127/花园升级数值表!J127 -> 0.0225 | E127: 310.6718206 | F127: 414.2290941
A128: 127 | B128: =花园升级数值表!P128 -> 2116.886718 | C128: 211.6886718 | D128: =C128/花园升级数值表!J128 -> 0.0225 | E128: 317.5330077 | F128: 423.3773437
A129: 128 | B129: =花园升级数值表!P129 -> 2163.638161 | C129: 216.3638161 | D129: =C129/花园升级数值表!J129 -> 0.0225 | E129: 324.5457242 | F129: 432.7276323
A130: 129 | B130: =花园升级数值表!P130 -> 2211.42211 | C130: 221.142211 | D130: =C130/花园升级数值表!J130 -> 0.0225 | E130: 331.7133165 | F130: 442.284422
A131: 130 | B131: =花园升级数值表!P131 -> 2260.261368 | C131: =B131*0.1 -> 226.0261368 | D131: =C131/花园升级数值表!J131 -> 0.0225 | E131: =B131*0.15 -> 339.0392051 | F131: =B131*0.2 -> 452.0522735
A132: 131 | B132: =花园升级数值表!P132 -> 2310.17924 | C132: 231.017924 | D132: =C132/花园升级数值表!J132 -> 0.0225 | E132: 346.526886 | F132: 462.035848
A133: 132 | B133: =花园升级数值表!P133 -> 2361.199548 | C133: 236.1199548 | D133: =C133/花园升级数值表!J133 -> 0.0225 | E133: 354.1799323 | F133: 472.2399097
A134: 133 | B134: =花园升级数值表!P134 -> 2413.34664 | C134: 241.334664 | D134: =C134/花园升级数值表!J134 -> 0.0225 | E134: 362.0019961 | F134: 482.6693281
A135: 134 | B135: =花园升级数值表!P135 -> 2466.645401 | C135: 246.6645401 | D135: =C135/花园升级数值表!J135 -> 0.0225 | E135: 369.9968101 | F135: 493.3290802
A136: 135 | B136: =花园升级数值表!P136 -> 2521.121265 | C136: 252.1121265 | D136: =C136/花园升级数值表!J136 -> 0.0225 | E136: 378.1681897 | F136: 504.2242529
A137: 136 | B137: =花园升级数值表!P137 -> 2576.800228 | C137: 257.6800228 | D137: =C137/花园升级数值表!J137 -> 0.0225 | E137: 386.5200342 | F137: 515.3600455
A138: 137 | B138: =花园升级数值表!P138 -> 2633.708861 | C138: 263.3708861 | D138: =C138/花园升级数值表!J138 -> 0.0225 | E138: 395.0563291 | F138: 526.7417722
A139: 138 | B139: =花园升级数值表!P139 -> 2691.874321 | C139: 269.1874321 | D139: =C139/花园升级数值表!J139 -> 0.0225 | E139: 403.7811481 | F139: 538.3748642
A140: 139 | B140: =花园升级数值表!P140 -> 2751.324365 | C140: 275.1324365 | D140: =C140/花园升级数值表!J140 -> 0.0225 | E140: 412.6986548 | F140: 550.2648731
A141: 140 | B141: =花园升级数值表!P141 -> 2812.087364 | C141: 281.2087364 | D141: =C141/花园升级数值表!J141 -> 0.0225 | E141: 421.8131046 | F141: 562.4174728
A142: 141 | B142: =花园升级数值表!P142 -> 2874.192313 | C142: 287.4192313 | D142: =C142/花园升级数值表!J142 -> 0.0225 | E142: 431.128847 | F142: 574.8384627
A143: 142 | B143: =花园升级数值表!P143 -> 2937.668851 | C143: 293.7668851 | D143: =C143/花园升级数值表!J143 -> 0.0225 | E143: 440.6503276 | F143: 587.5337701
A144: 143 | B144: =花园升级数值表!P144 -> 3002.547267 | C144: 300.2547267 | D144: =C144/花园升级数值表!J144 -> 0.0225 | E144: 450.3820901 | F144: 600.5094534
A145: 144 | B145: =花园升级数值表!P145 -> 3068.858524 | C145: 306.8858524 | D145: =C145/花园升级数值表!J145 -> 0.0225 | E145: 460.3287785 | F145: 613.7717047
A146: 145 | B146: =花园升级数值表!P146 -> 3136.634264 | C146: 313.6634264 | D146: =C146/花园升级数值表!J146 -> 0.0225 | E146: 470.4951396 | F146: 627.3268528
A147: 146 | B147: =花园升级数值表!P147 -> 3205.906832 | C147: 320.5906832 | D147: =C147/花园升级数值表!J147 -> 0.0225 | E147: 480.8860248 | F147: 641.1813664
A148: 147 | B148: =花园升级数值表!P148 -> 3276.709284 | C148: 327.6709284 | D148: =C148/花园升级数值表!J148 -> 0.0225 | E148: 491.5063926 | F148: 655.3418568
A149: 148 | B149: =花园升级数值表!P149 -> 3349.075409 | C149: 334.9075409 | D149: =C149/花园升级数值表!J149 -> 0.0225 | E149: 502.3613113 | F149: 669.8150817
A150: 149 | B150: =花园升级数值表!P150 -> 3423.039739 | C150: 342.3039739 | D150: =C150/花园升级数值表!J150 -> 0.0225 | E150: 513.4559609 | F150: 684.6079478
A151: 150 | B151: =花园升级数值表!P151 -> 3498.637572 | C151: 349.8637572 | D151: =C151/花园升级数值表!J151 -> 0.0225 | E151: 524.7956358 | F151: 699.7275144
A152: 151 | B152: =花园升级数值表!P152 -> 3575.904983 | C152: 357.5904983 | D152: =C152/花园升级数值表!J152 -> 0.0225 | E152: 536.3857474 | F152: 715.1809965
A153: 152 | B153: =花园升级数值表!P153 -> 3654.878844 | C153: 365.4878844 | D153: =C153/花园升级数值表!J153 -> 0.0225 | E153: 548.2318266 | F153: 730.9757688
A154: 153 | B154: =花园升级数值表!P154 -> 3735.596843 | C154: 373.5596843 | D154: =C154/花园升级数值表!J154 -> 0.0225 | E154: 560.3395265 | F154: 747.1193687
A155: 154 | B155: =花园升级数值表!P155 -> 3818.0975 | C155: 381.80975 | D155: =C155/花园升级数值表!J155 -> 0.0225 | E155: 572.7146249 | F155: 763.6194999
A156: 155 | B156: =花园升级数值表!P156 -> 3902.420183 | C156: 390.2420183 | D156: =C156/花园升级数值表!J156 -> 0.0225 | E156: 585.3630274 | F156: 780.4840366
A157: 156 | B157: =花园升级数值表!P157 -> 3988.605133 | C157: 398.8605133 | D157: =C157/花园升级数值表!J157 -> 0.0225 | E157: 598.2907699 | F157: 797.7210265
A158: 157 | B158: =花园升级数值表!P158 -> 4076.693477 | C158: 407.6693477 | D158: =C158/花园升级数值表!J158 -> 0.0225 | E158: 611.5040215 | F158: 815.3386954
A159: 158 | B159: =花园升级数值表!P159 -> 4166.727252 | C159: 416.6727252 | D159: =C159/花园升级数值表!J159 -> 0.0225 | E159: 625.0090879 | F159: 833.3454505
A160: 159 | B160: =花园升级数值表!P160 -> 4258.749424 | C160: 425.8749424 | D160: =C160/花园升级数值表!J160 -> 0.0225 | E160: 638.8124136 | F160: 851.7498848
A161: 160 | B161: =花园升级数值表!P161 -> 4352.803905 | C161: 435.2803905 | D161: =C161/花园升级数值表!J161 -> 0.0225 | E161: 652.9205857 | F161: 870.560781
A162: 161 | B162: =花园升级数值表!P162 -> 4448.935579 | C162: 444.8935579 | D162: =C162/花园升级数值表!J162 -> 0.0225 | E162: 667.3403369 | F162: 889.7871158
A163: 162 | B163: =花园升级数值表!P163 -> 4547.190321 | C163: 454.7190321 | D163: =C163/花园升级数值表!J163 -> 0.0225 | E163: 682.0785482 | F163: 909.4380643
A164: 163 | B164: =花园升级数值表!P164 -> 4647.61502 | C164: 464.761502 | D164: =C164/花园升级数值表!J164 -> 0.0225 | E164: 697.1422529 | F164: 929.5230039
A165: 164 | B165: =花园升级数值表!P165 -> 4750.257597 | C165: 475.0257597 | D165: =C165/花园升级数值表!J165 -> 0.0225 | E165: 712.5386396 | F165: 950.0515195
A166: 165 | B166: =花园升级数值表!P166 -> 4855.167036 | C166: 485.5167036 | D166: =C166/花园升级数值表!J166 -> 0.0225 | E166: 728.2750554 | F166: 971.0334073
A167: 166 | B167: =花园升级数值表!P167 -> 4962.3934 | C167: 496.23934 | D167: =C167/花园升级数值表!J167 -> 0.0225 | E167: 744.35901 | F167: 992.4786801
A168: 167 | B168: =花园升级数值表!P168 -> 5071.987859 | C168: 507.1987859 | D168: =C168/花园升级数值表!J168 -> 0.0225 | E168: 760.7981788 | F168: 1014.397572
A169: 168 | B169: =花园升级数值表!P169 -> 5184.00271 | C169: 518.400271 | D169: =C169/花园升级数值表!J169 -> 0.0225 | E169: 777.6004066 | F169: 1036.800542
A170: 169 | B170: =花园升级数值表!P170 -> 5298.49141 | C170: 529.849141 | D170: =C170/花园升级数值表!J170 -> 0.0225 | E170: 794.7737115 | F170: 1059.698282
A171: 170 | B171: =花园升级数值表!P171 -> 5415.508593 | C171: 541.5508593 | D171: =C171/花园升级数值表!J171 -> 0.0225 | E171: 812.326289 | F171: 1083.101719
A172: 171 | B172: =花园升级数值表!P172 -> 5562.647962 | C172: 556.2647962 | D172: =C172/花园升级数值表!J172 -> 0.0225 | E172: 834.3971942 | F172: 1112.529592
A173: 172 | B173: =花园升级数值表!P173 -> 5713.785107 | C173: 571.3785107 | D173: =C173/花园升级数值表!J173 -> 0.0225 | E173: 857.067766 | F173: 1142.757021
A174: 173 | B174: =花园升级数值表!P174 -> 5869.028648 | C174: 586.9028648 | D174: =C174/花园升级数值表!J174 -> 0.0225 | E174: 880.3542972 | F174: 1173.80573
A175: 174 | B175: =花园升级数值表!P175 -> 6028.490156 | C175: 602.8490156 | D175: =C175/花园升级数值表!J175 -> 0.0225 | E175: 904.2735235 | F175: 1205.698031
A176: 175 | B176: =花园升级数值表!P176 -> 6192.284234 | C176: 619.2284234 | D176: =C176/花园升级数值表!J176 -> 0.0225 | E176: 928.8426351 | F176: 1238.456847
A177: 176 | B177: =花园升级数值表!P177 -> 6360.528597 | C177: 636.0528597 | D177: =C177/花园升级数值表!J177 -> 0.0225 | E177: 954.0792895 | F177: 1272.105719
A178: 177 | B178: =花园升级数值表!P178 -> 6533.344159 | C178: 653.3344159 | D178: =C178/花园升级数值表!J178 -> 0.0225 | E178: 980.0016238 | F178: 1306.668832
A179: 178 | B179: =花园升级数值表!P179 -> 6710.855119 | C179: 671.0855119 | D179: =C179/花园升级数值表!J179 -> 0.0225 | E179: 1006.628268 | F179: 1342.171024
A180: 179 | B180: =花园升级数值表!P180 -> 6893.189053 | C180: 689.3189053 | D180: =C180/花园升级数值表!J180 -> 0.0225 | E180: 1033.978358 | F180: 1378.637811
A181: 180 | B181: =花园升级数值表!P181 -> 7080.476999 | C181: 708.0476999 | D181: =C181/花园升级数值表!J181 -> 0.0225 | E181: 1062.07155 | F181: 1416.0954
A182: 181 | B182: =花园升级数值表!P182 -> 7272.85356 | C182: 727.285356 | D182: =C182/花园升级数值表!J182 -> 0.0225 | E182: 1090.928034 | F182: 1454.570712
A183: 182 | B183: =花园升级数值表!P183 -> 7470.456991 | C183: 747.0456991 | D183: =C183/花园升级数值表!J183 -> 0.0225 | E183: 1120.568549 | F183: 1494.091398
A184: 183 | B184: =花园升级数值表!P184 -> 7673.429307 | C184: 767.3429307 | D184: =C184/花园升级数值表!J184 -> 0.0225 | E184: 1151.014396 | F184: 1534.685861
A185: 184 | B185: =花园升级数值表!P185 -> 7881.916381 | C185: 788.1916381 | D185: =C185/花园升级数值表!J185 -> 0.0225 | E185: 1182.287457 | F185: 1576.383276
A186: 185 | B186: =花园升级数值表!P186 -> 8096.06805 | C186: 809.606805 | D186: =C186/花园升级数值表!J186 -> 0.0225 | E186: 1214.410207 | F186: 1619.21361
A187: 186 | B187: =花园升级数值表!P187 -> 8316.038218 | C187: 831.6038218 | D187: =C187/花园升级数值表!J187 -> 0.0225 | E187: 1247.405733 | F187: 1663.207644
A188: 187 | B188: =花园升级数值表!P188 -> 8541.984977 | C188: 854.1984977 | D188: =C188/花园升级数值表!J188 -> 0.0225 | E188: 1281.297747 | F188: 1708.396995
A189: 188 | B189: =花园升级数值表!P189 -> 8774.070709 | C189: 877.4070709 | D189: =C189/花园升级数值表!J189 -> 0.0225 | E189: 1316.110606 | F189: 1754.814142
A190: 189 | B190: =花园升级数值表!P190 -> 9012.46221 | C190: 901.246221 | D190: =C190/花园升级数值表!J190 -> 0.0225 | E190: 1351.869331 | F190: 1802.492442
A191: 190 | B191: =花园升级数值表!P191 -> 9257.330808 | C191: 925.7330808 | D191: =C191/花园升级数值表!J191 -> 0.0225 | E191: 1388.599621 | F191: 1851.466162
A192: 191 | B192: =花园升级数值表!P192 -> 9508.852486 | C192: 950.8852486 | D192: =C192/花园升级数值表!J192 -> 0.0225 | E192: 1426.327873 | F192: 1901.770497
A193: 192 | B193: =花园升级数值表!P193 -> 9767.208008 | C193: 976.7208008 | D193: =C193/花园升级数值表!J193 -> 0.0225 | E193: 1465.081201 | F193: 1953.441602
A194: 193 | B194: =花园升级数值表!P194 -> 10032.58305 | C194: 1003.258305 | D194: =C194/花园升级数值表!J194 -> 0.0225 | E194: 1504.887457 | F194: 2006.51661
A195: 194 | B195: =花园升级数值表!P195 -> 10305.16833 | C195: =B195*0.1 -> 1030.516833 | D195: =C195/花园升级数值表!J195 -> 0.0225 | E195: =B195*0.15 -> 1545.77525 | F195: =B195*0.2 -> 2061.033666
A196: 195 | B196: =花园升级数值表!P196 -> 10585.15975 | C196: 1058.515975 | D196: =C196/花园升级数值表!J196 -> 0.0225 | E196: 1587.773963 | F196: 2117.031951
A197: 196 | B197: =花园升级数值表!P197 -> 10872.75855 | C197: 1087.275855 | D197: =C197/花园升级数值表!J197 -> 0.0225 | E197: 1630.913782 | F197: 2174.551709
A198: 197 | B198: =花园升级数值表!P198 -> 11168.1714 | C198: 1116.81714 | D198: =C198/花园升级数值表!J198 -> 0.0225 | E198: 1675.225709 | F198: 2233.634279
A199: 198 | B199: =花园升级数值表!P199 -> 11471.61061 | C199: 1147.161061 | D199: =C199/花园升级数值表!J199 -> 0.0225 | E199: 1720.741592 | F199: 2294.322122
A200: 199 | B200: =花园升级数值表!P200 -> 11783.29427 | C200: 1178.329427 | D200: =C200/花园升级数值表!J200 -> 0.0225 | E200: 1767.494141 | F200: 2356.658854
... 401 more rows

Sheet 精灵数值表
A1: 花园等级 | B1: 每分钟可分配总数值 | C1: 蜜蜂1 | D1: 蜜蜂2 | E1: 蜜蜂3 | F1: 蜜蜂4 | G1: 蜜蜂5 | H1: 蝴蝶1 | I1: 蝴蝶2 | J1: 蝴蝶3 | K1: 蝴蝶4 | L1: 蝴蝶5 | M1: 蜻蜓1 | N1: 蜻蜓2 | O1: 蜻蜓3 | P1: 蜻蜓4 | Q1: 蜻蜓5 | R1: 金龟子1 | S1: 金龟子2 | T1: 金龟子3 | U1: 金龟子4 | V1: 金龟子5
B2: 基准值 | C2: 0.005 | D2: 0.006 | E2: 0.007 | F2: 0.008 | G2: 0.009 | H2: 0.006 | I2: 0.007 | J2: 0.008 | K2: 0.009 | L2: 0.01 | M2: 0.007 | N2: 0.008 | O2: 0.009 | P2: 0.01 | Q2: 0.011 | R2: 0.008 | S2: 0.009 | T2: 0.01 | U2: 0.011 | V2: 0.012
A3: 1 | B3: =花园升级数值表!Q2 -> 405 | C3: =B3*0.005 -> 2.025 | D3: =B3*0.006 -> 2.43 | E3: =B3*0.007 -> 2.835 | F3: =B3*0.008 -> 3.24 | G3: =B3*0.009 -> 3.645 | H3: =B3*0.006 -> 2.43 | I3: =B3*0.007 -> 2.835 | J3: =B3*0.008 -> 3.24 | K3: =B3*0.009 -> 3.645 | L3: =B3*0.01 -> 4.05 | M3: =B3*M2 -> 2.835 | N3: =B3*0.008 -> 3.24 | O3: =B3*0.009 -> 3.645 | P3: =B3*0.01 -> 4.05 | Q3: =B3*0.011 -> 4.455 | R3: =B3*0.008 -> 3.24 | S3: =B3*0.009 -> 3.645 | T3: =B3*0.01 -> 4.05 | U3: =B3*0.011 -> 4.455 | V3: =B3*0.012 -> 4.86
A4: 2 | B4: =花园升级数值表!Q3 -> 413.944425 | C4: =B4*0.005 -> 2.069722125 | D4: =B4*0.006 -> 2.48366655 | E4: =B4*0.007 -> 2.897610975 | F4: =B4*0.008 -> 3.3115554 | G4: =B4*0.009 -> 3.725499825 | H4: =B4*0.006 -> 2.48366655 | I4: =B4*0.007 -> 2.897610975 | J4: =B4*0.008 -> 3.3115554 | K4: =B4*0.009 -> 3.725499825 | L4: =B4*0.01 -> 4.13944425 | M4: =(B4)*0.007 -> 2.897610975 | N4: =B4*0.008 -> 3.3115554 | O4: =B4*0.009 -> 3.725499825 | P4: =B4*0.01 -> 4.13944425 | Q4: =B4*0.011 -> 4.553388675 | R4: =B4*0.008 -> 3.3115554 | S4: =B4*0.009 -> 3.725499825 | T4: =B4*0.01 -> 4.13944425 | U4: =B4*0.011 -> 4.553388675 | V4: =B4*0.012 -> 4.9673331
A5: 3 | B5: =花园升级数值表!Q4 -> 423.0863876 | C5: 2.115431938 | D5: 2.538518326 | E5: 2.961604713 | F5: 3.384691101 | G5: 3.807777489 | H5: 2.538518326 | I5: 2.961604713 | J5: 3.384691101 | K5: 3.807777489 | L5: 4.230863876 | M5: 2.961604713 | N5: 3.384691101 | O5: 3.807777489 | P5: 4.230863876 | Q5: 4.653950264 | R5: 3.384691101 | S5: 3.807777489 | T5: 4.230863876 | U5: 4.653950264 | V5: 5.077036652
A6: 4 | B6: =花园升级数值表!Q5 -> 432.4302505 | C6: 2.162151252 | D6: 2.594581503 | E6: 3.027011753 | F6: 3.459442004 | G6: 3.891872254 | H6: 2.594581503 | I6: 3.027011753 | J6: 3.459442004 | K6: 3.891872254 | L6: 4.324302505 | M6: 3.027011753 | N6: 3.459442004 | O6: 3.891872254 | P6: 4.324302505 | Q6: 4.756732755 | R6: 3.459442004 | S6: 3.891872254 | T6: 4.324302505 | U6: 4.756732755 | V6: 5.189163006
A7: 5 | B7: =花园升级数值表!Q6 -> 441.9804726 | C7: 2.209902363 | D7: 2.651882835 | E7: 3.093863308 | F7: 3.535843781 | G7: 3.977824253 | H7: 2.651882835 | I7: 3.093863308 | J7: 3.535843781 | K7: 3.977824253 | L7: 4.419804726 | M7: 3.093863308 | N7: 3.535843781 | O7: 3.977824253 | P7: 4.419804726 | Q7: 4.861785198 | R7: 3.535843781 | S7: 3.977824253 | T7: 4.419804726 | U7: 4.861785198 | V7: 5.303765671
A8: 6 | B8: =花园升级数值表!Q7 -> 451.7416113 | C8: 2.258708057 | D8: 2.710449668 | E8: 3.162191279 | F8: 3.613932891 | G8: 4.065674502 | H8: 2.710449668 | I8: 3.162191279 | J8: 3.613932891 | K8: 4.065674502 | L8: 4.517416113 | M8: 3.162191279 | N8: 3.613932891 | O8: 4.065674502 | P8: 4.517416113 | Q8: 4.969157724 | R8: 3.613932891 | S8: 4.065674502 | T8: 4.517416113 | U8: 4.969157724 | V8: 5.420899336
A9: 7 | B9: =花园升级数值表!Q8 -> 461.7183248 | C9: 2.308591624 | D9: 2.770309949 | E9: 3.232028274 | F9: 3.693746598 | G9: 4.155464923 | H9: 2.770309949 | I9: 3.232028274 | J9: 3.693746598 | K9: 4.155464923 | L9: 4.617183248 | M9: 3.232028274 | N9: 3.693746598 | O9: 4.155464923 | P9: 4.617183248 | Q9: 5.078901573 | R9: 3.693746598 | S9: 4.155464923 | T9: 4.617183248 | U9: 5.078901573 | V9: 5.540619898
A10: 8 | B10: =花园升级数值表!Q9 -> 471.915374 | C10: 2.35957687 | D10: 2.831492244 | E10: 3.303407618 | F10: 3.775322992 | G10: 4.247238366 | H10: 2.831492244 | I10: 3.303407618 | J10: 3.775322992 | K10: 4.247238366 | L10: 4.71915374 | M10: 3.303407618 | N10: 3.775322992 | O10: 4.247238366 | P10: 4.71915374 | Q10: 5.191069114 | R10: 3.775322992 | S10: 4.247238366 | T10: 4.71915374 | U10: 5.191069114 | V10: 5.662984488
A11: 9 | B11: =花园升级数值表!Q10 -> 482.337625 | C11: 2.411688125 | D11: 2.89402575 | E11: 3.376363375 | F11: 3.858701 | G11: 4.341038625 | H11: 2.89402575 | I11: 3.376363375 | J11: 3.858701 | K11: 4.341038625 | L11: 4.82337625 | M11: 3.376363375 | N11: 3.858701 | O11: 4.341038625 | P11: 4.82337625 | Q11: 5.305713875 | R11: 3.858701 | S11: 4.341038625 | T11: 4.82337625 | U11: 5.305713875 | V11: 5.7880515
A12: 10 | B12: =花园升级数值表!Q11 -> 492.9900515 | C12: 2.464950257 | D12: 2.957940309 | E12: 3.45093036 | F12: 3.943920412 | G12: 4.436910463 | H12: 2.957940309 | I12: 3.45093036 | J12: 3.943920412 | K12: 4.436910463 | L12: 4.929900515 | M12: 3.45093036 | N12: 3.943920412 | O12: 4.436910463 | P12: 4.929900515 | Q12: 5.422890566 | R12: 3.943920412 | S12: 4.436910463 | T12: 4.929900515 | U12: 5.422890566 | V12: 5.915880618
A13: 11 | B13: =花园升级数值表!Q12 -> 503.8777368 | C13: 2.519388684 | D13: 3.023266421 | E13: 3.527144157 | F13: 4.031021894 | G13: 4.534899631 | H13: 3.023266421 | I13: 3.527144157 | J13: 4.031021894 | K13: 4.534899631 | L13: 5.038777368 | M13: 3.527144157 | N13: 4.031021894 | O13: 4.534899631 | P13: 5.038777368 | Q13: 5.542655105 | R13: 4.031021894 | S13: 4.534899631 | T13: 5.038777368 | U13: 5.542655105 | V13: 6.046532841
A14: 12 | B14: =花园升级数值表!Q13 -> 515.0058766 | C14: 2.575029383 | D14: 3.09003526 | E14: 3.605041136 | F14: 4.120047013 | G14: 4.635052889 | H14: 3.09003526 | I14: 3.605041136 | J14: 4.120047013 | K14: 4.635052889 | L14: 5.150058766 | M14: 3.605041136 | N14: 4.120047013 | O14: 4.635052889 | P14: 5.150058766 | Q14: 5.665064643 | R14: 4.120047013 | S14: 4.635052889 | T14: 5.150058766 | U14: 5.665064643 | V14: 6.180070519
A15: 13 | B15: =花园升级数值表!Q14 -> 526.3797814 | C15: 2.631898907 | D15: 3.158278688 | E15: 3.68465847 | F15: 4.211038251 | G15: 4.737418032 | H15: 3.158278688 | I15: 3.68465847 | J15: 4.211038251 | K15: 4.737418032 | L15: 5.263797814 | M15: 3.68465847 | N15: 4.211038251 | O15: 4.737418032 | P15: 5.263797814 | Q15: 5.790177595 | R15: 4.211038251 | S15: 4.737418032 | T15: 5.263797814 | U15: 5.790177595 | V15: 6.316557377
A16: 14 | B16: =花园升级数值表!Q15 -> 538.0048788 | C16: 2.690024394 | D16: 3.228029273 | E16: 3.766034152 | F16: 4.304039031 | G16: 4.84204391 | H16: 3.228029273 | I16: 3.766034152 | J16: 4.304039031 | K16: 4.84204391 | L16: 5.380048788 | M16: 3.766034152 | N16: 4.304039031 | O16: 4.84204391 | P16: 5.380048788 | Q16: 5.918053667 | R16: 4.304039031 | S16: 4.84204391 | T16: 5.380048788 | U16: 5.918053667 | V16: 6.456058546
A17: 15 | B17: =花园升级数值表!Q16 -> 549.8867166 | C17: 2.749433583 | D17: 3.2993203 | E17: 3.849207016 | F17: 4.399093733 | G17: 4.948980449 | H17: 3.2993203 | I17: 3.849207016 | J17: 4.399093733 | K17: 4.948980449 | L17: 5.498867166 | M17: 3.849207016 | N17: 4.399093733 | O17: 4.948980449 | P17: 5.498867166 | Q17: 6.048753883 | R17: 4.399093733 | S17: 4.948980449 | T17: 5.498867166 | U17: 6.048753883 | V17: 6.598640599
A18: 16 | B18: =花园升级数值表!Q17 -> 562.0309647 | C18: 2.810154824 | D18: 3.372185788 | E18: 3.934216753 | F18: 4.496247718 | G18: 5.058278683 | H18: 3.372185788 | I18: 3.934216753 | J18: 4.496247718 | K18: 5.058278683 | L18: 5.620309647 | M18: 3.934216753 | N18: 4.496247718 | O18: 5.058278683 | P18: 5.620309647 | Q18: 6.182340612 | R18: 4.496247718 | S18: 5.058278683 | T18: 5.620309647 | U18: 6.182340612 | V18: 6.744371577
A19: 17 | B19: =花园升级数值表!Q18 -> 574.4434186 | C19: 2.872217093 | D19: 3.446660512 | E19: 4.02110393 | F19: 4.595547349 | G19: 5.169990767 | H19: 3.446660512 | I19: 4.02110393 | J19: 4.595547349 | K19: 5.169990767 | L19: 5.744434186 | M19: 4.02110393 | N19: 4.595547349 | O19: 5.169990767 | P19: 5.744434186 | Q19: 6.318877604 | R19: 4.595547349 | S19: 5.169990767 | T19: 5.744434186 | U19: 6.318877604 | V19: 6.893321023
A20: 18 | B20: =花园升级数值表!Q19 -> 587.1300015 | C20: 2.935650007 | D20: 3.522780009 | E20: 4.10991001 | F20: 4.697040012 | G20: 5.284170013 | H20: 3.522780009 | I20: 4.10991001 | J20: 4.697040012 | K20: 5.284170013 | L20: 5.871300015 | M20: 4.10991001 | N20: 4.697040012 | O20: 5.284170013 | P20: 5.871300015 | Q20: 6.458430016 | R20: 4.697040012 | S20: 5.284170013 | T20: 5.871300015 | U20: 6.458430016 | V20: 7.045560018
A21: 19 | B21: =花园升级数值表!Q20 -> 600.0967676 | C21: 3.000483838 | D21: 3.600580605 | E21: 4.200677373 | F21: 4.800774141 | G21: 5.400870908 | H21: 3.600580605 | I21: 4.200677373 | J21: 4.800774141 | K21: 5.400870908 | L21: 6.000967676 | M21: 4.200677373 | N21: 4.800774141 | O21: 5.400870908 | P21: 6.000967676 | Q21: 6.601064443 | R21: 4.800774141 | S21: 5.400870908 | T21: 6.000967676 | U21: 6.601064443 | V21: 7.201161211
A22: 20 | B22: =花园升级数值表!Q21 -> 613.3499047 | C22: 3.066749523 | D22: 3.680099428 | E22: 4.293449333 | F22: 4.906799237 | G22: 5.520149142 | H22: 3.680099428 | I22: 4.293449333 | J22: 4.906799237 | K22: 5.520149142 | L22: 6.133499047 | M22: 4.293449333 | N22: 4.906799237 | O22: 5.520149142 | P22: 6.133499047 | Q22: 6.746848952 | R22: 4.906799237 | S22: 5.520149142 | T22: 6.133499047 | U22: 6.746848952 | V22: 7.360198856
A23: 21 | B23: =花园升级数值表!Q22 -> 626.8957373 | C23: 3.134478687 | D23: 3.761374424 | E23: 4.388270161 | F23: 5.015165899 | G23: 5.642061636 | H23: 3.761374424 | I23: 4.388270161 | J23: 5.015165899 | K23: 5.642061636 | L23: 6.268957373 | M23: 4.388270161 | N23: 5.015165899 | O23: 5.642061636 | P23: 6.268957373 | Q23: 6.895853111 | R23: 5.015165899 | S23: 5.642061636 | T23: 6.268957373 | U23: 6.895853111 | V23: 7.522748848
A24: 22 | B24: =花园升级数值表!Q23 -> 640.7407297 | C24: 3.203703648 | D24: 3.844444378 | E24: 4.485185108 | F24: 5.125925838 | G24: 5.766666567 | H24: 3.844444378 | I24: 4.485185108 | J24: 5.125925838 | K24: 5.766666567 | L24: 6.407407297 | M24: 4.485185108 | N24: 5.125925838 | O24: 5.766666567 | P24: 6.407407297 | Q24: 7.048148027 | R24: 5.125925838 | S24: 5.766666567 | T24: 6.407407297 | U24: 7.048148027 | V24: 7.688888756
A25: 23 | B25: =花园升级数值表!Q24 -> 654.8914887 | C25: 3.274457444 | D25: 3.929348932 | E25: 4.584240421 | F25: 5.23913191 | G25: 5.894023398 | H25: 3.929348932 | I25: 4.584240421 | J25: 5.23913191 | K25: 5.894023398 | L25: 6.548914887 | M25: 4.584240421 | N25: 5.23913191 | O25: 5.894023398 | P25: 6.548914887 | Q25: 7.203806376 | R25: 5.23913191 | S25: 5.894023398 | T25: 6.548914887 | U25: 7.203806376 | V25: 7.858697864
A26: 24 | B26: =花园升级数值表!Q25 -> 669.3547672 | C26: 3.346773836 | D26: 4.016128603 | E26: 4.685483371 | F26: 5.354838138 | G26: 6.024192905 | H26: 4.016128603 | I26: 4.685483371 | J26: 5.354838138 | K26: 6.024192905 | L26: 6.693547672 | M26: 4.685483371 | N26: 5.354838138 | O26: 6.024192905 | P26: 6.693547672 | Q26: 7.36290244 | R26: 5.354838138 | S26: 6.024192905 | T26: 6.693547672 | U26: 7.36290244 | V26: 8.032257207
A27: 25 | B27: =花园升级数值表!Q26 -> 684.1374673 | C27: 3.420687336 | D27: 4.104824804 | E27: 4.788962271 | F27: 5.473099738 | G27: 6.157237205 | H27: 4.104824804 | I27: 4.788962271 | J27: 5.473099738 | K27: 6.157237205 | L27: 6.841374673 | M27: 4.788962271 | N27: 5.473099738 | O27: 6.157237205 | P27: 6.841374673 | Q27: 7.52551214 | R27: 5.473099738 | S27: 6.157237205 | T27: 6.841374673 | U27: 7.52551214 | V27: 8.209649607
A28: 26 | B28: =花园升级数值表!Q27 -> 699.2466432 | C28: 3.496233216 | D28: 4.195479859 | E28: 4.894726503 | F28: 5.593973146 | G28: 6.293219789 | H28: 4.195479859 | I28: 4.894726503 | J28: 5.593973146 | K28: 6.293219789 | L28: 6.992466432 | M28: 4.894726503 | N28: 5.593973146 | O28: 6.293219789 | P28: 6.992466432 | Q28: 7.691713076 | R28: 5.593973146 | S28: 6.293219789 | T28: 6.992466432 | U28: 7.691713076 | V28: 8.390959719
A29: 27 | B29: =花园升级数值表!Q28 -> 714.6895053 | C29: 3.573447527 | D29: 4.288137032 | E29: 5.002826537 | F29: 5.717516043 | G29: 6.432205548 | H29: 4.288137032 | I29: 5.002826537 | J29: 5.717516043 | K29: 6.432205548 | L29: 7.146895053 | M29: 5.002826537 | N29: 5.717516043 | O29: 6.432205548 | P29: 7.146895053 | Q29: 7.861584559 | R29: 5.717516043 | S29: 6.432205548 | T29: 7.146895053 | U29: 7.861584559 | V29: 8.576274064
A30: 28 | B30: =花园升级数值表!Q29 -> 730.4734231 | C30: 3.652367115 | D30: 4.382840538 | E30: 5.113313962 | F30: 5.843787385 | G30: 6.574260808 | H30: 4.382840538 | I30: 5.113313962 | J30: 5.843787385 | K30: 6.574260808 | L30: 7.304734231 | M30: 5.113313962 | N30: 5.843787385 | O30: 6.574260808 | P30: 7.304734231 | Q30: 8.035207654 | R30: 5.843787385 | S30: 6.574260808 | T30: 7.304734231 | U30: 8.035207654 | V30: 8.765681077
A31: 29 | B31: =花园升级数值表!Q30 -> 746.6059286 | C31: 3.733029643 | D31: 4.479635572 | E31: 5.2262415 | F31: 5.972847429 | G31: 6.719453358 | H31: 4.479635572 | I31: 5.2262415 | J31: 5.972847429 | K31: 6.719453358 | L31: 7.466059286 | M31: 5.2262415 | N31: 5.972847429 | O31: 6.719453358 | P31: 7.466059286 | Q31: 8.212665215 | R31: 5.972847429 | S31: 6.719453358 | T31: 7.466059286 | U31: 8.212665215 | V31: 8.959271143
A32: 30 | B32: =花园升级数值表!Q31 -> 763.0947206 | C32: 3.815473603 | D32: 4.578568323 | E32: 5.341663044 | F32: 6.104757764 | G32: 6.867852485 | H32: 4.578568323 | I32: 5.341663044 | J32: 6.104757764 | K32: 6.867852485 | L32: 7.630947206 | M32: 5.341663044 | N32: 6.104757764 | O32: 6.867852485 | P32: 7.630947206 | Q32: 8.394041926 | R32: 6.104757764 | S32: 6.867852485 | T32: 7.630947206 | U32: 8.394041926 | V32: 9.157136647
A33: 31 | B33: =花园升级数值表!Q32 -> 779.9476675 | C33: 3.899738337 | D33: 4.679686005 | E33: 5.459633672 | F33: 6.23958134 | G33: 7.019529007 | H33: 4.679686005 | I33: 5.459633672 | J33: 6.23958134 | K33: 7.019529007 | L33: 7.799476675 | M33: 5.459633672 | N33: 6.23958134 | O33: 7.019529007 | P33: 7.799476675 | Q33: 8.579424342 | R33: 6.23958134 | S33: 7.019529007 | T33: 7.799476675 | U33: 8.579424342 | V33: 9.359372009
A34: 32 | B34: =花园升级数值表!Q33 -> 797.1728117 | C34: 3.985864058 | D34: 4.78303687 | E34: 5.580209682 | F34: 6.377382494 | G34: 7.174555305 | H34: 4.78303687 | I34: 5.580209682 | J34: 6.377382494 | K34: 7.174555305 | L34: 7.971728117 | M34: 5.580209682 | N34: 6.377382494 | O34: 7.174555305 | P34: 7.971728117 | Q34: 8.768900929 | R34: 6.377382494 | S34: 7.174555305 | T34: 7.971728117 | U34: 8.768900929 | V34: 9.56607374
A35: 33 | B35: =花园升级数值表!Q34 -> 814.7783732 | C35: 4.073891866 | D35: 4.888670239 | E35: 5.703448613 | F35: 6.518226986 | G35: 7.333005359 | H35: 4.888670239 | I35: 5.703448613 | J35: 6.518226986 | K35: 7.333005359 | L35: 8.147783732 | M35: 5.703448613 | N35: 6.518226986 | O35: 7.333005359 | P35: 8.147783732 | Q35: 8.962562106 | R35: 6.518226986 | S35: 7.333005359 | T35: 8.147783732 | U35: 8.962562106 | V35: 9.777340479
A36: 34 | B36: =花园升级数值表!Q35 -> 832.7727536 | C36: 4.163863768 | D36: 4.996636522 | E36: 5.829409275 | F36: 6.662182029 | G36: 7.494954783 | H36: 4.996636522 | I36: 5.829409275 | J36: 6.662182029 | K36: 7.494954783 | L36: 8.327727536 | M36: 5.829409275 | N36: 6.662182029 | O36: 7.494954783 | P36: 8.327727536 | Q36: 9.16050029 | R36: 6.662182029 | S36: 7.494954783 | T36: 8.327727536 | U36: 9.16050029 | V36: 9.993273043
A37: 35 | B37: =花园升级数值表!Q36 -> 851.1645399 | C37: 4.255822699 | D37: 5.106987239 | E37: 5.958151779 | F37: 6.809316319 | G37: 7.660480859 | H37: 5.106987239 | I37: 5.958151779 | J37: 6.809316319 | K37: 7.660480859 | L37: 8.511645399 | M37: 5.958151779 | N37: 6.809316319 | O37: 7.660480859 | P37: 8.511645399 | Q37: 9.362809939 | R37: 6.809316319 | S37: 7.660480859 | T37: 8.511645399 | U37: 9.362809939 | V37: 10.21397448
A38: 36 | B38: =花园升级数值表!Q37 -> 869.9625087 | C38: 4.349812544 | D38: 5.219775052 | E38: 6.089737561 | F38: 6.95970007 | G38: 7.829662579 | H38: 5.219775052 | I38: 6.089737561 | J38: 6.95970007 | K38: 7.829662579 | L38: 8.699625087 | M38: 6.089737561 | N38: 6.95970007 | O38: 7.829662579 | P38: 8.699625087 | Q38: 9.569587596 | R38: 6.95970007 | S38: 7.829662579 | T38: 8.699625087 | U38: 9.569587596 | V38: 10.4395501
A39: 37 | B39: =花园升级数值表!Q38 -> 889.1756307 | C39: 4.445878154 | D39: 5.335053784 | E39: 6.224229415 | F39: 7.113405046 | G39: 8.002580677 | H39: 5.335053784 | I39: 6.224229415 | J39: 7.113405046 | K39: 8.002580677 | L39: 8.891756307 | M39: 6.224229415 | N39: 7.113405046 | O39: 8.002580677 | P39: 8.891756307 | Q39: 9.780931938 | R39: 7.113405046 | S39: 8.002580677 | T39: 8.891756307 | U39: 9.780931938 | V39: 10.67010757
A40: 38 | B40: =花园升级数值表!Q39 -> 908.8130746 | C40: 4.544065373 | D40: 5.452878447 | E40: 6.361691522 | F40: 7.270504596 | G40: 8.179317671 | H40: 5.452878447 | I40: 6.361691522 | J40: 7.270504596 | K40: 8.179317671 | L40: 9.088130746 | M40: 6.361691522 | N40: 7.270504596 | O40: 8.179317671 | P40: 9.088130746 | Q40: 9.99694382 | R40: 7.270504596 | S40: 8.179317671 | T40: 9.088130746 | U40: 9.99694382 | V40: 10.90575689
A41: 39 | B41: =花园升级数值表!Q40 -> 928.8842113 | C41: 4.644421057 | D41: 5.573305268 | E41: 6.502189479 | F41: 7.43107369 | G41: 8.359957902 | H41: 5.573305268 | I41: 6.502189479 | J41: 7.43107369 | K41: 8.359957902 | L41: 9.288842113 | M41: 6.502189479 | N41: 7.43107369 | O41: 8.359957902 | P41: 9.288842113 | Q41: 10.21772632 | R41: 7.43107369 | S41: 8.359957902 | T41: 9.288842113 | U41: 10.21772632 | V41: 11.14661054
A42: 40 | B42: =花园升级数值表!Q41 -> 949.3986191 | C42: 4.746993096 | D42: 5.696391715 | E42: 6.645790334 | F42: 7.595188953 | G42: 8.544587572 | H42: 5.696391715 | I42: 6.645790334 | J42: 7.595188953 | K42: 8.544587572 | L42: 9.493986191 | M42: 6.645790334 | N42: 7.595188953 | O42: 8.544587572 | P42: 9.493986191 | Q42: 10.44338481 | R42: 7.595188953 | S42: 8.544587572 | T42: 9.493986191 | U42: 10.44338481 | V42: 11.39278343
A43: 41 | B43: =花园升级数值表!Q42 -> 970.3660876 | C43: 4.851830438 | D43: 5.822196526 | E43: 6.792562613 | F43: 7.762928701 | G43: 8.733294789 | H43: 5.822196526 | I43: 6.792562613 | J43: 7.762928701 | K43: 8.733294789 | L43: 9.703660876 | M43: 6.792562613 | N43: 7.762928701 | O43: 8.733294789 | P43: 9.703660876 | Q43: 10.67402696 | R43: 7.762928701 | S43: 8.733294789 | T43: 9.703660876 | U43: 10.67402696 | V43: 11.64439305
A44: 42 | B44: =花园升级数值表!Q43 -> 991.7966227 | C44: 4.958983113 | D44: 5.950779736 | E44: 6.942576359 | F44: 7.934372981 | G44: 8.926169604 | H44: 5.950779736 | I44: 6.942576359 | J44: 7.934372981 | K44: 8.926169604 | L44: 9.917966227 | M44: 6.942576359 | N44: 7.934372981 | O44: 8.926169604 | P44: 9.917966227 | Q44: 10.90976285 | R44: 7.934372981 | S44: 8.926169604 | T44: 9.917966227 | U44: 10.90976285 | V44: 11.90155947
A45: 43 | B45: =花园升级数值表!Q44 -> 1013.700451 | C45: 5.068502255 | D45: 6.082202706 | E45: 7.095903157 | F45: 8.109603609 | G45: 9.12330406 | H45: 6.082202706 | I45: 7.095903157 | J45: 8.109603609 | K45: 9.12330406 | L45: 10.13700451 | M45: 7.095903157 | N45: 8.109603609 | O45: 9.12330406 | P45: 10.13700451 | Q45: 11.15070496 | R45: 8.109603609 | S45: 9.12330406 | T45: 10.13700451 | U45: 11.15070496 | V45: 12.16440541
A46: 44 | B46: =花园升级数值表!Q45 -> 1036.088026 | C46: 5.180440128 | D46: 6.216528153 | E46: 7.252616179 | F46: 8.288704204 | G46: 9.32479223 | H46: 6.216528153 | I46: 7.252616179 | J46: 8.288704204 | K46: 9.32479223 | L46: 10.36088026 | M46: 7.252616179 | N46: 8.288704204 | O46: 9.32479223 | P46: 10.36088026 | Q46: 11.39696828 | R46: 8.288704204 | S46: 9.32479223 | T46: 10.36088026 | U46: 11.39696828 | V46: 12.43305631
A47: 45 | B47: =花园升级数值表!Q46 -> 1058.97003 | C47: 5.294850148 | D47: 6.353820177 | E47: 7.412790207 | F47: 8.471760237 | G47: 9.530730266 | H47: 6.353820177 | I47: 7.412790207 | J47: 8.471760237 | K47: 9.530730266 | L47: 10.5897003 | M47: 7.412790207 | N47: 8.471760237 | O47: 9.530730266 | P47: 10.5897003 | Q47: 11.64867033 | R47: 8.471760237 | S47: 9.530730266 | T47: 10.5897003 | U47: 11.64867033 | V47: 12.70764035
A48: 46 | B48: =花园升级数值表!Q47 -> 1082.357383 | C48: 5.411786913 | D48: 6.494144296 | E48: 7.576501679 | F48: 8.658859061 | G48: 9.741216444 | H48: 6.494144296 | I48: 7.576501679 | J48: 8.658859061 | K48: 9.741216444 | L48: 10.82357383 | M48: 7.576501679 | N48: 8.658859061 | O48: 9.741216444 | P48: 10.82357383 | Q48: 11.90593121 | R48: 8.658859061 | S48: 9.741216444 | T48: 10.82357383 | U48: 11.90593121 | V48: 12.98828859
A49: 47 | B49: =花园升级数值表!Q48 -> 1106.261245 | C49: 5.531306227 | D49: 6.637567473 | E49: 7.743828718 | F49: 8.850089964 | G49: 9.956351209 | H49: 6.637567473 | I49: 7.743828718 | J49: 8.850089964 | K49: 9.956351209 | L49: 11.06261245 | M49: 7.743828718 | N49: 8.850089964 | O49: 9.956351209 | P49: 11.06261245 | Q49: 12.1688737 | R49: 8.850089964 | S49: 9.956351209 | T49: 11.06261245 | U49: 12.1688737 | V49: 13.27513495
A50: 48 | B50: =花园升级数值表!Q49 -> 1130.693025 | C50: 5.653465125 | D50: 6.78415815 | E50: 7.914851176 | F50: 9.045544201 | G50: 10.17623723 | H50: 6.78415815 | I50: 7.914851176 | J50: 9.045544201 | K50: 10.17623723 | L50: 11.30693025 | M50: 7.914851176 | N50: 9.045544201 | O50: 10.17623723 | P50: 11.30693025 | Q50: 12.43762328 | R50: 9.045544201 | S50: 10.17623723 | T50: 11.30693025 | U50: 12.43762328 | V50: 13.5683163
A51: 49 | B51: =花园升级数值表!Q50 -> 1155.664381 | C51: 5.778321903 | D51: 6.933986283 | E51: 8.089650664 | F51: 9.245315044 | G51: 10.40097942 | H51: 6.933986283 | I51: 8.089650664 | J51: 9.245315044 | K51: 10.40097942 | L51: 11.55664381 | M51: 8.089650664 | N51: 9.245315044 | O51: 10.40097942 | P51: 11.55664381 | Q51: 12.71230819 | R51: 9.245315044 | S51: 10.40097942 | T51: 11.55664381 | U51: 12.71230819 | V51: 13.86797257
A52: 50 | B52: =花园升级数值表!Q51 -> 1181.187228 | C52: 5.905936142 | D52: 7.08712337 | E52: 8.268310599 | F52: 9.449497827 | G52: 10.63068506 | H52: 7.08712337 | I52: 8.268310599 | J52: 9.449497827 | K52: 10.63068506 | L52: 11.81187228 | M52: 8.268310599 | N52: 9.449497827 | O52: 10.63068506 | P52: 11.81187228 | Q52: 12.99305951 | R52: 9.449497827 | S52: 10.63068506 | T52: 11.81187228 | U52: 12.99305951 | V52: 14.17424674
A53: 51 | B53: =花园升级数值表!Q52 -> 1207.273748 | C53: 6.036368742 | D53: 7.24364249 | E53: 8.450916238 | F53: 9.658189987 | G53: 10.86546373 | H53: 7.24364249 | I53: 8.450916238 | J53: 9.658189987 | K53: 10.86546373 | L53: 12.07273748 | M53: 8.450916238 | N53: 9.658189987 | O53: 10.86546373 | P53: 12.07273748 | Q53: 13.28001123 | R53: 9.658189987 | S53: 10.86546373 | T53: 12.07273748 | U53: 13.28001123 | V53: 14.48728498
A54: 52 | B54: =花园升级数值表!Q53 -> 1233.936389 | C54: 6.169681945 | D54: 7.403618334 | E54: 8.637554723 | F54: 9.871491112 | G54: 11.1054275 | H54: 7.403618334 | I54: 8.637554723 | J54: 9.871491112 | K54: 11.1054275 | L54: 12.33936389 | M54: 8.637554723 | N54: 9.871491112 | O54: 11.1054275 | P54: 12.33936389 | Q54: 13.57330028 | R54: 9.871491112 | S54: 11.1054275 | T54: 12.33936389 | U54: 13.57330028 | V54: 14.80723667
A55: 53 | B55: =花园升级数值表!Q54 -> 1261.187874 | C55: 6.305939371 | D55: 7.567127245 | E55: 8.828315119 | F55: 10.08950299 | G55: 11.35069087 | H55: 7.567127245 | I55: 8.828315119 | J55: 10.08950299 | K55: 11.35069087 | L55: 12.61187874 | M55: 8.828315119 | N55: 10.08950299 | O55: 11.35069087 | P55: 12.61187874 | Q55: 13.87306662 | R55: 10.08950299 | S55: 11.35069087 | T55: 12.61187874 | U55: 13.87306662 | V55: 15.13425449
A56: 54 | B56: =花园升级数值表!Q55 -> 1289.041208 | C56: 6.445206042 | D56: 7.73424725 | E56: 9.023288459 | F56: 10.31232967 | G56: 11.60137088 | H56: 7.73424725 | I56: 9.023288459 | J56: 10.31232967 | K56: 11.60137088 | L56: 12.89041208 | M56: 9.023288459 | N56: 10.31232967 | O56: 11.60137088 | P56: 12.89041208 | Q56: 14.17945329 | R56: 10.31232967 | S56: 11.60137088 | T56: 12.89041208 | U56: 14.17945329 | V56: 15.4684945
A57: 55 | B57: =花园升级数值表!Q56 -> 1317.509683 | C57: 6.587548417 | D57: 7.905058101 | E57: 9.222567784 | F57: 10.54007747 | G57: 11.85758715 | H57: 7.905058101 | I57: 9.222567784 | J57: 10.54007747 | K57: 11.85758715 | L57: 13.17509683 | M57: 9.222567784 | N57: 10.54007747 | O57: 11.85758715 | P57: 13.17509683 | Q57: 14.49260652 | R57: 10.54007747 | S57: 11.85758715 | T57: 13.17509683 | U57: 14.49260652 | V57: 15.8101162
A58: 56 | B58: =花园升级数值表!Q57 -> 1346.606885 | C58: 6.733034424 | D58: 8.079641309 | E58: 9.426248194 | F58: 10.77285508 | G58: 12.11946196 | H58: 8.079641309 | I58: 9.426248194 | J58: 10.77285508 | K58: 12.11946196 | L58: 13.46606885 | M58: 9.426248194 | N58: 10.77285508 | O58: 12.11946196 | P58: 13.46606885 | Q58: 14.81267573 | R58: 10.77285508 | S58: 12.11946196 | T58: 13.46606885 | U58: 14.81267573 | V58: 16.15928262
A59: 57 | B59: =花园升级数值表!Q58 -> 1376.346698 | C59: 6.88173349 | D59: 8.258080187 | E59: 9.634426885 | F59: 11.01077358 | G59: 12.38712028 | H59: 8.258080187 | I59: 9.634426885 | J59: 11.01077358 | K59: 12.38712028 | L59: 13.76346698 | M59: 9.634426885 | N59: 11.01077358 | O59: 12.38712028 | P59: 13.76346698 | Q59: 15.13981368 | R59: 11.01077358 | S59: 12.38712028 | T59: 13.76346698 | U59: 15.13981368 | V59: 16.51616037
A60: 58 | B60: =花园升级数值表!Q59 -> 1406.743315 | C60: 7.033716574 | D60: 8.440459888 | E60: 9.847203203 | F60: 11.25394652 | G60: 12.66068983 | H60: 8.440459888 | I60: 9.847203203 | J60: 11.25394652 | K60: 12.66068983 | L60: 14.06743315 | M60: 9.847203203 | N60: 11.25394652 | O60: 12.66068983 | P60: 14.06743315 | Q60: 15.47417646 | R60: 11.25394652 | S60: 12.66068983 | T60: 14.06743315 | U60: 15.47417646 | V60: 16.88091978
A61: 59 | B61: =花园升级数值表!Q60 -> 1437.811241 | C61: 7.189056204 | D61: 8.626867445 | E61: 10.06467869 | F61: 11.50248993 | G61: 12.94030117 | H61: 8.626867445 | I61: 10.06467869 | J61: 11.50248993 | K61: 12.94030117 | L61: 14.37811241 | M61: 10.06467869 | N61: 11.50248993 | O61: 12.94030117 | P61: 14.37811241 | Q61: 15.81592365 | R61: 11.50248993 | S61: 12.94030117 | T61: 14.37811241 | U61: 15.81592365 | V61: 17.25373489
A62: 60 | B62: =花园升级数值表!Q61 -> 1469.565302 | C62: 7.34782651 | D62: 8.817391813 | E62: 10.28695711 | F62: 11.75652242 | G62: 13.22608772 | H62: 8.817391813 | I62: 10.28695711 | J62: 11.75652242 | K62: 13.22608772 | L62: 14.69565302 | M62: 10.28695711 | N62: 11.75652242 | O62: 13.22608772 | P62: 14.69565302 | Q62: 16.16521832 | R62: 11.75652242 | S62: 13.22608772 | T62: 14.69565302 | U62: 16.16521832 | V62: 17.63478363
A63: 61 | B63: =花园升级数值表!Q62 -> 1502.020652 | C63: 7.510103259 | D63: 9.012123911 | E63: 10.51414456 | F63: 12.01616521 | G63: 13.51818587 | H63: 9.012123911 | I63: 10.51414456 | J63: 12.01616521 | K63: 13.51818587 | L63: 15.02020652 | M63: 10.51414456 | N63: 12.01616521 | O63: 13.51818587 | P63: 15.02020652 | Q63: 16.52222717 | R63: 12.01616521 | S63: 13.51818587 | T63: 15.02020652 | U63: 16.52222717 | V63: 18.02424782
A64: 62 | B64: =花园升级数值表!Q63 -> 1535.192778 | C64: 7.675963889 | D64: 9.211156667 | E64: 10.74634945 | F64: 12.28154222 | G64: 13.816735 | H64: 9.211156667 | I64: 10.74634945 | J64: 12.28154222 | K64: 13.816735 | L64: 15.35192778 | M64: 10.74634945 | N64: 12.28154222 | O64: 13.816735 | P64: 15.35192778 | Q64: 16.88712056 | R64: 12.28154222 | S64: 13.816735 | T64: 15.35192778 | U64: 16.88712056 | V64: 18.42231333
A65: 63 | B65: =花园升级数值表!Q64 -> 1569.09751 | C65: 7.845487552 | D65: 9.414585062 | E65: 10.98368257 | F65: 12.55278008 | G65: 14.12187759 | H65: 9.414585062 | I65: 10.98368257 | J65: 12.55278008 | K65: 14.12187759 | L65: 15.6909751 | M65: 10.98368257 | N65: 12.55278008 | O65: 14.12187759 | P65: 15.6909751 | Q65: 17.26007261 | R65: 12.55278008 | S65: 14.12187759 | T65: 15.6909751 | U65: 17.26007261 | V65: 18.82917012
A66: 64 | B66: =花园升级数值表!Q65 -> 1603.751029 | C66: 8.018755144 | D66: 9.622506173 | E66: 11.2262572 | F66: 12.83000823 | G66: 14.43375926 | H66: 9.622506173 | I66: 11.2262572 | J66: 12.83000823 | K66: 14.43375926 | L66: 16.03751029 | M66: 11.2262572 | N66: 12.83000823 | O66: 14.43375926 | P66: 16.03751029 | Q66: 17.64126132 | R66: 12.83000823 | S66: 14.43375926 | T66: 16.03751029 | U66: 17.64126132 | V66: 19.24501235
A67: 65 | B67: =花园升级数值表!Q66 -> 1639.16987 | C67: 8.195849352 | D67: 9.835019222 | E67: 11.47418909 | F67: 13.11335896 | G67: 14.75252883 | H67: 9.835019222 | I67: 11.47418909 | J67: 13.11335896 | K67: 14.75252883 | L67: 16.3916987 | M67: 11.47418909 | N67: 13.11335896 | O67: 14.75252883 | P67: 16.3916987 | Q67: 18.03086857 | R67: 13.11335896 | S67: 14.75252883 | T67: 16.3916987 | U67: 18.03086857 | V67: 19.67003844
A68: 66 | B68: =花园升级数值表!Q67 -> 1675.370937 | C68: =B68*0.005 -> 8.376854685 | D68: =B68*0.006 -> 10.05222562 | E68: =B68*0.007 -> 11.72759656 | F68: =B68*0.008 -> 13.4029675 | G68: =B68*0.009 -> 15.07833843 | H68: =B68*0.006 -> 10.05222562 | I68: =B68*0.007 -> 11.72759656 | J68: =B68*0.008 -> 13.4029675 | K68: =B68*0.009 -> 15.07833843 | L68: =B68*0.01 -> 16.75370937 | M68: =(B68)*0.007 -> 11.72759656 | N68: =B68*0.008 -> 13.4029675 | O68: =B68*0.009 -> 15.07833843 | P68: =B68*0.01 -> 16.75370937 | Q68: =B68*0.011 -> 18.42908031 | R68: =B68*0.008 -> 13.4029675 | S68: =B68*0.009 -> 15.07833843 | T68: =B68*0.01 -> 16.75370937 | U68: =B68*0.011 -> 18.42908031 | V68: =B68*0.012 -> 20.10445124
A69: 67 | B69: =花园升级数值表!Q68 -> 1712.371504 | C69: 8.561857521 | D69: 10.27422902 | E69: 11.98660053 | F69: 13.69897203 | G69: 15.41134354 | H69: 10.27422902 | I69: 11.98660053 | J69: 13.69897203 | K69: 15.41134354 | L69: 17.12371504 | M69: 11.98660053 | N69: 13.69897203 | O69: 15.41134354 | P69: 17.12371504 | Q69: 18.83608655 | R69: 13.69897203 | S69: 15.41134354 | T69: 17.12371504 | U69: 18.83608655 | V69: 20.54845805
A70: 68 | B70: =花园升级数值表!Q69 -> 1750.189229 | C70: 8.750946144 | D70: 10.50113537 | E70: 12.2513246 | F70: 14.00151383 | G70: 15.75170306 | H70: 10.50113537 | I70: 12.2513246 | J70: 14.00151383 | K70: 15.75170306 | L70: 17.50189229 | M70: 12.2513246 | N70: 14.00151383 | O70: 15.75170306 | P70: 17.50189229 | Q70: 19.25208152 | R70: 14.00151383 | S70: 15.75170306 | T70: 17.50189229 | U70: 19.25208152 | V70: 21.00227075
A71: 69 | B71: =花园升级数值表!Q70 -> 1788.842158 | C71: 8.944210789 | D71: 10.73305295 | E71: 12.52189511 | F71: 14.31073726 | G71: 16.09957942 | H71: 10.73305295 | I71: 12.52189511 | J71: 14.31073726 | K71: 16.09957942 | L71: 17.88842158 | M71: 12.52189511 | N71: 14.31073726 | O71: 16.09957942 | P71: 17.88842158 | Q71: 19.67726374 | R71: 14.31073726 | S71: 16.09957942 | T71: 17.88842158 | U71: 19.67726374 | V71: 21.46610589
A72: 70 | B72: =花园升级数值表!Q71 -> 1828.348737 | C72: 9.141743685 | D72: 10.97009242 | E72: 12.79844116 | F72: 14.6267899 | G72: 16.45513863 | H72: 10.97009242 | I72: 12.79844116 | J72: 14.6267899 | K72: 16.45513863 | L72: 18.28348737 | M72: 12.79844116 | N72: 14.6267899 | O72: 16.45513863 | P72: 18.28348737 | Q72: 20.11183611 | R72: 14.6267899 | S72: 16.45513863 | T72: 18.28348737 | U72: 20.11183611 | V72: 21.94018484
A73: 71 | B73: =花园升级数值表!Q72 -> 1868.727819 | C73: 9.343639094 | D73: 11.21236691 | E73: 13.08109473 | F73: 14.94982255 | G73: 16.81855037 | H73: 11.21236691 | I73: 13.08109473 | J73: 14.94982255 | K73: 16.81855037 | L73: 18.68727819 | M73: 13.08109473 | N73: 14.94982255 | O73: 16.81855037 | P73: 18.68727819 | Q73: 20.55600601 | R73: 14.94982255 | S73: 16.81855037 | T73: 18.68727819 | U73: 20.55600601 | V73: 22.42473383
A74: 72 | B74: =花园升级数值表!Q73 -> 1909.998673 | C74: 9.549993363 | D74: 11.45999204 | E74: 13.36999071 | F74: 15.27998938 | G74: 17.18998805 | H74: 11.45999204 | I74: 13.36999071 | J74: 15.27998938 | K74: 17.18998805 | L74: 19.09998673 | M74: 13.36999071 | N74: 15.27998938 | O74: 17.18998805 | P74: 19.09998673 | Q74: 21.0099854 | R74: 15.27998938 | S74: 17.18998805 | T74: 19.09998673 | U74: 21.0099854 | V74: 22.91998407
A75: 73 | B75: =花园升级数值表!Q74 -> 1952.180993 | C75: 9.760904967 | D75: 11.71308596 | E75: 13.66526695 | F75: 15.61744795 | G75: 17.56962894 | H75: 11.71308596 | I75: 13.66526695 | J75: 15.61744795 | K75: 17.56962894 | L75: 19.52180993 | M75: 13.66526695 | N75: 15.61744795 | O75: 17.56962894 | P75: 19.52180993 | Q75: 21.47399093 | R75: 15.61744795 | S75: 17.56962894 | T75: 19.52180993 | U75: 21.47399093 | V75: 23.42617192
A76: 74 | B76: =花园升级数值表!Q75 -> 1995.294911 | C76: 9.976474553 | D76: 11.97176946 | E76: 13.96706437 | F76: 15.96235928 | G76: 17.9576542 | H76: 11.97176946 | I76: 13.96706437 | J76: 15.96235928 | K76: 17.9576542 | L76: 19.95294911 | M76: 13.96706437 | N76: 15.96235928 | O76: 17.9576542 | P76: 19.95294911 | Q76: 21.94824402 | R76: 15.96235928 | S76: 17.9576542 | T76: 19.95294911 | U76: 21.94824402 | V76: 23.94353893
A77: 75 | B77: =花园升级数值表!Q76 -> 2039.360999 | C77: 10.19680499 | D77: 12.23616599 | E77: 14.27552699 | F77: 16.31488799 | G77: 18.35424899 | H77: 12.23616599 | I77: 14.27552699 | J77: 16.31488799 | K77: 18.35424899 | L77: 20.39360999 | M77: 14.27552699 | N77: 16.31488799 | O77: 18.35424899 | P77: 20.39360999 | Q77: 22.43297099 | R77: 16.31488799 | S77: 18.35424899 | T77: 20.39360999 | U77: 22.43297099 | V77: 24.47233198
A78: 76 | B78: =花园升级数值表!Q77 -> 2084.400286 | C78: 10.42200143 | D78: 12.50640172 | E78: 14.590802 | F78: 16.67520229 | G78: 18.75960258 | H78: 12.50640172 | I78: 14.590802 | J78: 16.67520229 | K78: 18.75960258 | L78: 20.84400286 | M78: 14.590802 | N78: 16.67520229 | O78: 18.75960258 | P78: 20.84400286 | Q78: 22.92840315 | R78: 16.67520229 | S78: 18.75960258 | T78: 20.84400286 | U78: 22.92840315 | V78: 25.01280344
A79: 77 | B79: =花园升级数值表!Q78 -> 2130.434267 | C79: 10.65217133 | D79: 12.7826056 | E79: 14.91303987 | F79: 17.04347413 | G79: 19.1739084 | H79: 12.7826056 | I79: 14.91303987 | J79: 17.04347413 | K79: 19.1739084 | L79: 21.30434267 | M79: 14.91303987 | N79: 17.04347413 | O79: 19.1739084 | P79: 21.30434267 | Q79: 23.43477693 | R79: 17.04347413 | S79: 19.1739084 | T79: 21.30434267 | U79: 23.43477693 | V79: 25.5652112
A80: 78 | B80: =花园升级数值表!Q79 -> 2177.484907 | C80: 10.88742454 | D80: 13.06490944 | E80: 15.24239435 | F80: 17.41987926 | G80: 19.59736417 | H80: 13.06490944 | I80: 15.24239435 | J80: 17.41987926 | K80: 19.59736417 | L80: 21.77484907 | M80: 15.24239435 | N80: 17.41987926 | O80: 19.59736417 | P80: 21.77484907 | Q80: 23.95233398 | R80: 17.41987926 | S80: 19.59736417 | T80: 21.77484907 | U80: 23.95233398 | V80: 26.12981889
A81: 79 | B81: =花园升级数值表!Q80 -> 2225.574662 | C81: 11.12787331 | D81: 13.35344797 | E81: 15.57902263 | F81: 17.80459729 | G81: 20.03017195 | H81: 13.35344797 | I81: 15.57902263 | J81: 17.80459729 | K81: 20.03017195 | L81: 22.25574662 | M81: 15.57902263 | N81: 17.80459729 | O81: 20.03017195 | P81: 22.25574662 | Q81: 24.48132128 | R81: 17.80459729 | S81: 20.03017195 | T81: 22.25574662 | U81: 24.48132128 | V81: 26.70689594
A82: 80 | B82: =花园升级数值表!Q81 -> 2274.726478 | C82: 11.37363239 | D82: 13.64835887 | E82: 15.92308535 | F82: 18.19781182 | G82: 20.4725383 | H82: 13.64835887 | I82: 15.92308535 | J82: 18.19781182 | K82: 20.4725383 | L82: 22.74726478 | M82: 15.92308535 | N82: 18.19781182 | O82: 20.4725383 | P82: 22.74726478 | Q82: 25.02199126 | R82: 18.19781182 | S82: 20.4725383 | T82: 22.74726478 | U82: 25.02199126 | V82: 27.29671774
A83: 81 | B83: =花园升级数值表!Q82 -> 2324.963812 | C83: 11.62481906 | D83: 13.94978287 | E83: 16.27474669 | F83: 18.5997105 | G83: 20.92467431 | H83: 13.94978287 | I83: 16.27474669 | J83: 18.5997105 | K83: 20.92467431 | L83: 23.24963812 | M83: 16.27474669 | N83: 18.5997105 | O83: 20.92467431 | P83: 23.24963812 | Q83: 25.57460194 | R83: 18.5997105 | S83: 20.92467431 | T83: 23.24963812 | U83: 25.57460194 | V83: 27.89956575
A84: 82 | B84: =花园升级数值表!Q83 -> 2376.310638 | C84: 11.88155319 | D84: 14.25786383 | E84: 16.63417447 | F84: 19.0104851 | G84: 21.38679574 | H84: 14.25786383 | I84: 16.63417447 | J84: 19.0104851 | K84: 21.38679574 | L84: 23.76310638 | M84: 16.63417447 | N84: 19.0104851 | O84: 21.38679574 | P84: 23.76310638 | Q84: 26.13941702 | R84: 19.0104851 | S84: 21.38679574 | T84: 23.76310638 | U84: 26.13941702 | V84: 28.51572766
A85: 83 | B85: =花园升级数值表!Q84 -> 2428.791459 | C85: 12.14395729 | D85: 14.57274875 | E85: 17.00154021 | F85: 19.43033167 | G85: 21.85912313 | H85: 14.57274875 | I85: 17.00154021 | J85: 19.43033167 | K85: 21.85912313 | L85: 24.28791459 | M85: 17.00154021 | N85: 19.43033167 | O85: 21.85912313 | P85: 24.28791459 | Q85: 26.71670604 | R85: 19.43033167 | S85: 21.85912313 | T85: 24.28791459 | U85: 26.71670604 | V85: 29.1454975
A86: 84 | B86: =花园升级数值表!Q85 -> 2482.431318 | C86: 12.41215659 | D86: 14.89458791 | E86: 17.37701923 | F86: 19.85945054 | G86: 22.34188186 | H86: 14.89458791 | I86: 17.37701923 | J86: 19.85945054 | K86: 22.34188186 | L86: 24.82431318 | M86: 17.37701923 | N86: 19.85945054 | O86: 22.34188186 | P86: 24.82431318 | Q86: 27.3067445 | R86: 19.85945054 | S86: 22.34188186 | T86: 24.82431318 | U86: 27.3067445 | V86: 29.78917581
A87: 85 | B87: =花园升级数值表!Q86 -> 2537.255814 | C87: 12.68627907 | D87: 15.22353488 | E87: 17.76079069 | F87: 20.29804651 | G87: 22.83530232 | H87: 15.22353488 | I87: 17.76079069 | J87: 20.29804651 | K87: 22.83530232 | L87: 25.37255814 | M87: 17.76079069 | N87: 20.29804651 | O87: 22.83530232 | P87: 25.37255814 | Q87: 27.90981395 | R87: 20.29804651 | S87: 22.83530232 | T87: 25.37255814 | U87: 27.90981395 | V87: 30.44706976
A88: 86 | B88: =花园升级数值表!Q87 -> 2593.291108 | C88: 12.96645554 | D88: 15.55974665 | E88: 18.15303776 | F88: 20.74632887 | G88: 23.33961997 | H88: 15.55974665 | I88: 18.15303776 | J88: 20.74632887 | K88: 23.33961997 | L88: 25.93291108 | M88: 18.15303776 | N88: 20.74632887 | O88: 23.33961997 | P88: 25.93291108 | Q88: 28.52620219 | R88: 20.74632887 | S88: 23.33961997 | T88: 25.93291108 | U88: 28.52620219 | V88: 31.1194933
A89: 87 | B89: =花园升级数值表!Q88 -> 2650.563942 | C89: 13.25281971 | D89: 15.90338365 | E89: 18.5539476 | F89: 21.20451154 | G89: 23.85507548 | H89: 15.90338365 | I89: 18.5539476 | J89: 21.20451154 | K89: 23.85507548 | L89: 26.50563942 | M89: 18.5539476 | N89: 21.20451154 | O89: 23.85507548 | P89: 26.50563942 | Q89: 29.15620337 | R89: 21.20451154 | S89: 23.85507548 | T89: 26.50563942 | U89: 29.15620337 | V89: 31.80676731
A90: 88 | B90: =花园升级数值表!Q89 -> 2709.101647 | C90: 13.54550824 | D90: 16.25460988 | E90: 18.96371153 | F90: 21.67281318 | G90: 24.38191482 | H90: 16.25460988 | I90: 18.96371153 | J90: 21.67281318 | K90: 24.38191482 | L90: 27.09101647 | M90: 18.96371153 | N90: 21.67281318 | O90: 24.38191482 | P90: 27.09101647 | Q90: 29.80011812 | R90: 21.67281318 | S90: 24.38191482 | T90: 27.09101647 | U90: 29.80011812 | V90: 32.50921976
A91: 89 | B91: =花园升级数值表!Q90 -> 2768.932157 | C91: 13.84466078 | D91: 16.61359294 | E91: 19.3825251 | F91: 22.15145726 | G91: 24.92038941 | H91: 16.61359294 | I91: 19.3825251 | J91: 22.15145726 | K91: 24.92038941 | L91: 27.68932157 | M91: 19.3825251 | N91: 22.15145726 | O91: 24.92038941 | P91: 27.68932157 | Q91: 30.45825373 | R91: 22.15145726 | S91: 24.92038941 | T91: 27.68932157 | U91: 30.45825373 | V91: 33.22718588
A92: 90 | B92: =花园升级数值表!Q91 -> 2830.084024 | C92: 14.15042012 | D92: 16.98050414 | E92: 19.81058816 | F92: 22.64067219 | G92: 25.47075621 | H92: 16.98050414 | I92: 19.81058816 | J92: 22.64067219 | K92: 25.47075621 | L92: 28.30084024 | M92: 19.81058816 | N92: 22.64067219 | O92: 25.47075621 | P92: 28.30084024 | Q92: 31.13092426 | R92: 22.64067219 | S92: 25.47075621 | T92: 28.30084024 | U92: 31.13092426 | V92: 33.96100828
A93: 91 | B93: =花园升级数值表!Q92 -> 2892.586429 | C93: 14.46293215 | D93: 17.35551858 | E93: 20.248105 | F93: 23.14069143 | G93: 26.03327786 | H93: 17.35551858 | I93: 20.248105 | J93: 23.14069143 | K93: 26.03327786 | L93: 28.92586429 | M93: 20.248105 | N93: 23.14069143 | O93: 26.03327786 | P93: 28.92586429 | Q93: 31.81845072 | R93: 23.14069143 | S93: 26.03327786 | T93: 28.92586429 | U93: 31.81845072 | V93: 34.71103715
A94: 92 | B94: =花园升级数值表!Q93 -> 2956.469201 | C94: 14.782346 | D94: 17.7388152 | E94: 20.6952844 | F94: 23.6517536 | G94: 26.6082228 | H94: 17.7388152 | I94: 20.6952844 | J94: 23.6517536 | K94: 26.6082228 | L94: 29.56469201 | M94: 20.6952844 | N94: 23.6517536 | O94: 26.6082228 | P94: 29.56469201 | Q94: 32.52116121 | R94: 23.6517536 | S94: 26.6082228 | T94: 29.56469201 | U94: 32.52116121 | V94: 35.47763041
A95: 93 | B95: =花园升级数值表!Q94 -> 3021.762823 | C95: 15.10881411 | D95: 18.13057694 | E95: 21.15233976 | F95: 24.17410258 | G95: 27.19586541 | H95: 18.13057694 | I95: 21.15233976 | J95: 24.17410258 | K95: 27.19586541 | L95: 30.21762823 | M95: 21.15233976 | N95: 24.17410258 | O95: 27.19586541 | P95: 30.21762823 | Q95: 33.23939105 | R95: 24.17410258 | S95: 27.19586541 | T95: 30.21762823 | U95: 33.23939105 | V95: 36.26115387
A96: 94 | B96: =花园升级数值表!Q95 -> 3088.498455 | C96: 15.44249227 | D96: 18.53099073 | E96: 21.61948918 | F96: 24.70798764 | G96: 27.79648609 | H96: 18.53099073 | I96: 21.61948918 | J96: 24.70798764 | K96: 27.79648609 | L96: 30.88498455 | M96: 21.61948918 | N96: 24.70798764 | O96: 27.79648609 | P96: 30.88498455 | Q96: 33.973483 | R96: 24.70798764 | S96: 27.79648609 | T96: 30.88498455 | U96: 33.973483 | V96: 37.06198146
A97: 95 | B97: =花园升级数值表!Q96 -> 3156.707943 | C97: 15.78353972 | D97: 18.94024766 | E97: 22.0969556 | F97: 25.25366354 | G97: 28.41037149 | H97: 18.94024766 | I97: 22.0969556 | J97: 25.25366354 | K97: 28.41037149 | L97: 31.56707943 | M97: 22.0969556 | N97: 25.25366354 | O97: 28.41037149 | P97: 31.56707943 | Q97: 34.72378737 | R97: 25.25366354 | S97: 28.41037149 | T97: 31.56707943 | U97: 34.72378737 | V97: 37.88049532
A98: 96 | B98: =花园升级数值表!Q97 -> 3226.423838 | C98: 16.13211919 | D98: 19.35854303 | E98: 22.58496687 | F98: 25.8113907 | G98: 29.03781454 | H98: 19.35854303 | I98: 22.58496687 | J98: 25.8113907 | K98: 29.03781454 | L98: 32.26423838 | M98: 22.58496687 | N98: 25.8113907 | O98: 29.03781454 | P98: 32.26423838 | Q98: 35.49066222 | R98: 25.8113907 | S98: 29.03781454 | T98: 32.26423838 | U98: 35.49066222 | V98: 38.71708606
A99: 97 | B99: =花园升级数值表!Q98 -> 3297.679409 | C99: 16.48839704 | D99: 19.78607645 | E99: 23.08375586 | F99: 26.38143527 | G99: 29.67911468 | H99: 19.78607645 | I99: 23.08375586 | J99: 26.38143527 | K99: 29.67911468 | L99: 32.97679409 | M99: 23.08375586 | N99: 26.38143527 | O99: 29.67911468 | P99: 32.97679409 | Q99: 36.27447349 | R99: 26.38143527 | S99: 29.67911468 | T99: 32.97679409 | U99: 36.27447349 | V99: 39.5721529
A100: 98 | B100: =花园升级数值表!Q99 -> 3370.508658 | C100: 16.85254329 | D100: 20.22305195 | E100: 23.59356061 | F100: 26.96406927 | G100: 30.33457792 | H100: 20.22305195 | I100: 23.59356061 | J100: 26.96406927 | K100: 30.33457792 | L100: 33.70508658 | M100: 23.59356061 | N100: 26.96406927 | O100: 30.33457792 | P100: 33.70508658 | Q100: 37.07559524 | R100: 26.96406927 | S100: 30.33457792 | T100: 33.70508658 | U100: 37.07559524 | V100: 40.4461039
A101: 99 | B101: =花园升级数值表!Q100 -> 3444.946342 | C101: 17.22473171 | D101: 20.66967805 | E101: 24.11462439 | F101: 27.55957074 | G101: 31.00451708 | H101: 20.66967805 | I101: 24.11462439 | J101: 27.55957074 | K101: 31.00451708 | L101: 34.44946342 | M101: 24.11462439 | N101: 27.55957074 | O101: 31.00451708 | P101: 34.44946342 | Q101: 37.89440976 | R101: 27.55957074 | S101: 31.00451708 | T101: 34.44946342 | U101: 37.89440976 | V101: 41.3393561
A102: 100 | B102: =花园升级数值表!Q101 -> 3521.027982 | C102: 17.60513991 | D102: 21.12616789 | E102: 24.64719587 | F102: 28.16822386 | G102: 31.68925184 | H102: 21.12616789 | I102: 24.64719587 | J102: 28.16822386 | K102: 31.68925184 | L102: 35.21027982 | M102: 24.64719587 | N102: 28.16822386 | O102: 31.68925184 | P102: 35.21027982 | Q102: 38.7313078 | R102: 28.16822386 | S102: 31.68925184 | T102: 35.21027982 | U102: 38.7313078 | V102: 42.25233578
A103: 101 | B103: =花园升级数值表!Q102 -> 3598.789885 | C103: 17.99394942 | D103: 21.59273931 | E103: 25.19152919 | F103: 28.79031908 | G103: 32.38910896 | H103: 21.59273931 | I103: 25.19152919 | J103: 28.79031908 | K103: 32.38910896 | L103: 35.98789885 | M103: 25.19152919 | N103: 28.79031908 | O103: 32.38910896 | P103: 35.98789885 | Q103: 39.58668873 | R103: 28.79031908 | S103: 32.38910896 | T103: 35.98789885 | U103: 39.58668873 | V103: 43.18547862
A104: 102 | B104: =花园升级数值表!Q103 -> 3678.26916 | C104: 18.3913458 | D104: 22.06961496 | E104: 25.74788412 | F104: 29.42615328 | G104: 33.10442244 | H104: 22.06961496 | I104: 25.74788412 | J104: 29.42615328 | K104: 33.10442244 | L104: 36.7826916 | M104: 25.74788412 | N104: 29.42615328 | O104: 33.10442244 | P104: 36.7826916 | Q104: 40.46096075 | R104: 29.42615328 | S104: 33.10442244 | T104: 36.7826916 | U104: 40.46096075 | V104: 44.13922991
A105: 103 | B105: =花园升级数值表!Q104 -> 3759.503734 | C105: 18.79751867 | D105: 22.5570224 | E105: 26.31652614 | F105: 30.07602987 | G105: 33.83553361 | H105: 22.5570224 | I105: 26.31652614 | J105: 30.07602987 | K105: 33.83553361 | L105: 37.59503734 | M105: 26.31652614 | N105: 30.07602987 | O105: 33.83553361 | P105: 37.59503734 | Q105: 41.35454107 | R105: 30.07602987 | S105: 33.83553361 | T105: 37.59503734 | U105: 41.35454107 | V105: 45.11404481
A106: 104 | B106: =花园升级数值表!Q105 -> 3842.532374 | C106: 19.21266187 | D106: 23.05519424 | E106: 26.89772662 | F106: 30.74025899 | G106: 34.58279136 | H106: 23.05519424 | I106: 26.89772662 | J106: 30.74025899 | K106: 34.58279136 | L106: 38.42532374 | M106: 26.89772662 | N106: 30.74025899 | O106: 34.58279136 | P106: 38.42532374 | Q106: 42.26785611 | R106: 30.74025899 | S106: 34.58279136 | T106: 38.42532374 | U106: 42.26785611 | V106: 46.11038849
A107: 105 | B107: =花园升级数值表!Q106 -> 3927.394701 | C107: 19.63697351 | D107: 23.56436821 | E107: 27.49176291 | F107: 31.41915761 | G107: 35.34655231 | H107: 23.56436821 | I107: 27.49176291 | J107: 31.41915761 | K107: 35.34655231 | L107: 39.27394701 | M107: 27.49176291 | N107: 31.41915761 | O107: 35.34655231 | P107: 39.27394701 | Q107: 43.20134171 | R107: 31.41915761 | S107: 35.34655231 | T107: 39.27394701 | U107: 43.20134171 | V107: 47.12873642
A108: 106 | B108: =花园升级数值表!Q107 -> 4014.131213 | C108: 20.07065607 | D108: 24.08478728 | E108: 28.09891849 | F108: 32.11304971 | G108: 36.12718092 | H108: 24.08478728 | I108: 28.09891849 | J108: 32.11304971 | K108: 36.12718092 | L108: 40.14131213 | M108: 28.09891849 | N108: 32.11304971 | O108: 36.12718092 | P108: 40.14131213 | Q108: 44.15544335 | R108: 32.11304971 | S108: 36.12718092 | T108: 40.14131213 | U108: 44.15544335 | V108: 48.16957456
A109: 107 | B109: =花园升级数值表!Q108 -> 4102.783301 | C109: 20.51391651 | D109: 24.61669981 | E109: 28.71948311 | F109: 32.82226641 | G109: 36.92504971 | H109: 24.61669981 | I109: 28.71948311 | J109: 32.82226641 | K109: 36.92504971 | L109: 41.02783301 | M109: 28.71948311 | N109: 32.82226641 | O109: 36.92504971 | P109: 41.02783301 | Q109: 45.13061631 | R109: 32.82226641 | S109: 36.92504971 | T109: 41.02783301 | U109: 45.13061631 | V109: 49.23339961
A110: 108 | B110: =花园升级数值表!Q109 -> 4193.39327 | C110: 20.96696635 | D110: 25.16035962 | E110: 29.35375289 | F110: 33.54714616 | G110: 37.74053943 | H110: 25.16035962 | I110: 29.35375289 | J110: 33.54714616 | K110: 37.74053943 | L110: 41.9339327 | M110: 29.35375289 | N110: 33.54714616 | O110: 37.74053943 | P110: 41.9339327 | Q110: 46.12732597 | R110: 33.54714616 | S110: 37.74053943 | T110: 41.9339327 | U110: 46.12732597 | V110: 50.32071924
A111: 109 | B111: =花园升级数值表!Q110 -> 4286.004361 | C111: 21.4300218 | D111: 25.71602616 | E111: 30.00203053 | F111: 34.28803489 | G111: 38.57403925 | H111: 25.71602616 | I111: 30.00203053 | J111: 34.28803489 | K111: 38.57403925 | L111: 42.86004361 | M111: 30.00203053 | N111: 34.28803489 | O111: 38.57403925 | P111: 42.86004361 | Q111: 47.14604797 | R111: 34.28803489 | S111: 38.57403925 | T111: 42.86004361 | U111: 47.14604797 | V111: 51.43205233
A112: 110 | B112: =花园升级数值表!Q111 -> 4380.660767 | C112: 21.90330384 | D112: 26.2839646 | E112: 30.66462537 | F112: 35.04528614 | G112: 39.4259469 | H112: 26.2839646 | I112: 30.66462537 | J112: 35.04528614 | K112: 39.4259469 | L112: 43.80660767 | M112: 30.66462537 | N112: 35.04528614 | O112: 39.4259469 | P112: 43.80660767 | Q112: 48.18726844 | R112: 35.04528614 | S112: 39.4259469 | T112: 43.80660767 | U112: 48.18726844 | V112: 52.5679292
A113: 111 | B113: =花园升级数值表!Q112 -> 4477.40766 | C113: 22.3870383 | D113: 26.86444596 | E113: 31.34185362 | F113: 35.81926128 | G113: 40.29666894 | H113: 26.86444596 | I113: 31.34185362 | J113: 35.81926128 | K113: 40.29666894 | L113: 44.7740766 | M113: 31.34185362 | N113: 35.81926128 | O113: 40.29666894 | P113: 44.7740766 | Q113: 49.25148426 | R113: 35.81926128 | S113: 40.29666894 | T113: 44.7740766 | U113: 49.25148426 | V113: 53.72889192
A114: 112 | B114: =花园升级数值表!Q113 -> 4576.291208 | C114: 22.88145604 | D114: 27.45774725 | E114: 32.03403846 | F114: 36.61032967 | G114: 41.18662087 | H114: 27.45774725 | I114: 32.03403846 | J114: 36.61032967 | K114: 41.18662087 | L114: 45.76291208 | M114: 32.03403846 | N114: 36.61032967 | O114: 41.18662087 | P114: 45.76291208 | Q114: 50.33920329 | R114: 36.61032967 | S114: 41.18662087 | T114: 45.76291208 | U114: 50.33920329 | V114: 54.9154945
A115: 113 | B115: =花园升级数值表!Q114 -> 4677.3586 | C115: 23.386793 | D115: 28.0641516 | E115: 32.7415102 | F115: 37.4188688 | G115: 42.0962274 | H115: 28.0641516 | I115: 32.7415102 | J115: 37.4188688 | K115: 42.0962274 | L115: 46.773586 | M115: 32.7415102 | N115: 37.4188688 | O115: 42.0962274 | P115: 46.773586 | Q115: 51.4509446 | R115: 37.4188688 | S115: 42.0962274 | T115: 46.773586 | U115: 51.4509446 | V115: 56.1283032
A116: 114 | B116: =花园升级数值表!Q115 -> 4780.658064 | C116: 23.90329032 | D116: 28.68394839 | E116: 33.46460645 | F116: 38.24526451 | G116: 43.02592258 | H116: 28.68394839 | I116: 33.46460645 | J116: 38.24526451 | K116: 43.02592258 | L116: 47.80658064 | M116: 33.46460645 | N116: 38.24526451 | O116: 43.02592258 | P116: 47.80658064 | Q116: 52.58723871 | R116: 38.24526451 | S116: 43.02592258 | T116: 47.80658064 | U116: 52.58723871 | V116: 57.36789677
A117: 115 | B117: =花园升级数值表!Q116 -> 4886.238898 | C117: 24.43119449 | D117: 29.31743339 | E117: 34.20367228 | F117: 39.08991118 | G117: 43.97615008 | H117: 29.31743339 | I117: 34.20367228 | J117: 39.08991118 | K117: 43.97615008 | L117: 48.86238898 | M117: 34.20367228 | N117: 39.08991118 | O117: 43.97615008 | P117: 48.86238898 | Q117: 53.74862787 | R117: 39.08991118 | S117: 43.97615008 | T117: 48.86238898 | U117: 53.74862787 | V117: 58.63486677
A118: 116 | B118: =花园升级数值表!Q117 -> 4994.151484 | C118: 24.97075742 | D118: 29.9649089 | E118: 34.95906039 | F118: 39.95321187 | G118: 44.94736335 | H118: 29.9649089 | I118: 34.95906039 | J118: 39.95321187 | K118: 44.94736335 | L118: 49.94151484 | M118: 34.95906039 | N118: 39.95321187 | O118: 44.94736335 | P118: 49.94151484 | Q118: 54.93566632 | R118: 39.95321187 | S118: 44.94736335 | T118: 49.94151484 | U118: 54.93566632 | V118: 59.9298178
A119: 117 | B119: =花园升级数值表!Q118 -> 5104.447319 | C119: 25.5222366 | D119: 30.62668392 | E119: 35.73113123 | F119: 40.83557855 | G119: 45.94002587 | H119: 30.62668392 | I119: 35.73113123 | J119: 40.83557855 | K119: 45.94002587 | L119: 51.04447319 | M119: 35.73113123 | N119: 40.83557855 | O119: 45.94002587 | P119: 51.04447319 | Q119: 56.14892051 | R119: 40.83557855 | S119: 45.94002587 | T119: 51.04447319 | U119: 56.14892051 | V119: 61.25336783
A120: 118 | B120: =花园升级数值表!Q119 -> 5217.179038 | C120: 26.08589519 | D120: 31.30307423 | E120: 36.52025327 | F120: 41.73743231 | G120: 46.95461134 | H120: 31.30307423 | I120: 36.52025327 | J120: 41.73743231 | K120: 46.95461134 | L120: 52.17179038 | M120: 36.52025327 | N120: 41.73743231 | O120: 46.95461134 | P120: 52.17179038 | Q120: 57.38896942 | R120: 41.73743231 | S120: 46.95461134 | T120: 52.17179038 | U120: 57.38896942 | V120: 62.60614846
A121: 119 | B121: =花园升级数值表!Q120 -> 5332.400437 | C121: 26.66200219 | D121: 31.99440262 | E121: 37.32680306 | F121: 42.6592035 | G121: 47.99160394 | H121: 31.99440262 | I121: 37.32680306 | J121: 42.6592035 | K121: 47.99160394 | L121: 53.32400437 | M121: 37.32680306 | N121: 42.6592035 | O121: 47.99160394 | P121: 53.32400437 | Q121: 58.65640481 | R121: 42.6592035 | S121: 47.99160394 | T121: 53.32400437 | U121: 58.65640481 | V121: 63.98880525
A122: 120 | B122: =花园升级数值表!Q121 -> 5450.166501 | C122: 27.2508325 | D122: 32.70099901 | E122: 38.15116551 | F122: 43.60133201 | G122: 49.05149851 | H122: 32.70099901 | I122: 38.15116551 | J122: 43.60133201 | K122: 49.05149851 | L122: 54.50166501 | M122: 38.15116551 | N122: 43.60133201 | O122: 49.05149851 | P122: 54.50166501 | Q122: 59.95183151 | R122: 43.60133201 | S122: 49.05149851 | T122: 54.50166501 | U122: 59.95183151 | V122: 65.40199801
A123: 121 | B123: =花园升级数值表!Q122 -> 5570.533428 | C123: 27.85266714 | D123: 33.42320057 | E123: 38.993734 | F123: 44.56426743 | G123: 50.13480085 | H123: 33.42320057 | I123: 38.993734 | J123: 44.56426743 | K123: 50.13480085 | L123: 55.70533428 | M123: 38.993734 | N123: 44.56426743 | O123: 50.13480085 | P123: 55.70533428 | Q123: 61.27586771 | R123: 44.56426743 | S123: 50.13480085 | T123: 55.70533428 | U123: 61.27586771 | V123: 66.84640114
A124: 122 | B124: =花园升级数值表!Q123 -> 5693.558659 | C124: 28.46779329 | D124: 34.16135195 | E124: 39.85491061 | F124: 45.54846927 | G124: 51.24202793 | H124: 34.16135195 | I124: 39.85491061 | J124: 45.54846927 | K124: 51.24202793 | L124: 56.93558659 | M124: 39.85491061 | N124: 45.54846927 | O124: 51.24202793 | P124: 56.93558659 | Q124: 62.62914525 | R124: 45.54846927 | S124: 51.24202793 | T124: 56.93558659 | U124: 62.62914525 | V124: 68.32270391
A125: 123 | B125: =花园升级数值表!Q124 -> 5819.300902 | C125: 29.09650451 | D125: 34.91580541 | E125: 40.73510631 | F125: 46.55440721 | G125: 52.37370812 | H125: 34.91580541 | I125: 40.73510631 | J125: 46.55440721 | K125: 52.37370812 | L125: 58.19300902 | M125: 40.73510631 | N125: 46.55440721 | O125: 52.37370812 | P125: 58.19300902 | Q125: 64.01230992 | R125: 46.55440721 | S125: 52.37370812 | T125: 58.19300902 | U125: 64.01230992 | V125: 69.83161082
A126: 124 | B126: =花园升级数值表!Q125 -> 5947.820162 | C126: 29.73910081 | D126: 35.68692097 | E126: 41.63474114 | F126: 47.5825613 | G126: 53.53038146 | H126: 35.68692097 | I126: 41.63474114 | J126: 47.5825613 | K126: 53.53038146 | L126: 59.47820162 | M126: 41.63474114 | N126: 47.5825613 | O126: 53.53038146 | P126: 59.47820162 | Q126: 65.42602179 | R126: 47.5825613 | S126: 53.53038146 | T126: 59.47820162 | U126: 65.42602179 | V126: 71.37384195
A127: 125 | B127: =花园升级数值表!Q126 -> 6079.177771 | C127: 30.39588885 | D127: 36.47506662 | E127: 42.55424439 | F127: 48.63342216 | G127: 54.71259994 | H127: 36.47506662 | I127: 42.55424439 | J127: 48.63342216 | K127: 54.71259994 | L127: 60.79177771 | M127: 42.55424439 | N127: 48.63342216 | O127: 54.71259994 | P127: 60.79177771 | Q127: 66.87095548 | R127: 48.63342216 | S127: 54.71259994 | T127: 60.79177771 | U127: 66.87095548 | V127: 72.95013325
A128: 126 | B128: =花园升级数值表!Q127 -> 6213.436412 | C128: 31.06718206 | D128: 37.28061847 | E128: 43.49405488 | F128: 49.70749129 | G128: 55.9209277 | H128: 37.28061847 | I128: 43.49405488 | J128: 49.70749129 | K128: 55.9209277 | L128: 62.13436412 | M128: 43.49405488 | N128: 49.70749129 | O128: 55.9209277 | P128: 62.13436412 | Q128: 68.34780053 | R128: 49.70749129 | S128: 55.9209277 | T128: 62.13436412 | U128: 68.34780053 | V128: 74.56123694
A129: 127 | B129: =花园升级数值表!Q128 -> 6350.660155 | C129: 31.75330077 | D129: 38.10396093 | E129: 44.45462108 | F129: 50.80528124 | G129: 57.15594139 | H129: 38.10396093 | I129: 44.45462108 | J129: 50.80528124 | K129: 57.15594139 | L129: 63.50660155 | M129: 44.45462108 | N129: 50.80528124 | O129: 57.15594139 | P129: 63.50660155 | Q129: 69.8572617 | R129: 50.80528124 | S129: 57.15594139 | T129: 63.50660155 | U129: 69.8572617 | V129: 76.20792186
A130: 128 | B130: =花园升级数值表!Q129 -> 6490.914484 | C130: 32.45457242 | D130: 38.94548691 | E130: 45.43640139 | F130: 51.92731587 | G130: 58.41823036 | H130: 38.94548691 | I130: 45.43640139 | J130: 51.92731587 | K130: 58.41823036 | L130: 64.90914484 | M130: 45.43640139 | N130: 51.92731587 | O130: 58.41823036 | P130: 64.90914484 | Q130: 71.40005933 | R130: 51.92731587 | S130: 58.41823036 | T130: 64.90914484 | U130: 71.40005933 | V130: 77.89097381
A131: 129 | B131: =花园升级数值表!Q130 -> 6634.266331 | C131: 33.17133165 | D131: 39.80559798 | E131: 46.43986431 | F131: 53.07413065 | G131: 59.70839698 | H131: 39.80559798 | I131: 46.43986431 | J131: 53.07413065 | K131: 59.70839698 | L131: 66.34266331 | M131: 46.43986431 | N131: 53.07413065 | O131: 59.70839698 | P131: 66.34266331 | Q131: 72.97692964 | R131: 53.07413065 | S131: 59.70839698 | T131: 66.34266331 | U131: 72.97692964 | V131: 79.61119597
A132: 130 | B132: =花园升级数值表!Q131 -> 6780.784103 | C132: =B132*0.005 -> 33.90392051 | D132: =B132*0.006 -> 40.68470462 | E132: =B132*0.007 -> 47.46548872 | F132: =B132*0.008 -> 54.24627282 | G132: =B132*0.009 -> 61.02705692 | H132: =B132*0.006 -> 40.68470462 | I132: =B132*0.007 -> 47.46548872 | J132: =B132*0.008 -> 54.24627282 | K132: =B132*0.009 -> 61.02705692 | L132: =B132*0.01 -> 67.80784103 | M132: =(B132)*0.007 -> 47.46548872 | N132: =B132*0.008 -> 54.24627282 | O132: =B132*0.009 -> 61.02705692 | P132: =B132*0.01 -> 67.80784103 | Q132: =B132*0.011 -> 74.58862513 | R132: =B132*0.008 -> 54.24627282 | S132: =B132*0.009 -> 61.02705692 | T132: =B132*0.01 -> 67.80784103 | U132: =B132*0.011 -> 74.58862513 | V132: =B132*0.012 -> 81.36940923
A133: 131 | B133: =花园升级数值表!Q132 -> 6930.53772 | C133: 34.6526886 | D133: 41.58322632 | E133: 48.51376404 | F133: 55.44430176 | G133: 62.37483948 | H133: 41.58322632 | I133: 48.51376404 | J133: 55.44430176 | K133: 62.37483948 | L133: 69.3053772 | M133: 48.51376404 | N133: 55.44430176 | O133: 62.37483948 | P133: 69.3053772 | Q133: 76.23591491 | R133: 55.44430176 | S133: 62.37483948 | T133: 69.3053772 | U133: 76.23591491 | V133: 83.16645263
A134: 132 | B134: =花园升级数值表!Q133 -> 7083.598645 | C134: 35.41799323 | D134: 42.50159187 | E134: 49.58519052 | F134: 56.66878916 | G134: 63.75238781 | H134: 42.50159187 | I134: 49.58519052 | J134: 56.66878916 | K134: 63.75238781 | L134: 70.83598645 | M134: 49.58519052 | N134: 56.66878916 | O134: 63.75238781 | P134: 70.83598645 | Q134: 77.9195851 | R134: 56.66878916 | S134: 63.75238781 | T134: 70.83598645 | U134: 77.9195851 | V134: 85.00318374
A135: 133 | B135: =花园升级数值表!Q134 -> 7240.039921 | C135: 36.20019961 | D135: 43.44023953 | E135: 50.68027945 | F135: 57.92031937 | G135: 65.16035929 | H135: 43.44023953 | I135: 50.68027945 | J135: 57.92031937 | K135: 65.16035929 | L135: 72.40039921 | M135: 50.68027945 | N135: 57.92031937 | O135: 65.16035929 | P135: 72.40039921 | Q135: 79.64043913 | R135: 57.92031937 | S135: 65.16035929 | T135: 72.40039921 | U135: 79.64043913 | V135: 86.88047905
A136: 134 | B136: =花园升级数值表!Q135 -> 7399.936203 | C136: 36.99968101 | D136: 44.39961722 | E136: 51.79955342 | F136: 59.19948962 | G136: 66.59942583 | H136: 44.39961722 | I136: 51.79955342 | J136: 59.19948962 | K136: 66.59942583 | L136: 73.99936203 | M136: 51.79955342 | N136: 59.19948962 | O136: 66.59942583 | P136: 73.99936203 | Q136: 81.39929823 | R136: 59.19948962 | S136: 66.59942583 | T136: 73.99936203 | U136: 81.39929823 | V136: 88.79923443
A137: 135 | B137: =花园升级数值表!Q136 -> 7563.363794 | C137: 37.81681897 | D137: 45.38018276 | E137: 52.94354656 | F137: 60.50691035 | G137: 68.07027414 | H137: 45.38018276 | I137: 52.94354656 | J137: 60.50691035 | K137: 68.07027414 | L137: 75.63363794 | M137: 52.94354656 | N137: 60.50691035 | O137: 68.07027414 | P137: 75.63363794 | Q137: 83.19700173 | R137: 60.50691035 | S137: 68.07027414 | T137: 75.63363794 | U137: 83.19700173 | V137: 90.76036553
A138: 136 | B138: =花园升级数值表!Q137 -> 7730.400683 | C138: 38.65200342 | D138: 46.3824041 | E138: 54.11280478 | F138: 61.84320547 | G138: 69.57360615 | H138: 46.3824041 | I138: 54.11280478 | J138: 61.84320547 | K138: 69.57360615 | L138: 77.30400683 | M138: 54.11280478 | N138: 61.84320547 | O138: 69.57360615 | P138: 77.30400683 | Q138: 85.03440752 | R138: 61.84320547 | S138: 69.57360615 | T138: 77.30400683 | U138: 85.03440752 | V138: 92.7648082
A139: 137 | B139: =花园升级数值表!Q138 -> 7901.126582 | C139: 39.50563291 | D139: 47.40675949 | E139: 55.30788608 | F139: 63.20901266 | G139: 71.11013924 | H139: 47.40675949 | I139: 55.30788608 | J139: 63.20901266 | K139: 71.11013924 | L139: 79.01126582 | M139: 55.30788608 | N139: 63.20901266 | O139: 71.11013924 | P139: 79.01126582 | Q139: 86.91239241 | R139: 63.20901266 | S139: 71.11013924 | T139: 79.01126582 | U139: 86.91239241 | V139: 94.81351899
A140: 138 | B140: =花园升级数值表!Q139 -> 8075.622963 | C140: 40.37811481 | D140: 48.45373778 | E140: 56.52936074 | F140: 64.6049837 | G140: 72.68060667 | H140: 48.45373778 | I140: 56.52936074 | J140: 64.6049837 | K140: 72.68060667 | L140: 80.75622963 | M140: 56.52936074 | N140: 64.6049837 | O140: 72.68060667 | P140: 80.75622963 | Q140: 88.83185259 | R140: 64.6049837 | S140: 72.68060667 | T140: 80.75622963 | U140: 88.83185259 | V140: 96.90747555
A141: 139 | B141: =花园升级数值表!Q140 -> 8253.973096 | C141: 41.26986548 | D141: 49.52383858 | E141: 57.77781167 | F141: 66.03178477 | G141: 74.28575786 | H141: 49.52383858 | I141: 57.77781167 | J141: 66.03178477 | K141: 74.28575786 | L141: 82.53973096 | M141: 57.77781167 | N141: 66.03178477 | O141: 74.28575786 | P141: 82.53973096 | Q141: 90.79370406 | R141: 66.03178477 | S141: 74.28575786 | T141: 82.53973096 | U141: 90.79370406 | V141: 99.04767715
A142: 140 | B142: =花园升级数值表!Q141 -> 8436.262092 | C142: 42.18131046 | D142: 50.61757255 | E142: 59.05383464 | F142: 67.49009673 | G142: 75.92635883 | H142: 50.61757255 | I142: 59.05383464 | J142: 67.49009673 | K142: 75.92635883 | L142: 84.36262092 | M142: 59.05383464 | N142: 67.49009673 | O142: 75.92635883 | P142: 84.36262092 | Q142: 92.79888301 | R142: 67.49009673 | S142: 75.92635883 | T142: 84.36262092 | U142: 92.79888301 | V142: 101.2351451
A143: 141 | B143: =花园升级数值表!Q142 -> 8622.57694 | C143: 43.1128847 | D143: 51.73546164 | E143: 60.35803858 | F143: 68.98061552 | G143: 77.60319246 | H143: 51.73546164 | I143: 60.35803858 | J143: 68.98061552 | K143: 77.60319246 | L143: 86.2257694 | M143: 60.35803858 | N143: 68.98061552 | O143: 77.60319246 | P143: 86.2257694 | Q143: 94.84834634 | R143: 68.98061552 | S143: 77.60319246 | T143: 86.2257694 | U143: 94.84834634 | V143: 103.4709233
A144: 142 | B144: =花园升级数值表!Q143 -> 8813.006552 | C144: 44.06503276 | D144: 52.87803931 | E144: 61.69104586 | F144: 70.50405241 | G144: 79.31705897 | H144: 52.87803931 | I144: 61.69104586 | J144: 70.50405241 | K144: 79.31705897 | L144: 88.13006552 | M144: 61.69104586 | N144: 70.50405241 | O144: 79.31705897 | P144: 88.13006552 | Q144: 96.94307207 | R144: 70.50405241 | S144: 79.31705897 | T144: 88.13006552 | U144: 96.94307207 | V144: 105.7560786
A145: 143 | B145: =花园升级数值表!Q144 -> 9007.641802 | C145: 45.03820901 | D145: 54.04585081 | E145: 63.05349261 | F145: 72.06113441 | G145: 81.06877621 | H145: 54.04585081 | I145: 63.05349261 | J145: 72.06113441 | K145: 81.06877621 | L145: 90.07641802 | M145: 63.05349261 | N145: 72.06113441 | O145: 81.06877621 | P145: 90.07641802 | Q145: 99.08405982 | R145: 72.06113441 | S145: 81.06877621 | T145: 90.07641802 | U145: 99.08405982 | V145: 108.0917016
A146: 144 | B146: =花园升级数值表!Q145 -> 9206.575571 | C146: 46.03287785 | D146: 55.23945342 | E146: 64.446029 | F146: 73.65260457 | G146: 82.85918014 | H146: 55.23945342 | I146: 64.446029 | J146: 73.65260457 | K146: 82.85918014 | L146: 92.06575571 | M146: 64.446029 | N146: 73.65260457 | O146: 82.85918014 | P146: 92.06575571 | Q146: 101.2723313 | R146: 73.65260457 | S146: 82.85918014 | T146: 92.06575571 | U146: 101.2723313 | V146: 110.4789068
A147: 145 | B147: =花园升级数值表!Q146 -> 9409.902792 | C147: 47.04951396 | D147: 56.45941675 | E147: 65.86931955 | F147: 75.27922234 | G147: 84.68912513 | H147: 56.45941675 | I147: 65.86931955 | J147: 75.27922234 | K147: 84.68912513 | L147: 94.09902792 | M147: 65.86931955 | N147: 75.27922234 | O147: 84.68912513 | P147: 94.09902792 | Q147: 103.5089307 | R147: 75.27922234 | S147: 84.68912513 | T147: 94.09902792 | U147: 103.5089307 | V147: 112.9188335
A148: 146 | B148: =花园升级数值表!Q147 -> 9617.720495 | C148: 48.08860248 | D148: 57.70632297 | E148: 67.32404347 | F148: 76.94176396 | G148: 86.55948446 | H148: 57.70632297 | I148: 67.32404347 | J148: 76.94176396 | K148: 86.55948446 | L148: 96.17720495 | M148: 67.32404347 | N148: 76.94176396 | O148: 86.55948446 | P148: 96.17720495 | Q148: 105.7949254 | R148: 76.94176396 | S148: 86.55948446 | T148: 96.17720495 | U148: 105.7949254 | V148: 115.4126459
A149: 147 | B149: =花园升级数值表!Q148 -> 9830.127853 | C149: 49.15063926 | D149: 58.98076712 | E149: 68.81089497 | F149: 78.64102282 | G149: 88.47115067 | H149: 58.98076712 | I149: 68.81089497 | J149: 78.64102282 | K149: 88.47115067 | L149: 98.30127853 | M149: 68.81089497 | N149: 78.64102282 | O149: 88.47115067 | P149: 98.30127853 | Q149: 108.1314064 | R149: 78.64102282 | S149: 88.47115067 | T149: 98.30127853 | U149: 108.1314064 | V149: 117.9615342
A150: 148 | B150: =花园升级数值表!Q149 -> 10047.22623 | C150: 50.23613113 | D150: 60.28335736 | E150: 70.33058358 | F150: 80.37780981 | G150: 90.42503604 | H150: 60.28335736 | I150: 70.33058358 | J150: 80.37780981 | K150: 90.42503604 | L150: 100.4722623 | M150: 70.33058358 | N150: 80.37780981 | O150: 90.42503604 | P150: 100.4722623 | Q150: 110.5194885 | R150: 80.37780981 | S150: 90.42503604 | T150: 100.4722623 | U150: 110.5194885 | V150: 120.5667147
A151: 149 | B151: =花园升级数值表!Q150 -> 10269.11922 | C151: 51.34559609 | D151: 61.6147153 | E151: 71.88383452 | F151: 82.15295374 | G151: 92.42207296 | H151: 61.6147153 | I151: 71.88383452 | J151: 82.15295374 | K151: 92.42207296 | L151: 102.6911922 | M151: 71.88383452 | N151: 82.15295374 | O151: 92.42207296 | P151: 102.6911922 | Q151: 112.9603114 | R151: 82.15295374 | S151: 92.42207296 | T151: 102.6911922 | U151: 112.9603114 | V151: 123.2294306
A152: 150 | B152: =花园升级数值表!Q151 -> 10495.91272 | C152: 52.47956358 | D152: 62.97547629 | E152: 73.47138901 | F152: 83.96730172 | G152: 94.46321444 | H152: 62.97547629 | I152: 73.47138901 | J152: 83.96730172 | K152: 94.46321444 | L152: 104.9591272 | M152: 73.47138901 | N152: 83.96730172 | O152: 94.46321444 | P152: 104.9591272 | Q152: 115.4550399 | R152: 83.96730172 | S152: 94.46321444 | T152: 104.9591272 | U152: 115.4550399 | V152: 125.9509526
A153: 151 | B153: =花园升级数值表!Q152 -> 10727.71495 | C153: 53.63857474 | D153: 64.36628969 | E153: 75.09400463 | F153: 85.82171958 | G153: 96.54943453 | H153: 64.36628969 | I153: 75.09400463 | J153: 85.82171958 | K153: 96.54943453 | L153: 107.2771495 | M153: 75.09400463 | N153: 85.82171958 | O153: 96.54943453 | P153: 107.2771495 | Q153: 118.0048644 | R153: 85.82171958 | S153: 96.54943453 | T153: 107.2771495 | U153: 118.0048644 | V153: 128.7325794
A154: 152 | B154: =花园升级数值表!Q153 -> 10964.63653 | C154: 54.82318266 | D154: 65.78781919 | E154: 76.75245573 | F154: 87.71709226 | G154: 98.68172879 | H154: 65.78781919 | I154: 76.75245573 | J154: 87.71709226 | K154: 98.68172879 | L154: 109.6463653 | M154: 76.75245573 | N154: 87.71709226 | O154: 98.68172879 | P154: 109.6463653 | Q154: 120.6110019 | R154: 87.71709226 | S154: 98.68172879 | T154: 109.6463653 | U154: 120.6110019 | V154: 131.5756384
A155: 153 | B155: =花园升级数值表!Q154 -> 11206.79053 | C155: 56.03395265 | D155: 67.24074318 | E155: 78.44753371 | F155: 89.65432424 | G155: 100.8611148 | H155: 67.24074318 | I155: 78.44753371 | J155: 89.65432424 | K155: 100.8611148 | L155: 112.0679053 | M155: 78.44753371 | N155: 89.65432424 | O155: 100.8611148 | P155: 112.0679053 | Q155: 123.2746958 | R155: 89.65432424 | S155: 100.8611148 | T155: 112.0679053 | U155: 123.2746958 | V155: 134.4814864
A156: 154 | B156: =花园升级数值表!Q155 -> 11454.2925 | C156: 57.27146249 | D156: 68.72575499 | E156: 80.18004749 | F156: 91.63433999 | G156: 103.0886325 | H156: 68.72575499 | I156: 80.18004749 | J156: 91.63433999 | K156: 103.0886325 | L156: 114.542925 | M156: 80.18004749 | N156: 91.63433999 | O156: 103.0886325 | P156: 114.542925 | Q156: 125.9972175 | R156: 91.63433999 | S156: 103.0886325 | T156: 114.542925 | U156: 125.9972175 | V156: 137.45151
A157: 155 | B157: =花园升级数值表!Q156 -> 11707.26055 | C157: 58.53630274 | D157: 70.24356329 | E157: 81.95082384 | F157: 93.65808439 | G157: 105.3653449 | H157: 70.24356329 | I157: 81.95082384 | J157: 93.65808439 | K157: 105.3653449 | L157: 117.0726055 | M157: 81.95082384 | N157: 93.65808439 | O157: 105.3653449 | P157: 117.0726055 | Q157: 128.779866 | R157: 93.65808439 | S157: 105.3653449 | T157: 117.0726055 | U157: 128.779866 | V157: 140.4871266
A158: 156 | B158: =花园升级数值表!Q157 -> 11965.8154 | C158: 59.82907699 | D158: 71.79489239 | E158: 83.76070779 | F158: 95.72652318 | G158: 107.6923386 | H158: 71.79489239 | I158: 83.76070779 | J158: 95.72652318 | K158: 107.6923386 | L158: 119.658154 | M158: 83.76070779 | N158: 95.72652318 | O158: 107.6923386 | P158: 119.658154 | Q158: 131.6239694 | R158: 95.72652318 | S158: 107.6923386 | T158: 119.658154 | U158: 131.6239694 | V158: 143.5897848
A159: 157 | B159: =花园升级数值表!Q158 -> 12230.08043 | C159: 61.15040215 | D159: 73.38048259 | E159: 85.61056302 | F159: 97.84064345 | G159: 110.0707239 | H159: 73.38048259 | I159: 85.61056302 | J159: 97.84064345 | K159: 110.0707239 | L159: 122.3008043 | M159: 85.61056302 | N159: 97.84064345 | O159: 110.0707239 | P159: 122.3008043 | Q159: 134.5308847 | R159: 97.84064345 | S159: 110.0707239 | T159: 122.3008043 | U159: 134.5308847 | V159: 146.7609652
A160: 158 | B160: =花园升级数值表!Q159 -> 12500.18176 | C160: 62.50090879 | D160: 75.00109054 | E160: 87.5012723 | F160: 100.0014541 | G160: 112.5016358 | H160: 75.00109054 | I160: 87.5012723 | J160: 100.0014541 | K160: 112.5016358 | L160: 125.0018176 | M160: 87.5012723 | N160: 100.0014541 | O160: 112.5016358 | P160: 125.0018176 | Q160: 137.5019993 | R160: 100.0014541 | S160: 112.5016358 | T160: 125.0018176 | U160: 137.5019993 | V160: 150.0021811
A161: 159 | B161: =花园升级数值表!Q160 -> 12776.24827 | C161: 63.88124136 | D161: 76.65748963 | E161: 89.4337379 | F161: 102.2099862 | G161: 114.9862344 | H161: 76.65748963 | I161: 89.4337379 | J161: 102.2099862 | K161: 114.9862344 | L161: 127.7624827 | M161: 89.4337379 | N161: 102.2099862 | O161: 114.9862344 | P161: 127.7624827 | Q161: 140.538731 | R161: 102.2099862 | S161: 114.9862344 | T161: 127.7624827 | U161: 140.538731 | V161: 153.3149793
A162: 160 | B162: =花园升级数值表!Q161 -> 13058.41171 | C162: 65.29205857 | D162: 78.35047029 | E162: 91.408882 | F162: 104.4672937 | G162: 117.5257054 | H162: 78.35047029 | I162: 91.408882 | J162: 104.4672937 | K162: 117.5257054 | L162: 130.5841171 | M162: 91.408882 | N162: 104.4672937 | O162: 117.5257054 | P162: 130.5841171 | Q162: 143.6425289 | R162: 104.4672937 | S162: 117.5257054 | T162: 130.5841171 | U162: 143.6425289 | V162: 156.7009406
A163: 161 | B163: =花园升级数值表!Q162 -> 13346.80674 | C163: 66.73403369 | D163: 80.08084042 | E163: 93.42764716 | F163: 106.7744539 | G163: 120.1212606 | H163: 80.08084042 | I163: 93.42764716 | J163: 106.7744539 | K163: 120.1212606 | L163: 133.4680674 | M163: 93.42764716 | N163: 106.7744539 | O163: 120.1212606 | P163: 133.4680674 | Q163: 146.8148741 | R163: 106.7744539 | S163: 120.1212606 | T163: 133.4680674 | U163: 146.8148741 | V163: 160.1616808
A164: 162 | B164: =花园升级数值表!Q163 -> 13641.57096 | C164: 68.20785482 | D164: 81.84942578 | E164: 95.49099675 | F164: 109.1325677 | G164: 122.7741387 | H164: 81.84942578 | I164: 95.49099675 | J164: 109.1325677 | K164: 122.7741387 | L164: 136.4157096 | M164: 95.49099675 | N164: 109.1325677 | O164: 122.7741387 | P164: 136.4157096 | Q164: 150.0572806 | R164: 109.1325677 | S164: 122.7741387 | T164: 136.4157096 | U164: 150.0572806 | V164: 163.6988516
A165: 163 | B165: =花园升级数值表!Q164 -> 13942.84506 | C165: 69.71422529 | D165: 83.65707035 | E165: 97.59991541 | F165: 111.5427605 | G165: 125.4856055 | H165: 83.65707035 | I165: 97.59991541 | J165: 111.5427605 | K165: 125.4856055 | L165: 139.4284506 | M165: 97.59991541 | N165: 111.5427605 | O165: 125.4856055 | P165: 139.4284506 | Q165: 153.3712956 | R165: 111.5427605 | S165: 125.4856055 | T165: 139.4284506 | U165: 153.3712956 | V165: 167.3141407
A166: 164 | B166: =花园升级数值表!Q165 -> 14250.77279 | C166: 71.25386396 | D166: 85.50463675 | E166: 99.75540954 | F166: 114.0061823 | G166: 128.2569551 | H166: 85.50463675 | I166: 99.75540954 | J166: 114.0061823 | K166: 128.2569551 | L166: 142.5077279 | M166: 99.75540954 | N166: 114.0061823 | O166: 128.2569551 | P166: 142.5077279 | Q166: 156.7585007 | R166: 114.0061823 | S166: 128.2569551 | T166: 142.5077279 | U166: 156.7585007 | V166: 171.0092735
A167: 165 | B167: =花园升级数值表!Q166 -> 14565.50111 | C167: 72.82750554 | D167: 87.39300665 | E167: 101.9585078 | F167: 116.5240089 | G167: 131.08951 | H167: 87.39300665 | I167: 101.9585078 | J167: 116.5240089 | K167: 131.08951 | L167: 145.6550111 | M167: 101.9585078 | N167: 116.5240089 | O167: 131.08951 | P167: 145.6550111 | Q167: 160.2205122 | R167: 116.5240089 | S167: 131.08951 | T167: 145.6550111 | U167: 160.2205122 | V167: 174.7860133
A168: 166 | B168: =花园升级数值表!Q167 -> 14887.1802 | C168: 74.435901 | D168: 89.32308121 | E168: 104.2102614 | F168: 119.0974416 | G168: 133.9846218 | H168: 89.32308121 | I168: 104.2102614 | J168: 119.0974416 | K168: 133.9846218 | L168: 148.871802 | M168: 104.2102614 | N168: 119.0974416 | O168: 133.9846218 | P168: 148.871802 | Q168: 163.7589822 | R168: 119.0974416 | S168: 133.9846218 | T168: 148.871802 | U168: 163.7589822 | V168: 178.6461624
A169: 167 | B169: =花园升级数值表!Q168 -> 15215.96358 | C169: 76.07981788 | D169: 91.29578145 | E169: 106.511745 | F169: 121.7277086 | G169: 136.9436722 | H169: 91.29578145 | I169: 106.511745 | J169: 121.7277086 | K169: 136.9436722 | L169: 152.1596358 | M169: 106.511745 | N169: 121.7277086 | O169: 136.9436722 | P169: 152.1596358 | Q169: 167.3755993 | R169: 121.7277086 | S169: 136.9436722 | T169: 152.1596358 | U169: 167.3755993 | V169: 182.5915629
A170: 168 | B170: =花园升级数值表!Q169 -> 15552.00813 | C170: 77.76004066 | D170: 93.31204879 | E170: 108.8640569 | F170: 124.416065 | G170: 139.9680732 | H170: 93.31204879 | I170: 108.8640569 | J170: 124.416065 | K170: 139.9680732 | L170: 155.5200813 | M170: 108.8640569 | N170: 124.416065 | O170: 139.9680732 | P170: 155.5200813 | Q170: 171.0720894 | R170: 124.416065 | S170: 139.9680732 | T170: 155.5200813 | U170: 171.0720894 | V170: 186.6240976
A171: 169 | B171: =花园升级数值表!Q170 -> 15895.47423 | C171: 79.47737115 | D171: 95.37284538 | E171: 111.2683196 | F171: 127.1637938 | G171: 143.0592681 | H171: 95.37284538 | I171: 111.2683196 | J171: 127.1637938 | K171: 143.0592681 | L171: 158.9547423 | M171: 111.2683196 | N171: 127.1637938 | O171: 143.0592681 | P171: 158.9547423 | Q171: 174.8502165 | R171: 127.1637938 | S171: 143.0592681 | T171: 158.9547423 | U171: 174.8502165 | V171: 190.7456908
A172: 170 | B172: =花园升级数值表!Q171 -> 16246.52578 | C172: 81.2326289 | D172: 97.47915468 | E172: 113.7256805 | F172: 129.9722062 | G172: 146.218732 | H172: 97.47915468 | I172: 113.7256805 | J172: 129.9722062 | K172: 146.218732 | L172: 162.4652578 | M172: 113.7256805 | N172: 129.9722062 | O172: 146.218732 | P172: 162.4652578 | Q172: 178.7117836 | R172: 129.9722062 | S172: 146.218732 | T172: 162.4652578 | U172: 178.7117836 | V172: 194.9583094
A173: 171 | B173: =花园升级数值表!Q172 -> 16687.94388 | C173: 83.43971942 | D173: 100.1276633 | E173: 116.8156072 | F173: 133.5035511 | G173: 150.191495 | H173: 100.1276633 | I173: 116.8156072 | J173: 133.5035511 | K173: 150.191495 | L173: 166.8794388 | M173: 116.8156072 | N173: 133.5035511 | O173: 150.191495 | P173: 166.8794388 | Q173: 183.5673827 | R173: 133.5035511 | S173: 150.191495 | T173: 166.8794388 | U173: 183.5673827 | V173: 200.2553266
A174: 172 | B174: =花园升级数值表!Q173 -> 17141.35532 | C174: 85.7067766 | D174: 102.8481319 | E174: 119.9894872 | F174: 137.1308426 | G174: 154.2721979 | H174: 102.8481319 | I174: 119.9894872 | J174: 137.1308426 | K174: 154.2721979 | L174: 171.4135532 | M174: 119.9894872 | N174: 137.1308426 | O174: 154.2721979 | P174: 171.4135532 | Q174: 188.5549085 | R174: 137.1308426 | S174: 154.2721979 | T174: 171.4135532 | U174: 188.5549085 | V174: 205.6962638
A175: 173 | B175: =花园升级数值表!Q174 -> 17607.08594 | C175: 88.03542972 | D175: 105.6425157 | E175: 123.2496016 | F175: 140.8566876 | G175: 158.4637735 | H175: 105.6425157 | I175: 123.2496016 | J175: 140.8566876 | K175: 158.4637735 | L175: 176.0708594 | M175: 123.2496016 | N175: 140.8566876 | O175: 158.4637735 | P175: 176.0708594 | Q175: 193.6779454 | R175: 140.8566876 | S175: 158.4637735 | T175: 176.0708594 | U175: 193.6779454 | V175: 211.2850313
A176: 174 | B176: =花园升级数值表!Q175 -> 18085.47047 | C176: 90.42735235 | D176: 108.5128228 | E176: 126.5982933 | F176: 144.6837638 | G176: 162.7692342 | H176: 108.5128228 | I176: 126.5982933 | J176: 144.6837638 | K176: 162.7692342 | L176: 180.8547047 | M176: 126.5982933 | N176: 144.6837638 | O176: 162.7692342 | P176: 180.8547047 | Q176: 198.9401752 | R176: 144.6837638 | S176: 162.7692342 | T176: 180.8547047 | U176: 198.9401752 | V176: 217.0256456
A177: 175 | B177: =花园升级数值表!Q176 -> 18576.8527 | C177: 92.88426351 | D177: 111.4611162 | E177: 130.0379689 | F177: 148.6148216 | G177: 167.1916743 | H177: 111.4611162 | I177: 130.0379689 | J177: 148.6148216 | K177: 167.1916743 | L177: 185.768527 | M177: 130.0379689 | N177: 148.6148216 | O177: 167.1916743 | P177: 185.768527 | Q177: 204.3453797 | R177: 148.6148216 | S177: 167.1916743 | T177: 185.768527 | U177: 204.3453797 | V177: 222.9222324
A178: 176 | B178: =花园升级数值表!Q177 -> 19081.58579 | C178: 95.40792895 | D178: 114.4895147 | E178: 133.5711005 | F178: 152.6526863 | G178: 171.7342721 | H178: 114.4895147 | I178: 133.5711005 | J178: 152.6526863 | K178: 171.7342721 | L178: 190.8158579 | M178: 133.5711005 | N178: 152.6526863 | O178: 171.7342721 | P178: 190.8158579 | Q178: 209.8974437 | R178: 152.6526863 | S178: 171.7342721 | T178: 190.8158579 | U178: 209.8974437 | V178: 228.9790295
A179: 177 | B179: =花园升级数值表!Q178 -> 19600.03248 | C179: 98.00016238 | D179: 117.6001949 | E179: 137.2002273 | F179: 156.8002598 | G179: 176.4002923 | H179: 117.6001949 | I179: 137.2002273 | J179: 156.8002598 | K179: 176.4002923 | L179: 196.0003248 | M179: 137.2002273 | N179: 156.8002598 | O179: 176.4002923 | P179: 196.0003248 | Q179: 215.6003572 | R179: 156.8002598 | S179: 176.4002923 | T179: 196.0003248 | U179: 215.6003572 | V179: 235.2003897
A180: 178 | B180: =花园升级数值表!Q179 -> 20132.56536 | C180: 100.6628268 | D180: 120.7953921 | E180: 140.9279575 | F180: 161.0605229 | G180: 181.1930882 | H180: 120.7953921 | I180: 140.9279575 | J180: 161.0605229 | K180: 181.1930882 | L180: 201.3256536 | M180: 140.9279575 | N180: 161.0605229 | O180: 181.1930882 | P180: 201.3256536 | Q180: 221.4582189 | R180: 161.0605229 | S180: 181.1930882 | T180: 201.3256536 | U180: 221.4582189 | V180: 241.5907843
A181: 179 | B181: =花园升级数值表!Q180 -> 20679.56716 | C181: 103.3978358 | D181: 124.077403 | E181: 144.7569701 | F181: 165.4365373 | G181: 186.1161044 | H181: 124.077403 | I181: 144.7569701 | J181: 165.4365373 | K181: 186.1161044 | L181: 206.7956716 | M181: 144.7569701 | N181: 165.4365373 | O181: 186.1161044 | P181: 206.7956716 | Q181: 227.4752387 | R181: 165.4365373 | S181: 186.1161044 | T181: 206.7956716 | U181: 227.4752387 | V181: 248.1548059
A182: 180 | B182: =花园升级数值表!Q181 -> 21241.431 | C182: 106.207155 | D182: 127.448586 | E182: 148.690017 | F182: 169.931448 | G182: 191.172879 | H182: 127.448586 | I182: 148.690017 | J182: 169.931448 | K182: 191.172879 | L182: 212.41431 | M182: 148.690017 | N182: 169.931448 | O182: 191.172879 | P182: 212.41431 | Q182: 233.655741 | R182: 169.931448 | S182: 191.172879 | T182: 212.41431 | U182: 233.655741 | V182: 254.897172
A183: 181 | B183: =花园升级数值表!Q182 -> 21818.56068 | C183: 109.0928034 | D183: 130.9113641 | E183: 152.7299248 | F183: 174.5484854 | G183: 196.3670461 | H183: 130.9113641 | I183: 152.7299248 | J183: 174.5484854 | K183: 196.3670461 | L183: 218.1856068 | M183: 152.7299248 | N183: 174.5484854 | O183: 196.3670461 | P183: 218.1856068 | Q183: 240.0041675 | R183: 174.5484854 | S183: 196.3670461 | T183: 218.1856068 | U183: 240.0041675 | V183: 261.8227281
A184: 182 | B184: =花园升级数值表!Q183 -> 22411.37097 | C184: 112.0568549 | D184: 134.4682258 | E184: 156.8795968 | F184: 179.2909678 | G184: 201.7023388 | H184: 134.4682258 | I184: 156.8795968 | J184: 179.2909678 | K184: 201.7023388 | L184: 224.1137097 | M184: 156.8795968 | N184: 179.2909678 | O184: 201.7023388 | P184: 224.1137097 | Q184: 246.5250807 | R184: 179.2909678 | S184: 201.7023388 | T184: 224.1137097 | U184: 246.5250807 | V184: 268.9364517
A185: 183 | B185: =花园升级数值表!Q184 -> 23020.28792 | C185: 115.1014396 | D185: 138.1217275 | E185: 161.1420155 | F185: 184.1623034 | G185: 207.1825913 | H185: 138.1217275 | I185: 161.1420155 | J185: 184.1623034 | K185: 207.1825913 | L185: 230.2028792 | M185: 161.1420155 | N185: 184.1623034 | O185: 207.1825913 | P185: 230.2028792 | Q185: 253.2231671 | R185: 184.1623034 | S185: 207.1825913 | T185: 230.2028792 | U185: 253.2231671 | V185: 276.2434551
A186: 184 | B186: =花园升级数值表!Q185 -> 23645.74914 | C186: 118.2287457 | D186: 141.8744949 | E186: 165.520244 | F186: 189.1659932 | G186: 212.8117423 | H186: 141.8744949 | I186: 165.520244 | J186: 189.1659932 | K186: 212.8117423 | L186: 236.4574914 | M186: 165.520244 | N186: 189.1659932 | O186: 212.8117423 | P186: 236.4574914 | Q186: 260.1032406 | R186: 189.1659932 | S186: 212.8117423 | T186: 236.4574914 | U186: 260.1032406 | V186: 283.7489897
A187: 185 | B187: =花园升级数值表!Q186 -> 24288.20415 | C187: 121.4410207 | D187: 145.7292249 | E187: 170.017429 | F187: 194.3056332 | G187: 218.5938373 | H187: 145.7292249 | I187: 170.017429 | J187: 194.3056332 | K187: 218.5938373 | L187: 242.8820415 | M187: 170.017429 | N187: 194.3056332 | O187: 218.5938373 | P187: 242.8820415 | Q187: 267.1702456 | R187: 194.3056332 | S187: 218.5938373 | T187: 242.8820415 | U187: 267.1702456 | V187: 291.4584498
A188: 186 | B188: =花园升级数值表!Q187 -> 24948.11466 | C188: 124.7405733 | D188: 149.6886879 | E188: 174.6368026 | F188: 199.5849172 | G188: 224.5330319 | H188: 149.6886879 | I188: 174.6368026 | J188: 199.5849172 | K188: 224.5330319 | L188: 249.4811466 | M188: 174.6368026 | N188: 199.5849172 | O188: 224.5330319 | P188: 249.4811466 | Q188: 274.4292612 | R188: 199.5849172 | S188: 224.5330319 | T188: 249.4811466 | U188: 274.4292612 | V188: 299.3773759
A189: 187 | B189: =花园升级数值表!Q188 -> 25625.95493 | C189: 128.1297747 | D189: 153.7557296 | E189: 179.3816845 | F189: 205.0076394 | G189: 230.6335944 | H189: 153.7557296 | I189: 179.3816845 | J189: 205.0076394 | K189: 230.6335944 | L189: 256.2595493 | M189: 179.3816845 | N189: 205.0076394 | O189: 230.6335944 | P189: 256.2595493 | Q189: 281.8855042 | R189: 205.0076394 | S189: 230.6335944 | T189: 256.2595493 | U189: 281.8855042 | V189: 307.5114592
A190: 188 | B190: =花园升级数值表!Q189 -> 26322.21213 | C190: 131.6110606 | D190: 157.9332728 | E190: 184.2554849 | F190: 210.577697 | G190: 236.8999091 | H190: 157.9332728 | I190: 184.2554849 | J190: 210.577697 | K190: 236.8999091 | L190: 263.2221213 | M190: 184.2554849 | N190: 210.577697 | O190: 236.8999091 | P190: 263.2221213 | Q190: 289.5443334 | R190: 210.577697 | S190: 236.8999091 | T190: 263.2221213 | U190: 289.5443334 | V190: 315.8665455
A191: 189 | B191: =花园升级数值表!Q190 -> 27037.38663 | C191: 135.1869331 | D191: 162.2243198 | E191: 189.2617064 | F191: 216.299093 | G191: 243.3364797 | H191: 162.2243198 | I191: 189.2617064 | J191: 216.299093 | K191: 243.3364797 | L191: 270.3738663 | M191: 189.2617064 | N191: 216.299093 | O191: 243.3364797 | P191: 270.3738663 | Q191: 297.4112529 | R191: 216.299093 | S191: 243.3364797 | T191: 270.3738663 | U191: 297.4112529 | V191: 324.4486396
A192: 190 | B192: =花园升级数值表!Q191 -> 27771.99242 | C192: 138.8599621 | D192: 166.6319545 | E192: 194.403947 | F192: 222.1759394 | G192: 249.9479318 | H192: 166.6319545 | I192: 194.403947 | J192: 222.1759394 | K192: 249.9479318 | L192: 277.7199242 | M192: 194.403947 | N192: 222.1759394 | O192: 249.9479318 | P192: 277.7199242 | Q192: 305.4919167 | R192: 222.1759394 | S192: 249.9479318 | T192: 277.7199242 | U192: 305.4919167 | V192: 333.2639091
A193: 191 | B193: =花园升级数值表!Q192 -> 28526.55746 | C193: 142.6327873 | D193: 171.1593448 | E193: 199.6859022 | F193: 228.2124597 | G193: 256.7390171 | H193: 171.1593448 | I193: 199.6859022 | J193: 228.2124597 | K193: 256.7390171 | L193: 285.2655746 | M193: 199.6859022 | N193: 228.2124597 | O193: 256.7390171 | P193: 285.2655746 | Q193: 313.792132 | R193: 228.2124597 | S193: 256.7390171 | T193: 285.2655746 | U193: 313.792132 | V193: 342.3186895
A194: 192 | B194: =花园升级数值表!Q193 -> 29301.62402 | C194: 146.5081201 | D194: 175.8097441 | E194: 205.1113682 | F194: 234.4129922 | G194: 263.7146162 | H194: 175.8097441 | I194: 205.1113682 | J194: 234.4129922 | K194: 263.7146162 | L194: 293.0162402 | M194: 205.1113682 | N194: 234.4129922 | O194: 263.7146162 | P194: 293.0162402 | Q194: 322.3178643 | R194: 234.4129922 | S194: 263.7146162 | T194: 293.0162402 | U194: 322.3178643 | V194: 351.6194883
A195: 193 | B195: =花园升级数值表!Q194 -> 30097.74915 | C195: 150.4887457 | D195: 180.5864949 | E195: 210.684244 | F195: 240.7819932 | G195: 270.8797423 | H195: 180.5864949 | I195: 210.684244 | J195: 240.7819932 | K195: 270.8797423 | L195: 300.9774915 | M195: 210.684244 | N195: 240.7819932 | O195: 270.8797423 | P195: 300.9774915 | Q195: 331.0752406 | R195: 240.7819932 | S195: 270.8797423 | T195: 300.9774915 | U195: 331.0752406 | V195: 361.1729898
A196: 194 | B196: =花园升级数值表!Q195 -> 30915.50499 | C196: =B196*0.005 -> 154.577525 | D196: =B196*0.006 -> 185.49303 | E196: =B196*0.007 -> 216.408535 | F196: =B196*0.008 -> 247.3240399 | G196: =B196*0.009 -> 278.2395449 | H196: =B196*0.006 -> 185.49303 | I196: =B196*0.007 -> 216.408535 | J196: =B196*0.008 -> 247.3240399 | K196: =B196*0.009 -> 278.2395449 | L196: =B196*0.01 -> 309.1550499 | M196: =(B196)*0.007 -> 216.408535 | N196: =B196*0.008 -> 247.3240399 | O196: =B196*0.009 -> 278.2395449 | P196: =B196*0.01 -> 309.1550499 | Q196: =B196*0.011 -> 340.0705549 | R196: =B196*0.008 -> 247.3240399 | S196: =B196*0.009 -> 278.2395449 | T196: =B196*0.01 -> 309.1550499 | U196: =B196*0.011 -> 340.0705549 | V196: =B196*0.012 -> 370.9860599
A197: 195 | B197: =花园升级数值表!Q196 -> 31755.47926 | C197: 158.7773963 | D197: 190.5328756 | E197: 222.2883549 | F197: 254.0438341 | G197: 285.7993134 | H197: 190.5328756 | I197: 222.2883549 | J197: 254.0438341 | K197: 285.7993134 | L197: 317.5547926 | M197: 222.2883549 | N197: 254.0438341 | O197: 285.7993134 | P197: 317.5547926 | Q197: 349.3102719 | R197: 254.0438341 | S197: 285.7993134 | T197: 317.5547926 | U197: 349.3102719 | V197: 381.0657512
A198: 196 | B198: =花园升级数值表!Q197 -> 32618.27564 | C198: 163.0913782 | D198: 195.7096538 | E198: 228.3279295 | F198: 260.9462051 | G198: 293.5644807 | H198: 195.7096538 | I198: 228.3279295 | J198: 260.9462051 | K198: 293.5644807 | L198: 326.1827564 | M198: 228.3279295 | N198: 260.9462051 | O198: 293.5644807 | P198: 326.1827564 | Q198: 358.801032 | R198: 260.9462051 | S198: 293.5644807 | T198: 326.1827564 | U198: 358.801032 | V198: 391.4193076
A199: 197 | B199: =花园升级数值表!Q198 -> 33504.51419 | C199: 167.5225709 | D199: 201.0270851 | E199: 234.5315993 | F199: 268.0361135 | G199: 301.5406277 | H199: 201.0270851 | I199: 234.5315993 | J199: 268.0361135 | K199: 301.5406277 | L199: 335.0451419 | M199: 234.5315993 | N199: 268.0361135 | O199: 301.5406277 | P199: 335.0451419 | Q199: 368.549656 | R199: 268.0361135 | S199: 301.5406277 | T199: 335.0451419 | U199: 368.549656 | V199: 402.0541702
A200: 198 | B200: =花园升级数值表!Q199 -> 34414.83184 | C200: 172.0741592 | D200: 206.488991 | E200: 240.9038228 | F200: 275.3186547 | G200: 309.7334865 | H200: 206.488991 | I200: 240.9038228 | J200: 275.3186547 | K200: 309.7334865 | L200: 344.1483184 | M200: 240.9038228 | N200: 275.3186547 | O200: 309.7334865 | P200: 344.1483184 | Q200: 378.5631502 | R200: 275.3186547 | S200: 309.7334865 | T200: 344.1483184 | U200: 378.5631502 | V200: 412.977982
... 402 more rows

Sheet 技能数值表
A1: 花园等级 | B1: 每分钟可分配总数值 | C1: 人潮涌动 | D1: 大亨光临 | E1: 花之祝福 | F1: 繁花似锦
A2: 1 | B2: =花园升级数值表!R2 -> 135 | C2: =B2*0.15 -> 20.25 | D2: =B2*0.15 -> 20.25 | E2: =B2*0.15 -> 20.25 | F2: =B2*0.15 -> 20.25
A3: 2 | B3: =花园升级数值表!R3 -> 137.981475 | C3: =B3*0.15 -> 20.69722125 | D3: =B3*0.15 -> 20.69722125 | E3: =B3*0.15 -> 20.69722125 | F3: =B3*0.15 -> 20.69722125
A4: 3 | B4: =花园升级数值表!R4 -> 141.0287959 | C4: 21.15431938 | D4: 21.15431938 | E4: 21.15431938 | F4: 21.15431938
A5: 4 | B5: =花园升级数值表!R5 -> 144.1434168 | C5: 21.62151252 | D5: 21.62151252 | E5: 21.62151252 | F5: 21.62151252
A6: 5 | B6: =花园升级数值表!R6 -> 147.3268242 | C6: 22.09902363 | D6: 22.09902363 | E6: 22.09902363 | F6: 22.09902363
A7: 6 | B7: =花园升级数值表!R7 -> 150.5805371 | C7: 22.58708057 | D7: 22.58708057 | E7: 22.58708057 | F7: 22.58708057
A8: 7 | B8: =花园升级数值表!R8 -> 153.9061083 | C8: 23.08591624 | D8: 23.08591624 | E8: 23.08591624 | F8: 23.08591624
A9: 8 | B9: =花园升级数值表!R9 -> 157.3051247 | C9: 23.5957687 | D9: 23.5957687 | E9: 23.5957687 | F9: 23.5957687
A10: 9 | B10: =花园升级数值表!R10 -> 160.7792083 | C10: 24.11688125 | D10: 24.11688125 | E10: 24.11688125 | F10: 24.11688125
A11: 10 | B11: =花园升级数值表!R11 -> 164.3300172 | C11: 24.64950257 | D11: 24.64950257 | E11: 24.64950257 | F11: 24.64950257
A12: 11 | B12: =花园升级数值表!R12 -> 167.9592456 | C12: 25.19388684 | D12: 25.19388684 | E12: 25.19388684 | F12: 25.19388684
A13: 12 | B13: =花园升级数值表!R13 -> 171.6686255 | C13: 25.75029383 | D13: 25.75029383 | E13: 25.75029383 | F13: 25.75029383
A14: 13 | B14: =花园升级数值表!R14 -> 175.4599271 | C14: 26.31898907 | D14: 26.31898907 | E14: 26.31898907 | F14: 26.31898907
A15: 14 | B15: =花园升级数值表!R15 -> 179.3349596 | C15: 26.90024394 | D15: 26.90024394 | E15: 26.90024394 | F15: 26.90024394
A16: 15 | B16: =花园升级数值表!R16 -> 183.2955722 | C16: 27.49433583 | D16: 27.49433583 | E16: 27.49433583 | F16: 27.49433583
A17: 16 | B17: =花园升级数值表!R17 -> 187.3436549 | C17: 28.10154824 | D17: 28.10154824 | E17: 28.10154824 | F17: 28.10154824
A18: 17 | B18: =花园升级数值表!R18 -> 191.4811395 | C18: 28.72217093 | D18: 28.72217093 | E18: 28.72217093 | F18: 28.72217093
A19: 18 | B19: =花园升级数值表!R19 -> 195.7100005 | C19: 29.35650007 | D19: 29.35650007 | E19: 29.35650007 | F19: 29.35650007
A20: 19 | B20: =花园升级数值表!R20 -> 200.0322559 | C20: 30.00483838 | D20: 30.00483838 | E20: 30.00483838 | F20: 30.00483838
A21: 20 | B21: =花园升级数值表!R21 -> 204.4499682 | C21: 30.66749523 | D21: 30.66749523 | E21: 30.66749523 | F21: 30.66749523
A22: 21 | B22: =花园升级数值表!R22 -> 208.9652458 | C22: 31.34478687 | D22: 31.34478687 | E22: 31.34478687 | F22: 31.34478687
A23: 22 | B23: =花园升级数值表!R23 -> 213.5802432 | C23: 32.03703648 | D23: 32.03703648 | E23: 32.03703648 | F23: 32.03703648
A24: 23 | B24: =花园升级数值表!R24 -> 218.2971629 | C24: 32.74457444 | D24: 32.74457444 | E24: 32.74457444 | F24: 32.74457444
A25: 24 | B25: =花园升级数值表!R25 -> 223.1182557 | C25: 33.46773836 | D25: 33.46773836 | E25: 33.46773836 | F25: 33.46773836
A26: 25 | B26: =花园升级数值表!R26 -> 228.0458224 | C26: 34.20687336 | D26: 34.20687336 | E26: 34.20687336 | F26: 34.20687336
A27: 26 | B27: =花园升级数值表!R27 -> 233.0822144 | C27: 34.96233216 | D27: 34.96233216 | E27: 34.96233216 | F27: 34.96233216
A28: 27 | B28: =花园升级数值表!R28 -> 238.2298351 | C28: 35.73447527 | D28: 35.73447527 | E28: 35.73447527 | F28: 35.73447527
A29: 28 | B29: =花园升级数值表!R29 -> 243.491141 | C29: 36.52367115 | D29: 36.52367115 | E29: 36.52367115 | F29: 36.52367115
A30: 29 | B30: =花园升级数值表!R30 -> 248.8686429 | C30: 37.33029643 | D30: 37.33029643 | E30: 37.33029643 | F30: 37.33029643
A31: 30 | B31: =花园升级数值表!R31 -> 254.3649069 | C31: 38.15473603 | D31: 38.15473603 | E31: 38.15473603 | F31: 38.15473603
A32: 31 | B32: =花园升级数值表!R32 -> 259.9825558 | C32: 38.99738337 | D32: 38.99738337 | E32: 38.99738337 | F32: 38.99738337
A33: 32 | B33: =花园升级数值表!R33 -> 265.7242706 | C33: 39.85864058 | D33: 39.85864058 | E33: 39.85864058 | F33: 39.85864058
A34: 33 | B34: =花园升级数值表!R34 -> 271.5927911 | C34: 40.73891866 | D34: 40.73891866 | E34: 40.73891866 | F34: 40.73891866
A35: 34 | B35: =花园升级数值表!R35 -> 277.5909179 | C35: 41.63863768 | D35: 41.63863768 | E35: 41.63863768 | F35: 41.63863768
A36: 35 | B36: =花园升级数值表!R36 -> 283.7215133 | C36: 42.55822699 | D36: 42.55822699 | E36: 42.55822699 | F36: 42.55822699
A37: 36 | B37: =花园升级数值表!R37 -> 289.9875029 | C37: 43.49812544 | D37: 43.49812544 | E37: 43.49812544 | F37: 43.49812544
A38: 37 | B38: =花园升级数值表!R38 -> 296.3918769 | C38: 44.45878154 | D38: 44.45878154 | E38: 44.45878154 | F38: 44.45878154
A39: 38 | B39: =花园升级数值表!R39 -> 302.9376915 | C39: 45.44065373 | D39: 45.44065373 | E39: 45.44065373 | F39: 45.44065373
A40: 39 | B40: =花园升级数值表!R40 -> 309.6280704 | C40: 46.44421057 | D40: 46.44421057 | E40: 46.44421057 | F40: 46.44421057
A41: 40 | B41: =花园升级数值表!R41 -> 316.4662064 | C41: 47.46993096 | D41: 47.46993096 | E41: 47.46993096 | F41: 47.46993096
A42: 41 | B42: =花园升级数值表!R42 -> 323.4553625 | C42: 48.51830438 | D42: 48.51830438 | E42: 48.51830438 | F42: 48.51830438
A43: 42 | B43: =花园升级数值表!R43 -> 330.5988742 | C43: 49.58983113 | D43: 49.58983113 | E43: 49.58983113 | F43: 49.58983113
A44: 43 | B44: =花园升级数值表!R44 -> 337.9001504 | C44: 50.68502255 | D44: 50.68502255 | E44: 50.68502255 | F44: 50.68502255
A45: 44 | B45: =花园升级数值表!R45 -> 345.3626752 | C45: 51.80440128 | D45: 51.80440128 | E45: 51.80440128 | F45: 51.80440128
A46: 45 | B46: =花园升级数值表!R46 -> 352.9900099 | C46: 52.94850148 | D46: 52.94850148 | E46: 52.94850148 | F46: 52.94850148
A47: 46 | B47: =花园升级数值表!R47 -> 360.7857942 | C47: 54.11786913 | D47: 54.11786913 | E47: 54.11786913 | F47: 54.11786913
A48: 47 | B48: =花园升级数值表!R48 -> 368.7537485 | C48: 55.31306227 | D48: 55.31306227 | E48: 55.31306227 | F48: 55.31306227
A49: 48 | B49: =花园升级数值表!R49 -> 376.897675 | C49: 56.53465125 | D49: 56.53465125 | E49: 56.53465125 | F49: 56.53465125
A50: 49 | B50: =花园升级数值表!R50 -> 385.2214602 | C50: 57.78321903 | D50: 57.78321903 | E50: 57.78321903 | F50: 57.78321903
A51: 50 | B51: =花园升级数值表!R51 -> 393.7290761 | C51: 59.05936142 | D51: 59.05936142 | E51: 59.05936142 | F51: 59.05936142
A52: 51 | B52: =花园升级数值表!R52 -> 402.4245828 | C52: 60.36368742 | D52: 60.36368742 | E52: 60.36368742 | F52: 60.36368742
A53: 52 | B53: =花园升级数值表!R53 -> 411.3121297 | C53: 61.69681945 | D53: 61.69681945 | E53: 61.69681945 | F53: 61.69681945
A54: 53 | B54: =花园升级数值表!R54 -> 420.3959581 | C54: 63.05939371 | D54: 63.05939371 | E54: 63.05939371 | F54: 63.05939371
A55: 54 | B55: =花园升级数值表!R55 -> 429.6804028 | C55: 64.45206042 | D55: 64.45206042 | E55: 64.45206042 | F55: 64.45206042
A56: 55 | B56: =花园升级数值表!R56 -> 439.1698945 | C56: 65.87548417 | D56: 65.87548417 | E56: 65.87548417 | F56: 65.87548417
A57: 56 | B57: =花园升级数值表!R57 -> 448.8689616 | C57: 67.33034424 | D57: 67.33034424 | E57: 67.33034424 | F57: 67.33034424
A58: 57 | B58: =花园升级数值表!R58 -> 458.7822326 | C58: 68.8173349 | D58: 68.8173349 | E58: 68.8173349 | F58: 68.8173349
A59: 58 | B59: =花园升级数值表!R59 -> 468.9144382 | C59: 70.33716574 | D59: 70.33716574 | E59: 70.33716574 | F59: 70.33716574
A60: 59 | B60: =花园升级数值表!R60 -> 479.2704136 | C60: 71.89056204 | D60: 71.89056204 | E60: 71.89056204 | F60: 71.89056204
A61: 60 | B61: =花园升级数值表!R61 -> 489.8551007 | C61: 73.4782651 | D61: 73.4782651 | E61: 73.4782651 | F61: 73.4782651
A62: 61 | B62: =花园升级数值表!R62 -> 500.6735506 | C62: 75.10103259 | D62: 75.10103259 | E62: 75.10103259 | F62: 75.10103259
A63: 62 | B63: =花园升级数值表!R63 -> 511.730926 | C63: 76.75963889 | D63: 76.75963889 | E63: 76.75963889 | F63: 76.75963889
A64: 63 | B64: =花园升级数值表!R64 -> 523.0325035 | C64: 78.45487552 | D64: 78.45487552 | E64: 78.45487552 | F64: 78.45487552
A65: 64 | B65: =花园升级数值表!R65 -> 534.5836763 | C65: 80.18755144 | D65: 80.18755144 | E65: 80.18755144 | F65: 80.18755144
A66: 65 | B66: =花园升级数值表!R66 -> 546.3899568 | C66: 81.95849352 | D66: 81.95849352 | E66: 81.95849352 | F66: 81.95849352
A67: 66 | B67: =花园升级数值表!R67 -> 558.456979 | C67: =B67*0.15 -> 83.76854685 | D67: =B67*0.15 -> 83.76854685 | E67: =B67*0.15 -> 83.76854685 | F67: =B67*0.15 -> 83.76854685
A68: 67 | B68: =花园升级数值表!R68 -> 570.7905014 | C68: 85.61857521 | D68: 85.61857521 | E68: 85.61857521 | F68: 85.61857521
A69: 68 | B69: =花园升级数值表!R69 -> 583.3964096 | C69: 87.50946144 | D69: 87.50946144 | E69: 87.50946144 | F69: 87.50946144
A70: 69 | B70: =花园升级数值表!R70 -> 596.2807193 | C70: 89.44210789 | D70: 89.44210789 | E70: 89.44210789 | F70: 89.44210789
A71: 70 | B71: =花园升级数值表!R71 -> 609.449579 | C71: 91.41743685 | D71: 91.41743685 | E71: 91.41743685 | F71: 91.41743685
A72: 71 | B72: =花园升级数值表!R72 -> 622.9092729 | C72: 93.43639094 | D72: 93.43639094 | E72: 93.43639094 | F72: 93.43639094
A73: 72 | B73: =花园升级数值表!R73 -> 636.6662242 | C73: 95.49993363 | D73: 95.49993363 | E73: 95.49993363 | F73: 95.49993363
A74: 73 | B74: =花园升级数值表!R74 -> 650.7269978 | C74: 97.60904967 | D74: 97.60904967 | E74: 97.60904967 | F74: 97.60904967
A75: 74 | B75: =花园升级数值表!R75 -> 665.0983035 | C75: 99.76474553 | D75: 99.76474553 | E75: 99.76474553 | F75: 99.76474553
A76: 75 | B76: =花园升级数值表!R76 -> 679.7869996 | C76: 101.9680499 | D76: 101.9680499 | E76: 101.9680499 | F76: 101.9680499
A77: 76 | B77: =花园升级数值表!R77 -> 694.8000955 | C77: 104.2200143 | D77: 104.2200143 | E77: 104.2200143 | F77: 104.2200143
A78: 77 | B78: =花园升级数值表!R78 -> 710.1447556 | C78: 106.5217133 | D78: 106.5217133 | E78: 106.5217133 | F78: 106.5217133
A79: 78 | B79: =花园升级数值表!R79 -> 725.8283025 | C79: 108.8742454 | D79: 108.8742454 | E79: 108.8742454 | F79: 108.8742454
A80: 79 | B80: =花园升级数值表!R80 -> 741.8582205 | C80: 111.2787331 | D80: 111.2787331 | E80: 111.2787331 | F80: 111.2787331
A81: 80 | B81: =花园升级数值表!R81 -> 758.2421593 | C81: 113.7363239 | D81: 113.7363239 | E81: 113.7363239 | F81: 113.7363239
A82: 81 | B82: =花园升级数值表!R82 -> 774.9879374 | C82: 116.2481906 | D82: 116.2481906 | E82: 116.2481906 | F82: 116.2481906
A83: 82 | B83: =花园升级数值表!R83 -> 792.103546 | C83: 118.8155319 | D83: 118.8155319 | E83: 118.8155319 | F83: 118.8155319
A84: 83 | B84: =花园升级数值表!R84 -> 809.5971528 | C84: 121.4395729 | D84: 121.4395729 | E84: 121.4395729 | F84: 121.4395729
A85: 84 | B85: =花园升级数值表!R85 -> 827.477106 | C85: 124.1215659 | D85: 124.1215659 | E85: 124.1215659 | F85: 124.1215659
A86: 85 | B86: =花园升级数值表!R86 -> 845.7519379 | C86: 126.8627907 | D86: 126.8627907 | E86: 126.8627907 | F86: 126.8627907
A87: 86 | B87: =花园升级数值表!R87 -> 864.4303694 | C87: 129.6645554 | D87: 129.6645554 | E87: 129.6645554 | F87: 129.6645554
A88: 87 | B88: =花园升级数值表!R88 -> 883.5213141 | C88: 132.5281971 | D88: 132.5281971 | E88: 132.5281971 | F88: 132.5281971
A89: 88 | B89: =花园升级数值表!R89 -> 903.0338823 | C89: 135.4550824 | D89: 135.4550824 | E89: 135.4550824 | F89: 135.4550824
A90: 89 | B90: =花园升级数值表!R90 -> 922.9773856 | C90: 138.4466078 | D90: 138.4466078 | E90: 138.4466078 | F90: 138.4466078
A91: 90 | B91: =花园升级数值表!R91 -> 943.3613412 | C91: 141.5042012 | D91: 141.5042012 | E91: 141.5042012 | F91: 141.5042012
A92: 91 | B92: =花园升级数值表!R92 -> 964.1954764 | C92: 144.6293215 | D92: 144.6293215 | E92: 144.6293215 | F92: 144.6293215
A93: 92 | B93: =花园升级数值表!R93 -> 985.4897335 | C93: 147.82346 | D93: 147.82346 | E93: 147.82346 | F93: 147.82346
A94: 93 | B94: =花园升级数值表!R94 -> 1007.254274 | C94: 151.0881411 | D94: 151.0881411 | E94: 151.0881411 | F94: 151.0881411
A95: 94 | B95: =花园升级数值表!R95 -> 1029.499485 | C95: 154.4249227 | D95: 154.4249227 | E95: 154.4249227 | F95: 154.4249227
A96: 95 | B96: =花园升级数值表!R96 -> 1052.235981 | C96: 157.8353972 | D96: 157.8353972 | E96: 157.8353972 | F96: 157.8353972
A97: 96 | B97: =花园升级数值表!R97 -> 1075.474613 | C97: 161.3211919 | D97: 161.3211919 | E97: 161.3211919 | F97: 161.3211919
A98: 97 | B98: =花园升级数值表!R98 -> 1099.22647 | C98: 164.8839704 | D98: 164.8839704 | E98: 164.8839704 | F98: 164.8839704
A99: 98 | B99: =花园升级数值表!R99 -> 1123.502886 | C99: 168.5254329 | D99: 168.5254329 | E99: 168.5254329 | F99: 168.5254329
A100: 99 | B100: =花园升级数值表!R100 -> 1148.315447 | C100: 172.2473171 | D100: 172.2473171 | E100: 172.2473171 | F100: 172.2473171
A101: 100 | B101: =花园升级数值表!R101 -> 1173.675994 | C101: 176.0513991 | D101: 176.0513991 | E101: 176.0513991 | F101: 176.0513991
A102: 101 | B102: =花园升级数值表!R102 -> 1199.596628 | C102: 179.9394942 | D102: 179.9394942 | E102: 179.9394942 | F102: 179.9394942
A103: 102 | B103: =花园升级数值表!R103 -> 1226.08972 | C103: 183.913458 | D103: 183.913458 | E103: 183.913458 | F103: 183.913458
A104: 103 | B104: =花园升级数值表!R104 -> 1253.167911 | C104: 187.9751867 | D104: 187.9751867 | E104: 187.9751867 | F104: 187.9751867
A105: 104 | B105: =花园升级数值表!R105 -> 1280.844125 | C105: 192.1266187 | D105: 192.1266187 | E105: 192.1266187 | F105: 192.1266187
A106: 105 | B106: =花园升级数值表!R106 -> 1309.131567 | C106: 196.3697351 | D106: 196.3697351 | E106: 196.3697351 | F106: 196.3697351
A107: 106 | B107: =花园升级数值表!R107 -> 1338.043738 | C107: 200.7065607 | D107: 200.7065607 | E107: 200.7065607 | F107: 200.7065607
A108: 107 | B108: =花园升级数值表!R108 -> 1367.594434 | C108: 205.1391651 | D108: 205.1391651 | E108: 205.1391651 | F108: 205.1391651
A109: 108 | B109: =花园升级数值表!R109 -> 1397.797757 | C109: 209.6696635 | D109: 209.6696635 | E109: 209.6696635 | F109: 209.6696635
A110: 109 | B110: =花园升级数值表!R110 -> 1428.66812 | C110: 214.300218 | D110: 214.300218 | E110: 214.300218 | F110: 214.300218
A111: 110 | B111: =花园升级数值表!R111 -> 1460.220256 | C111: 219.0330384 | D111: 219.0330384 | E111: 219.0330384 | F111: 219.0330384
A112: 111 | B112: =花园升级数值表!R112 -> 1492.46922 | C112: 223.870383 | D112: 223.870383 | E112: 223.870383 | F112: 223.870383
A113: 112 | B113: =花园升级数值表!R113 -> 1525.430403 | C113: 228.8145604 | D113: 228.8145604 | E113: 228.8145604 | F113: 228.8145604
A114: 113 | B114: =花园升级数值表!R114 -> 1559.119533 | C114: 233.86793 | D114: 233.86793 | E114: 233.86793 | F114: 233.86793
A115: 114 | B115: =花园升级数值表!R115 -> 1593.552688 | C115: 239.0329032 | D115: 239.0329032 | E115: 239.0329032 | F115: 239.0329032
A116: 115 | B116: =花园升级数值表!R116 -> 1628.746299 | C116: 244.3119449 | D116: 244.3119449 | E116: 244.3119449 | F116: 244.3119449
A117: 116 | B117: =花园升级数值表!R117 -> 1664.717161 | C117: 249.7075742 | D117: 249.7075742 | E117: 249.7075742 | F117: 249.7075742
A118: 117 | B118: =花园升级数值表!R118 -> 1701.48244 | C118: 255.222366 | D118: 255.222366 | E118: 255.222366 | F118: 255.222366
A119: 118 | B119: =花园升级数值表!R119 -> 1739.059679 | C119: 260.8589519 | D119: 260.8589519 | E119: 260.8589519 | F119: 260.8589519
A120: 119 | B120: =花园升级数值表!R120 -> 1777.466812 | C120: 266.6200219 | D120: 266.6200219 | E120: 266.6200219 | F120: 266.6200219
A121: 120 | B121: =花园升级数值表!R121 -> 1816.722167 | C121: 272.508325 | D121: 272.508325 | E121: 272.508325 | F121: 272.508325
A122: 121 | B122: =花园升级数值表!R122 -> 1856.844476 | C122: 278.5266714 | D122: 278.5266714 | E122: 278.5266714 | F122: 278.5266714
A123: 122 | B123: =花园升级数值表!R123 -> 1897.852886 | C123: 284.6779329 | D123: 284.6779329 | E123: 284.6779329 | F123: 284.6779329
A124: 123 | B124: =花园升级数值表!R124 -> 1939.766967 | C124: 290.9650451 | D124: 290.9650451 | E124: 290.9650451 | F124: 290.9650451
A125: 124 | B125: =花园升级数值表!R125 -> 1982.606721 | C125: 297.3910081 | D125: 297.3910081 | E125: 297.3910081 | F125: 297.3910081
A126: 125 | B126: =花园升级数值表!R126 -> 2026.39259 | C126: 303.9588885 | D126: 303.9588885 | E126: 303.9588885 | F126: 303.9588885
A127: 126 | B127: =花园升级数值表!R127 -> 2071.145471 | C127: 310.6718206 | D127: 310.6718206 | E127: 310.6718206 | F127: 310.6718206
A128: 127 | B128: =花园升级数值表!R128 -> 2116.886718 | C128: 317.5330077 | D128: 317.5330077 | E128: 317.5330077 | F128: 317.5330077
A129: 128 | B129: =花园升级数值表!R129 -> 2163.638161 | C129: 324.5457242 | D129: 324.5457242 | E129: 324.5457242 | F129: 324.5457242
A130: 129 | B130: =花园升级数值表!R130 -> 2211.42211 | C130: 331.7133165 | D130: 331.7133165 | E130: 331.7133165 | F130: 331.7133165
A131: 130 | B131: =花园升级数值表!R131 -> 2260.261368 | C131: =B131*0.15 -> 339.0392051 | D131: =B131*0.15 -> 339.0392051 | E131: =B131*0.15 -> 339.0392051 | F131: =B131*0.15 -> 339.0392051
A132: 131 | B132: =花园升级数值表!R132 -> 2310.17924 | C132: 346.526886 | D132: 346.526886 | E132: 346.526886 | F132: 346.526886
A133: 132 | B133: =花园升级数值表!R133 -> 2361.199548 | C133: 354.1799323 | D133: 354.1799323 | E133: 354.1799323 | F133: 354.1799323
A134: 133 | B134: =花园升级数值表!R134 -> 2413.34664 | C134: 362.0019961 | D134: 362.0019961 | E134: 362.0019961 | F134: 362.0019961
A135: 134 | B135: =花园升级数值表!R135 -> 2466.645401 | C135: 369.9968101 | D135: 369.9968101 | E135: 369.9968101 | F135: 369.9968101
A136: 135 | B136: =花园升级数值表!R136 -> 2521.121265 | C136: 378.1681897 | D136: 378.1681897 | E136: 378.1681897 | F136: 378.1681897
A137: 136 | B137: =花园升级数值表!R137 -> 2576.800228 | C137: 386.5200342 | D137: 386.5200342 | E137: 386.5200342 | F137: 386.5200342
A138: 137 | B138: =花园升级数值表!R138 -> 2633.708861 | C138: 395.0563291 | D138: 395.0563291 | E138: 395.0563291 | F138: 395.0563291
A139: 138 | B139: =花园升级数值表!R139 -> 2691.874321 | C139: 403.7811481 | D139: 403.7811481 | E139: 403.7811481 | F139: 403.7811481
A140: 139 | B140: =花园升级数值表!R140 -> 2751.324365 | C140: 412.6986548 | D140: 412.6986548 | E140: 412.6986548 | F140: 412.6986548
A141: 140 | B141: =花园升级数值表!R141 -> 2812.087364 | C141: 421.8131046 | D141: 421.8131046 | E141: 421.8131046 | F141: 421.8131046
A142: 141 | B142: =花园升级数值表!R142 -> 2874.192313 | C142: 431.128847 | D142: 431.128847 | E142: 431.128847 | F142: 431.128847
A143: 142 | B143: =花园升级数值表!R143 -> 2937.668851 | C143: 440.6503276 | D143: 440.6503276 | E143: 440.6503276 | F143: 440.6503276
A144: 143 | B144: =花园升级数值表!R144 -> 3002.547267 | C144: 450.3820901 | D144: 450.3820901 | E144: 450.3820901 | F144: 450.3820901
A145: 144 | B145: =花园升级数值表!R145 -> 3068.858524 | C145: 460.3287785 | D145: 460.3287785 | E145: 460.3287785 | F145: 460.3287785
A146: 145 | B146: =花园升级数值表!R146 -> 3136.634264 | C146: 470.4951396 | D146: 470.4951396 | E146: 470.4951396 | F146: 470.4951396
A147: 146 | B147: =花园升级数值表!R147 -> 3205.906832 | C147: 480.8860248 | D147: 480.8860248 | E147: 480.8860248 | F147: 480.8860248
A148: 147 | B148: =花园升级数值表!R148 -> 3276.709284 | C148: 491.5063926 | D148: 491.5063926 | E148: 491.5063926 | F148: 491.5063926
A149: 148 | B149: =花园升级数值表!R149 -> 3349.075409 | C149: 502.3613113 | D149: 502.3613113 | E149: 502.3613113 | F149: 502.3613113
A150: 149 | B150: =花园升级数值表!R150 -> 3423.039739 | C150: 513.4559609 | D150: 513.4559609 | E150: 513.4559609 | F150: 513.4559609
A151: 150 | B151: =花园升级数值表!R151 -> 3498.637572 | C151: 524.7956358 | D151: 524.7956358 | E151: 524.7956358 | F151: 524.7956358
A152: 151 | B152: =花园升级数值表!R152 -> 3575.904983 | C152: 536.3857474 | D152: 536.3857474 | E152: 536.3857474 | F152: 536.3857474
A153: 152 | B153: =花园升级数值表!R153 -> 3654.878844 | C153: 548.2318266 | D153: 548.2318266 | E153: 548.2318266 | F153: 548.2318266
A154: 153 | B154: =花园升级数值表!R154 -> 3735.596843 | C154: 560.3395265 | D154: 560.3395265 | E154: 560.3395265 | F154: 560.3395265
A155: 154 | B155: =花园升级数值表!R155 -> 3818.0975 | C155: 572.7146249 | D155: 572.7146249 | E155: 572.7146249 | F155: 572.7146249
A156: 155 | B156: =花园升级数值表!R156 -> 3902.420183 | C156: 585.3630274 | D156: 585.3630274 | E156: 585.3630274 | F156: 585.3630274
A157: 156 | B157: =花园升级数值表!R157 -> 3988.605133 | C157: 598.2907699 | D157: 598.2907699 | E157: 598.2907699 | F157: 598.2907699
A158: 157 | B158: =花园升级数值表!R158 -> 4076.693477 | C158: 611.5040215 | D158: 611.5040215 | E158: 611.5040215 | F158: 611.5040215
A159: 158 | B159: =花园升级数值表!R159 -> 4166.727252 | C159: 625.0090879 | D159: 625.0090879 | E159: 625.0090879 | F159: 625.0090879
A160: 159 | B160: =花园升级数值表!R160 -> 4258.749424 | C160: 638.8124136 | D160: 638.8124136 | E160: 638.8124136 | F160: 638.8124136
A161: 160 | B161: =花园升级数值表!R161 -> 4352.803905 | C161: 652.9205857 | D161: 652.9205857 | E161: 652.9205857 | F161: 652.9205857
A162: 161 | B162: =花园升级数值表!R162 -> 4448.935579 | C162: 667.3403369 | D162: 667.3403369 | E162: 667.3403369 | F162: 667.3403369
A163: 162 | B163: =花园升级数值表!R163 -> 4547.190321 | C163: 682.0785482 | D163: 682.0785482 | E163: 682.0785482 | F163: 682.0785482
A164: 163 | B164: =花园升级数值表!R164 -> 4647.61502 | C164: 697.1422529 | D164: 697.1422529 | E164: 697.1422529 | F164: 697.1422529
A165: 164 | B165: =花园升级数值表!R165 -> 4750.257597 | C165: 712.5386396 | D165: 712.5386396 | E165: 712.5386396 | F165: 712.5386396
A166: 165 | B166: =花园升级数值表!R166 -> 4855.167036 | C166: 728.2750554 | D166: 728.2750554 | E166: 728.2750554 | F166: 728.2750554
A167: 166 | B167: =花园升级数值表!R167 -> 4962.3934 | C167: 744.35901 | D167: 744.35901 | E167: 744.35901 | F167: 744.35901
A168: 167 | B168: =花园升级数值表!R168 -> 5071.987859 | C168: 760.7981788 | D168: 760.7981788 | E168: 760.7981788 | F168: 760.7981788
A169: 168 | B169: =花园升级数值表!R169 -> 5184.00271 | C169: 777.6004066 | D169: 777.6004066 | E169: 777.6004066 | F169: 777.6004066
A170: 169 | B170: =花园升级数值表!R170 -> 5298.49141 | C170: 794.7737115 | D170: 794.7737115 | E170: 794.7737115 | F170: 794.7737115
A171: 170 | B171: =花园升级数值表!R171 -> 5415.508593 | C171: 812.326289 | D171: 812.326289 | E171: 812.326289 | F171: 812.326289
A172: 171 | B172: =花园升级数值表!R172 -> 5562.647962 | C172: 834.3971942 | D172: 834.3971942 | E172: 834.3971942 | F172: 834.3971942
A173: 172 | B173: =花园升级数值表!R173 -> 5713.785107 | C173: 857.067766 | D173: 857.067766 | E173: 857.067766 | F173: 857.067766
A174: 173 | B174: =花园升级数值表!R174 -> 5869.028648 | C174: 880.3542972 | D174: 880.3542972 | E174: 880.3542972 | F174: 880.3542972
A175: 174 | B175: =花园升级数值表!R175 -> 6028.490156 | C175: 904.2735235 | D175: 904.2735235 | E175: 904.2735235 | F175: 904.2735235
A176: 175 | B176: =花园升级数值表!R176 -> 6192.284234 | C176: 928.8426351 | D176: 928.8426351 | E176: 928.8426351 | F176: 928.8426351
A177: 176 | B177: =花园升级数值表!R177 -> 6360.528597 | C177: 954.0792895 | D177: 954.0792895 | E177: 954.0792895 | F177: 954.0792895
A178: 177 | B178: =花园升级数值表!R178 -> 6533.344159 | C178: 980.0016238 | D178: 980.0016238 | E178: 980.0016238 | F178: 980.0016238
A179: 178 | B179: =花园升级数值表!R179 -> 6710.855119 | C179: 1006.628268 | D179: 1006.628268 | E179: 1006.628268 | F179: 1006.628268
A180: 179 | B180: =花园升级数值表!R180 -> 6893.189053 | C180: 1033.978358 | D180: 1033.978358 | E180: 1033.978358 | F180: 1033.978358
A181: 180 | B181: =花园升级数值表!R181 -> 7080.476999 | C181: 1062.07155 | D181: 1062.07155 | E181: 1062.07155 | F181: 1062.07155
A182: 181 | B182: =花园升级数值表!R182 -> 7272.85356 | C182: 1090.928034 | D182: 1090.928034 | E182: 1090.928034 | F182: 1090.928034
A183: 182 | B183: =花园升级数值表!R183 -> 7470.456991 | C183: 1120.568549 | D183: 1120.568549 | E183: 1120.568549 | F183: 1120.568549
A184: 183 | B184: =花园升级数值表!R184 -> 7673.429307 | C184: 1151.014396 | D184: 1151.014396 | E184: 1151.014396 | F184: 1151.014396
A185: 184 | B185: =花园升级数值表!R185 -> 7881.916381 | C185: 1182.287457 | D185: 1182.287457 | E185: 1182.287457 | F185: 1182.287457
A186: 185 | B186: =花园升级数值表!R186 -> 8096.06805 | C186: 1214.410207 | D186: 1214.410207 | E186: 1214.410207 | F186: 1214.410207
A187: 186 | B187: =花园升级数值表!R187 -> 8316.038218 | C187: 1247.405733 | D187: 1247.405733 | E187: 1247.405733 | F187: 1247.405733
A188: 187 | B188: =花园升级数值表!R188 -> 8541.984977 | C188: 1281.297747 | D188: 1281.297747 | E188: 1281.297747 | F188: 1281.297747
A189: 188 | B189: =花园升级数值表!R189 -> 8774.070709 | C189: 1316.110606 | D189: 1316.110606 | E189: 1316.110606 | F189: 1316.110606
A190: 189 | B190: =花园升级数值表!R190 -> 9012.46221 | C190: 1351.869331 | D190: 1351.869331 | E190: 1351.869331 | F190: 1351.869331
A191: 190 | B191: =花园升级数值表!R191 -> 9257.330808 | C191: 1388.599621 | D191: 1388.599621 | E191: 1388.599621 | F191: 1388.599621
A192: 191 | B192: =花园升级数值表!R192 -> 9508.852486 | C192: 1426.327873 | D192: 1426.327873 | E192: 1426.327873 | F192: 1426.327873
A193: 192 | B193: =花园升级数值表!R193 -> 9767.208008 | C193: 1465.081201 | D193: 1465.081201 | E193: 1465.081201 | F193: 1465.081201
A194: 193 | B194: =花园升级数值表!R194 -> 10032.58305 | C194: 1504.887457 | D194: 1504.887457 | E194: 1504.887457 | F194: 1504.887457
A195: 194 | B195: =花园升级数值表!R195 -> 10305.16833 | C195: =B195*0.15 -> 1545.77525 | D195: =B195*0.15 -> 1545.77525 | E195: =B195*0.15 -> 1545.77525 | F195: =B195*0.15 -> 1545.77525
A196: 195 | B196: =花园升级数值表!R196 -> 10585.15975 | C196: 1587.773963 | D196: 1587.773963 | E196: 1587.773963 | F196: 1587.773963
A197: 196 | B197: =花园升级数值表!R197 -> 10872.75855 | C197: 1630.913782 | D197: 1630.913782 | E197: 1630.913782 | F197: 1630.913782
A198: 197 | B198: =花园升级数值表!R198 -> 11168.1714 | C198: 1675.225709 | D198: 1675.225709 | E198: 1675.225709 | F198: 1675.225709
A199: 198 | B199: =花园升级数值表!R199 -> 11471.61061 | C199: 1720.741592 | D199: 1720.741592 | E199: 1720.741592 | F199: 1720.741592
A200: 199 | B200: =花园升级数值表!R200 -> 11783.29427 | C200: 1767.494141 | D200: 1767.494141 | E200: 1767.494141 | F200: 1767.494141
... 401 more rows

Sheet 礼包数值表
A1: 花园等级 | B1: 每分钟可分配总数值
A2: 1 | B2: =花园升级数值表!S2 -> 45
A3: 2 | B3: =花园升级数值表!S3 -> 45.993825
A4: 3 | B4: =花园升级数值表!S4 -> 47.00959863
A5: 4 | B5: =花园升级数值表!S5 -> 48.04780561
A6: 5 | B6: =花园升级数值表!S6 -> 49.1089414
A7: 6 | B7: =花园升级数值表!S7 -> 50.19351237
A8: 7 | B8: =花园升级数值表!S8 -> 51.30203609
A9: 8 | B9: =花园升级数值表!S9 -> 52.43504156
A10: 9 | B10: =花园升级数值表!S10 -> 53.59306945
A11: 10 | B11: =花园升级数值表!S11 -> 54.77667239
A12: 11 | B12: =花园升级数值表!S12 -> 55.9864152
A13: 12 | B13: =花园升级数值表!S13 -> 57.22287518
A14: 13 | B14: =花园升级数值表!S14 -> 58.48664238
A15: 14 | B15: =花园升级数值表!S15 -> 59.77831987
A16: 15 | B16: =花园升级数值表!S16 -> 61.09852407
A17: 16 | B17: =花园升级数值表!S17 -> 62.44788497
A18: 17 | B18: =花园升级数值表!S18 -> 63.82704651
A19: 18 | B19: =花园升级数值表!S19 -> 65.23666683
A20: 19 | B20: =花园升级数值表!S20 -> 66.67741862
A21: 20 | B21: =花园升级数值表!S21 -> 68.14998941
A22: 21 | B22: =花园升级数值表!S22 -> 69.65508193
A23: 22 | B23: =花园升级数值表!S23 -> 71.19341441
A24: 23 | B24: =花园升级数值表!S24 -> 72.76572097
A25: 24 | B25: =花园升级数值表!S25 -> 74.37275191
A26: 25 | B26: =花园升级数值表!S26 -> 76.01527414
A27: 26 | B27: =花园升级数值表!S27 -> 77.69407147
A28: 27 | B28: =花园升级数值表!S28 -> 79.40994504
A29: 28 | B29: =花园升级数值表!S29 -> 81.16371367
A30: 29 | B30: =花园升级数值表!S30 -> 82.95621429
A31: 30 | B31: =花园升级数值表!S31 -> 84.78830228
A32: 31 | B32: =花园升级数值表!S32 -> 86.66085194
A33: 32 | B33: =花园升级数值表!S33 -> 88.57475685
A34: 33 | B34: =花园升级数值表!S34 -> 90.53093036
A35: 34 | B35: =花园升级数值表!S35 -> 92.53030596
A36: 35 | B36: =花园升级数值表!S36 -> 94.57383776
A37: 36 | B37: =花园升级数值表!S37 -> 96.66250097
A38: 37 | B38: =花园升级数值表!S38 -> 98.79729231
A39: 38 | B39: =花园升级数值表!S39 -> 100.9792305
A40: 39 | B40: =花园升级数值表!S40 -> 103.2093568
A41: 40 | B41: =花园升级数值表!S41 -> 105.4887355
A42: 41 | B42: =花园升级数值表!S42 -> 107.8184542
A43: 42 | B43: =花园升级数值表!S43 -> 110.1996247
A44: 43 | B44: =花园升级数值表!S44 -> 112.6333835
A45: 44 | B45: =花园升级数值表!S45 -> 115.1208917
A46: 45 | B46: =花园升级数值表!S46 -> 117.6633366
A47: 46 | B47: =花园升级数值表!S47 -> 120.2619314
A48: 47 | B48: =花园升级数值表!S48 -> 122.9179162
A49: 48 | B49: =花园升级数值表!S49 -> 125.6325583
A50: 49 | B50: =花园升级数值表!S50 -> 128.4071534
A51: 50 | B51: =花园升级数值表!S51 -> 131.2430254
A52: 51 | B52: =花园升级数值表!S52 -> 134.1415276
A53: 52 | B53: =花园升级数值表!S53 -> 137.1040432
A54: 53 | B54: =花园升级数值表!S54 -> 140.131986
A55: 54 | B55: =花园升级数值表!S55 -> 143.2268009
A56: 55 | B56: =花园升级数值表!S56 -> 146.3899648
A57: 56 | B57: =花园升级数值表!S57 -> 149.6229872
A58: 57 | B58: =花园升级数值表!S58 -> 152.9274109
A59: 58 | B59: =花园升级数值表!S59 -> 156.3048127
A60: 59 | B60: =花园升级数值表!S60 -> 159.7568045
A61: 60 | B61: =花园升级数值表!S61 -> 163.2850336
A62: 61 | B62: =花园升级数值表!S62 -> 166.8911835
A63: 62 | B63: =花园升级数值表!S63 -> 170.5769753
A64: 63 | B64: =花园升级数值表!S64 -> 174.3441678
A65: 64 | B65: =花园升级数值表!S65 -> 178.1945588
A66: 65 | B66: =花园升级数值表!S66 -> 182.1299856
A67: 66 | B67: =花园升级数值表!S67 -> 186.1523263
A68: 67 | B68: =花园升级数值表!S68 -> 190.2635005
A69: 68 | B69: =花园升级数值表!S69 -> 194.4654699
A70: 69 | B70: =花园升级数值表!S70 -> 198.7602398
A71: 70 | B71: =花园升级数值表!S71 -> 203.1498597
A72: 71 | B72: =花园升级数值表!S72 -> 207.6364243
A73: 72 | B73: =花园升级数值表!S73 -> 212.2220747
A74: 73 | B74: =花园升级数值表!S74 -> 216.9089993
A75: 74 | B75: =花园升级数值表!S75 -> 221.6994345
A76: 75 | B76: =花园升级数值表!S76 -> 226.5956665
A77: 76 | B77: =花园升级数值表!S77 -> 231.6000318
A78: 77 | B78: =花园升级数值表!S78 -> 236.7149185
A79: 78 | B79: =花园升级数值表!S79 -> 241.9427675
A80: 79 | B80: =花园升级数值表!S80 -> 247.2860735
A81: 80 | B81: =花园升级数值表!S81 -> 252.7473864
A82: 81 | B82: =花园升级数值表!S82 -> 258.3293125
A83: 82 | B83: =花园升级数值表!S83 -> 264.0345153
A84: 83 | B84: =花园升级数值表!S84 -> 269.8657176
A85: 84 | B85: =花园升级数值表!S85 -> 275.825702
A86: 85 | B86: =花园升级数值表!S86 -> 281.9173126
A87: 86 | B87: =花园升级数值表!S87 -> 288.1434565
A88: 87 | B88: =花园升级数值表!S88 -> 294.5071047
A89: 88 | B89: =花园升级数值表!S89 -> 301.0112941
A90: 89 | B90: =花园升级数值表!S90 -> 307.6591285
A91: 90 | B91: =花园升级数值表!S91 -> 314.4537804
A92: 91 | B92: =花园升级数值表!S92 -> 321.3984921
A93: 92 | B93: =花园升级数值表!S93 -> 328.4965778
A94: 93 | B94: =花园升级数值表!S94 -> 335.7514248
A95: 94 | B95: =花园升级数值表!S95 -> 343.166495
A96: 95 | B96: =花园升级数值表!S96 -> 350.745327
A97: 96 | B97: =花园升级数值表!S97 -> 358.4915376
A98: 97 | B98: =花园升级数值表!S98 -> 366.4088232
A99: 98 | B99: =花园升级数值表!S99 -> 374.500962
A100: 99 | B100: =花园升级数值表!S100 -> 382.7718158
A101: 100 | B101: =花园升级数值表!S101 -> 391.2253313
A102: 101 | B102: =花园升级数值表!S102 -> 399.8655428
A103: 102 | B103: =花园升级数值表!S103 -> 408.6965733
A104: 103 | B104: =花园升级数值表!S104 -> 417.7226371
A105: 104 | B105: =花园升级数值表!S105 -> 426.9480415
A106: 105 | B106: =花园升级数值表!S106 -> 436.377189
A107: 106 | B107: =花园升级数值表!S107 -> 446.0145793
A108: 107 | B108: =花园升级数值表!S108 -> 455.8648112
A109: 108 | B109: =花园升级数值表!S109 -> 465.9325856
A110: 109 | B110: =花园升级数值表!S110 -> 476.2227067
A111: 110 | B111: =花园升级数值表!S111 -> 486.7400852
A112: 111 | B112: =花园升级数值表!S112 -> 497.48974
A113: 112 | B113: =花园升级数值表!S113 -> 508.4768009
A114: 113 | B114: =花园升级数值表!S114 -> 519.7065111
A115: 114 | B115: =花园升级数值表!S115 -> 531.1842294
A116: 115 | B116: =花园升级数值表!S116 -> 542.9154331
A117: 116 | B117: =花园升级数值表!S117 -> 554.9057204
A118: 117 | B118: =花园升级数值表!S118 -> 567.1608132
A119: 118 | B119: =花园升级数值表!S119 -> 579.6865598
A120: 119 | B120: =花园升级数值表!S120 -> 592.4889375
A121: 120 | B121: =花园升级数值表!S121 -> 605.5740557
A122: 121 | B122: =花园升级数值表!S122 -> 618.9481587
A123: 122 | B123: =花园升级数值表!S123 -> 632.6176288
A124: 123 | B124: =花园升级数值表!S124 -> 646.5889891
A125: 124 | B125: =花园升级数值表!S125 -> 660.8689069
A126: 125 | B126: =花园升级数值表!S126 -> 675.4641967
A127: 126 | B127: =花园升级数值表!S127 -> 690.3818235
A128: 127 | B128: =花园升级数值表!S128 -> 705.6289061
A129: 128 | B129: =花园升级数值表!S129 -> 721.2127205
A130: 129 | B130: =花园升级数值表!S130 -> 737.1407034
A131: 130 | B131: =花园升级数值表!S131 -> 753.4204558
A132: 131 | B132: =花园升级数值表!S132 -> 770.0597466
A133: 132 | B133: =花园升级数值表!S133 -> 787.0665161
A134: 133 | B134: =花园升级数值表!S134 -> 804.4488801
A135: 134 | B135: =花园升级数值表!S135 -> 822.2151336
A136: 135 | B136: =花园升级数值表!S136 -> 840.3737549
A137: 136 | B137: =花园升级数值表!S137 -> 858.9334092
A138: 137 | B138: =花园升级数值表!S138 -> 877.9029536
A139: 138 | B139: =花园升级数值表!S139 -> 897.2914403
A140: 139 | B140: =花园升级数值表!S140 -> 917.1081218
A141: 140 | B141: =花园升级数值表!S141 -> 937.3624546
A142: 141 | B142: =花园升级数值表!S142 -> 958.0641045
A143: 142 | B143: =花园升级数值表!S143 -> 979.2229502
A144: 143 | B144: =花园升级数值表!S144 -> 1000.849089
A145: 144 | B145: =花园升级数值表!S145 -> 1022.952841
A146: 145 | B146: =花园升级数值表!S146 -> 1045.544755
A147: 146 | B147: =花园升级数值表!S147 -> 1068.635611
A148: 147 | B148: =花园升级数值表!S148 -> 1092.236428
A149: 148 | B149: =花园升级数值表!S149 -> 1116.35847
A150: 149 | B150: =花园升级数值表!S150 -> 1141.013246
A151: 150 | B151: =花园升级数值表!S151 -> 1166.212524
A152: 151 | B152: =花园升级数值表!S152 -> 1191.968328
A153: 152 | B153: =花园升级数值表!S153 -> 1218.292948
A154: 153 | B154: =花园升级数值表!S154 -> 1245.198948
A155: 154 | B155: =花园升级数值表!S155 -> 1272.699167
A156: 155 | B156: =花园升级数值表!S156 -> 1300.806728
A157: 156 | B157: =花园升级数值表!S157 -> 1329.535044
A158: 157 | B158: =花园升级数值表!S158 -> 1358.897826
A159: 158 | B159: =花园升级数值表!S159 -> 1388.909084
A160: 159 | B160: =花园升级数值表!S160 -> 1419.583141
A161: 160 | B161: =花园升级数值表!S161 -> 1450.934635
A162: 161 | B162: =花园升级数值表!S162 -> 1482.978526
A163: 162 | B163: =花园升级数值表!S163 -> 1515.730107
A164: 163 | B164: =花园升级数值表!S164 -> 1549.205007
A165: 164 | B165: =花园升级数值表!S165 -> 1583.419199
A166: 165 | B166: =花园升级数值表!S166 -> 1618.389012
A167: 166 | B167: =花园升级数值表!S167 -> 1654.131133
A168: 167 | B168: =花园升级数值表!S168 -> 1690.66262
A169: 168 | B169: =花园升级数值表!S169 -> 1728.000903
A170: 169 | B170: =花园升级数值表!S170 -> 1766.163803
A171: 170 | B171: =花园升级数值表!S171 -> 1805.169531
A172: 171 | B172: =花园升级数值表!S172 -> 1854.215987
A173: 172 | B173: =花园升级数值表!S173 -> 1904.595036
A174: 173 | B174: =花园升级数值表!S174 -> 1956.342883
A175: 174 | B175: =花园升级数值表!S175 -> 2009.496719
A176: 175 | B176: =花园升级数值表!S176 -> 2064.094745
A177: 176 | B177: =花园升级数值表!S177 -> 2120.176199
A178: 177 | B178: =花园升级数值表!S178 -> 2177.781386
A179: 178 | B179: =花园升级数值表!S179 -> 2236.951706
A180: 179 | B180: =花园升级数值表!S180 -> 2297.729684
A181: 180 | B181: =花园升级数值表!S181 -> 2360.159
A182: 181 | B182: =花园升级数值表!S182 -> 2424.28452
A183: 182 | B183: =花园升级数值表!S183 -> 2490.15233
A184: 183 | B184: =花园升级数值表!S184 -> 2557.809769
A185: 184 | B185: =花园升级数值表!S185 -> 2627.30546
A186: 185 | B186: =花园升级数值表!S186 -> 2698.68935
A187: 186 | B187: =花园升级数值表!S187 -> 2772.012739
A188: 187 | B188: =花园升级数值表!S188 -> 2847.328326
A189: 188 | B189: =花园升级数值表!S189 -> 2924.690236
A190: 189 | B190: =花园升级数值表!S190 -> 3004.15407
A191: 190 | B191: =花园升级数值表!S191 -> 3085.776936
A192: 191 | B192: =花园升级数值表!S192 -> 3169.617495
A193: 192 | B193: =花园升级数值表!S193 -> 3255.736003
A194: 193 | B194: =花园升级数值表!S194 -> 3344.19435
A195: 194 | B195: =花园升级数值表!S195 -> 3435.05611
A196: 195 | B196: =花园升级数值表!S196 -> 3528.386585
A197: 196 | B197: =花园升级数值表!S197 -> 3624.252848
A198: 197 | B198: =花园升级数值表!S198 -> 3722.723798
A199: 198 | B199: =花园升级数值表!S199 -> 3823.870204
A200: 199 | B200: =花园升级数值表!S200 -> 3927.764757
... 401 more rows

Sheet 花朵价格换算
A1: 基准价值 1钻石 = 0.06元
A2: 花朵 | B2: 钻石价值 | C2: 人民币价值 | E2: 成就 | F2: 钻石价值 | G2: 人民币价值 | I2: 抽奖 | J2: 钻石价值 | K2: 人民币价值 | M2: 服装 | N2: 钻石价值 | O2: 人民币价值
A3: 蒲公英 | B3: =C3/0.06 -> 100 | C3: 6 | E3: 美丽花园-1 | F3: 15 | G3: =F3*0.06 -> 0.9 | I3: 1 | J3: 5 | K3: =J3*0.06 -> 0.3 | M3: 2
A4: 牵牛花(蓝) | B4: =C4/0.06 -> 100 | C4: 6 | E4: 美丽花园-2 | F4: 20 | G4: =F4*0.06 -> 1.2 | I4: 2 | J4: 10 | K4: =J4*0.06 -> 0.6 | M4: 3
A5: 三色堇(紫) | B5: 150 | C5: 9 | E5: 美丽花园-3 | F5: 35 | G5: 2.1 | I5: 3 | J5: 15 | K5: 0.9 | M5: 4
A6: 三叶草(粉) | B6: 150 | C6: 9 | E6: 美丽花园-4 | F6: 50 | G6: 3 | I6: 4 | J6: 20 | K6: 1.2 | M6: 5
A7: 向日葵 | B7: 200 | C7: 12 | E7: 美丽花园-5 | F7: 65 | G7: 3.9 | I7: 5 | J7: 25 | K7: 1.5 | M7: 6
A8: 郁金香(粉) | B8: 200 | C8: 12 | E8: 美丽花园-6 | F8: 80 | G8: 4.8 | I8: 6 | J8: 30 | K8: 1.8 | M8: 7
A9: 百合花(白) | B9: 200 | C9: 12 | E9: 鼓鼓的钱包-1 | F9: 10 | G9: 0.6 | I9: 7 | J9: 50 | K9: 3 | M9: 8
A10: 非洲菊(粉) | B10: 200 | C10: 12 | E10: 鼓鼓的钱包-2 | F10: 15 | G10: 0.9 | I10: 8 | J10: 15 | K10: 0.9 | M10: 9
A11: 红掌 | B11: 300 | C11: 18 | E11: 鼓鼓的钱包-3 | F11: 20 | G11: 1.2 | I11: 9 | J11: 20 | K11: 1.2 | M11: 10 | N11: =O11/0.06 -> 50 | O11: 3
A12: 桔梗花 | B12: 300 | C12: 18 | E12: 鼓鼓的钱包-4 | F12: 25 | G12: 1.5 | I12: 10 | J12: 25 | K12: 1.5 | M12: 11 | N12: =O12/0.06 -> 100 | O12: 6
A13: 康乃馨(白) | B13: 300 | C13: 18 | E13: 鼓鼓的钱包-5 | F13: 40 | G13: 2.4 | I13: 11 | J13: 30 | K13: 1.8 | M13: 12 | N13: 100 | O13: 6
A14: 铃兰(粉) | B14: 400 | C14: 24 | E14: 鼓鼓的钱包-6 | F14: 50 | G14: 3 | I14: 12 | J14: 35 | K14: 2.1 | M14: 13 | N14: 100 | O14: 6
A15: 曼陀罗(橘) | B15: 400 | C15: 24 | E15: 精明的商人-1 | F15: 15 | G15: 0.9 | I15: 13 | J15: 40 | K15: 2.4 | M15: 14 | N15: 150 | O15: 9
A16: 曼陀罗（粉） | B16: 400 | C16: 24 | E16: 精明的商人-2 | F16: 20 | G16: 1.2 | I16: 14 | J16: 70 | K16: 4.2 | M16: 15 | N16: 150 | O16: 9
A17: 玫瑰花(红) | B17: 400 | C17: 24 | E17: 精明的商人-3 | F17: 35 | G17: 2.1 | I17: 15 | J17: 25 | K17: 1.5 | M17: 16 | N17: 150 | O17: 9
A18: 玫瑰花（黄） | B18: 500 | C18: 30 | E18: 精明的商人-4 | F18: 50 | G18: 3 | I18: 16 | J18: 30 | K18: 1.8 | M18: 17 | N18: 500 | O18: 30
A19: 茑萝 | B19: 500 | C19: 30 | E19: 精明的商人-5 | F19: 65 | G19: 3.9 | I19: 17 | J19: 35 | K19: 2.1 | M19: 18 | N19: 500 | O19: 30
A20: 牵牛花(紫) | B20: 500 | C20: 30 | E20: 精明的商人-6 | F20: 80 | G20: 4.8 | I20: 18 | J20: 40 | K20: 2.4 | M20: 19 | N20: 500 | O20: 30
A21: 虞美人(红) | B21: 500 | C21: 30 | E21: 花仙子-1 | F21: 15 | G21: 0.9 | I21: 19 | J21: 45 | K21: 2.7 | M21: 20 | N21: 300 | O21: 18
A22: 郁金香(黄) | B22: 500 | C22: 30 | E22: 花仙子-2 | F22: 20 | G22: 1.2 | I22: 20 | J22: 50 | K22: 3 | M22: 21 | N22: 300 | O22: 18
A23: 鸢尾(紫) | B23: 600 | C23: 36 | E23: 花仙子-3 | F23: 35 | G23: 2.1 | I23: 21 | J23: 100 | K23: 6 | M23: 22 | N23: 300 | O23: 18
A24: 朱槿(粉) | B24: 600 | C24: 36 | E24: 花仙子-4 | F24: 50 | G24: 3 | M24: 23 | N24: 300 | O24: 18
A25: 朱槿(黄) | B25: 600 | C25: 36 | E25: 花仙子-5 | F25: 65 | G25: 3.9 | I25: 总价值 | J25: =SUM(J3:J23) -> 715 | K25: =SUM(K3:K23) -> 42.9 | M25: 24 | N25: 250 | O25: 15
A26: 满天星（白） | B26: 700 | C26: 42 | E26: 花仙子-6 | F26: 80 | G26: 4.8 | M26: 25 | N26: 250 | O26: 15
A27: 满天星（粉） | B27: 700 | C27: 42 | E27: 百花争艳-1 | F27: 10 | G27: 0.6 | M27: 26 | N27: 250 | O27: 15
A28: 紫罗兰（白） | B28: 700 | C28: 42 | E28: 百花争艳-2 | F28: 15 | G28: 0.9 | M28: 27 | N28: 500 | O28: 30
A29: 紫罗兰（紫） | B29: 700 | C29: 42 | E29: 百花争艳-3 | F29: 20 | G29: 1.2 | M29: 28 | N29: 500 | O29: 30
A30: 紫罗兰（蓝） | B30: 700 | C30: 42 | E30: 百花争艳-4 | F30: 25 | G30: 1.5 | M30: 29 | N30: 500 | O30: 30
A31: 鸡冠花（红） | B31: 1000 | C31: 60 | E31: 百花争艳-5 | F31: 40 | G31: 2.4 | M31: 30 | N31: 500 | O31: 30
A32: 鸡冠花（黄） | B32: 1000 | C32: 60 | E32: 百花争艳-6 | F32: 50 | G32: 3 | M32: 201
E33: 人山人海-1 | F33: 10 | G33: 0.6 | M33: 202
A34: 总价值 | B34: =SUM(B3:B32) -> 13600 | C34: =SUM(C3:C32) -> 816 | E34: 人山人海-2 | F34: 15 | G34: 0.9 | M34: 203
E35: 人山人海-3 | F35: 20 | G35: 1.2 | M35: 204 | N35: 50 | O35: 3
E36: 人山人海-4 | F36: 25 | G36: 1.5 | M36: 205 | N36: 100 | O36: 6
E37: 人山人海-5 | F37: 40 | G37: 2.4 | M37: 206 | N37: 200 | O37: 12
E38: 人山人海-6 | F38: 50 | G38: 3 | M38: 207 | N38: 300 | O38: 18
E39: 技能大师-1 | F39: 15 | G39: 0.9 | M39: 208 | N39: 300 | O39: 18
E40: 技能大师-2 | F40: 20 | G40: 1.2 | M40: 209 | N40: 600 | O40: 36
E41: 技能大师-3 | F41: 35 | G41: 2.1 | M41: 210 | N41: 700 | O41: 42
E42: 技能大师-4 | F42: 50 | G42: 3 | M42: 211 | N42: 700 | O42: 42
E43: 技能大师-5 | F43: 65 | G43: 3.9 | M43: 212 | N43: 1000 | O43: 60
E44: 技能大师-6 | F44: 80 | G44: 4.8 | M44: 213 | N44: 1000 | O44: 60
E45: 鉴赏大师-1 | F45: 15 | G45: 0.9 | M45: 214 | N45: 1500 | O45: 90
E46: 鉴赏大师-2 | F46: 20 | G46: 1.2 | M46: 215 | N46: 1500 | O46: 90
E47: 鉴赏大师-3 | F47: 35 | G47: 2.1 | M47: 216 | N47: 2000 | O47: 120
E48: 鉴赏大师-4 | F48: 50 | G48: 3 | M48: 217 | N48: 2000 | O48: 120
E49: 鉴赏大师-5 | F49: 65 | G49: 3.9 | M49: 401
E50: 鉴赏大师-6 | F50: 80 | G50: 4.8 | M50: 402
E51: 按时打卡-1 | F51: 10 | G51: 0.6 | M51: 403 | N51: 50 | O51: 3
E52: 按时打卡-2 | F52: 15 | G52: 0.9 | M52: 404 | N52: 50 | O52: 3
E53: 按时打卡-3 | F53: 20 | G53: 1.2 | M53: 405
E54: 按时打卡-4 | F54: 25 | G54: 1.5 | M54: 406
E55: 按时打卡-5 | F55: 40 | G55: 2.4 | M55: 407 | N55: 50 | O55: 3
E56: 按时打卡-6 | F56: 50 | G56: 3 | M56: 408
E57: 乐于分享-1 | F57: 10 | G57: 0.6 | M57: 409
E58: 乐于分享-2 | F58: 15 | G58: 0.9 | M58: 410 | N58: 80 | O58: 4.8
E59: 乐于分享-3 | F59: 20 | G59: 1.2 | M59: 411 | N59: 100 | O59: 6
E60: 乐于分享-4 | F60: 25 | G60: 1.5 | M60: 412 | N60: 150 | O60: 9
E61: 乐于分享-5 | F61: 40 | G61: 2.4 | M61: 413 | N61: 200 | O61: 12
E62: 乐于分享-6 | F62: 50 | G62: 3 | M62: 414 | N62: 250 | O62: 15
E63: 乐于分享-7 | F63: 65 | G63: 3.9 | M63: 415 | N63: 300 | O63: 18
E64: 乐于分享-8 | F64: 80 | G64: 4.8 | M64: 601
E65: 辛勤的花匠-1 | F65: 10 | G65: 0.6 | M65: 602
E66: 辛勤的花匠-2 | F66: 15 | G66: 0.9 | M66: 603
E67: 辛勤的花匠-3 | F67: 20 | G67: 1.2 | M67: 604 | N67: 80 | O67: 4.8
E68: 辛勤的花匠-4 | F68: 25 | G68: =F68*0.06 -> 1.5 | M68: 605 | N68: 100 | O68: 6
E69: 辛勤的花匠-5 | F69: 40 | G69: 2.4 | M69: 606 | N69: 200 | O69: 12
E70: 辛勤的花匠-6 | F70: 50 | G70: 3 | M70: 607 | N70: 250 | O70: 15
E71: 积少成多-1 | F71: 10 | G71: 0.6 | M71: 608 | N71: 250 | O71: 15
E72: 积少成多-2 | F72: 15 | G72: 0.9 | M72: 609 | N72: 300 | O72: 18
E73: 积少成多-3 | F73: 20 | G73: 1.2 | M73: 610 | N73: 300 | O73: 18
E74: 积少成多-4 | F74: 25 | G74: 1.5 | M74: 611 | N74: 350 | O74: 21
E75: 积少成多-5 | F75: 40 | G75: 2.4 | M75: 612 | N75: 400 | O75: 24
E76: 积少成多-6 | F76: 50 | G76: 3 | M76: 801
E77: 花费的钻石-1 | F77: 10 | G77: 0.6 | M77: 802
E78: 花费的钻石-2 | F78: 15 | G78: 0.9 | M78: 803
E79: 花费的钻石-3 | F79: 20 | G79: 1.2 | M79: 804 | N79: =O79/0.06 -> 80 | O79: 4.8
E80: 花费的钻石-4 | F80: 25 | G80: 1.5 | M80: 805 | N80: 100 | O80: 6
E81: 花费的钻石-5 | F81: 40 | G81: 2.4 | M81: 806 | N81: 150 | O81: 9
E82: 花费的钻石-6 | F82: 50 | G82: 3 | M82: 807 | N82: 200 | O82: 12
E83: 拥有的服装-1 | F83: 10 | G83: 0.6 | M83: 808 | N83: 250 | O83: 15
E84: 拥有的服装-2 | F84: 15 | G84: 0.9 | M84: 809 | N84: 300 | O84: 18
E85: 拥有的服装-3 | F85: 20 | G85: 1.2 | M85: 810 | N85: 350 | O85: 21
E86: 拥有的服装-4 | F86: 25 | G86: 1.5 | M86: 811 | N86: 400 | O86: 24
E87: 拥有的服装-5 | F87: 40 | G87: 2.4 | M87: 812 | N87: 450 | O87: 27
E88: 拥有的服装-6 | F88: 50 | G88: 3 | M88: 813 | N88: 500 | O88: 30
M89: 814 | N89: 550 | O89: 33
E90: 总价值 | F90: =SUM(F3:F88) -> 2910 | G90: =SUM(G3:G88) -> 174.6 | M90: 815 | N90: 600 | O90: 36
M91: 816 | N91: 650 | O91: 39
M92: 817 | N92: 700 | O92: 42
M93: 1001
M94: 1002 | N94: 1500 | O94: 90
M95: 1003 | N95: 2000 | O95: 120
M97: 总价值 | N97: =SUM(N3:N95) -> 30440 | O97: =SUM(O3:O95) -> 1826.4
